Organisation Code,Organisation Label,Effective Date,Organisational Unit,Service Division Label,Category Internal Name,Purpose,Detailed Expenditure Code,Payment Date,Transaction Number,Irrecoverable VAT Amount,Amount,Capital Or Revenue,Beneficiary Name,Procurement Card
Http://opendatacommunities.org/id/metropolitan-district-council/leeds,Leeds City Council,30/11/2021,Adults and Health,Services For Older People Under 65 P/Dis,Agency Payments,Sheltered Accommodation,569,10/11/2021,2111-00001 ,0.00,5400.00,R,A & V TRANSITIONAL HOMES,No
Http://opendatacommunities.org/id/metropolitan-district-council/leeds,Leeds City Council,30/11/2021,Resources and Housing,HRA Housing Leeds,Capital,OTHER COSTS,7,23/11/2021,2111-00002,0.00,80.00,C,REDACTED PERSONAL DATA,No
Http://opendatacommunities.org/id/metropolitan-district-council/leeds,Leeds City Council,30/11/2021,Children and Families,Social Care,Supplies and Services,Grant Related Expenditure,290,23/11/2021,2111-00003,0.00,250.00,R,REDACTED PERSONAL DATA,No
Http://opendatacommunities.org/id/metropolitan-district-council/leeds,Leeds City Council,30/11/2021,Resources and Housing,Leeds Building Services,Supplies and Services,Operational Materials,205,02/11/2021,2111-00004,0.00,7.40,R,A ANDREWS & SONS (MARBLES & TILES),No
Http://opendatacommunities.org/id/metropolitan-district-council/leeds,Leeds City Council,30/11/2021,Children and Families,Social Care,Agency Payments,Services Rendered By Other Organisations,511,03/11/2021,2111-00005,0.00,321.60,R,REDACTED PERSONAL DATA,No
Http://opendatacommunities.org/id/metropolitan-district-council/leeds,Leeds City Council,30/11/2021,Children and Families,Social Care,Agency Payments,Services Rendered By Other Organisations,511,05/11/2021,2111-00006,0.00,217.43,R,REDACTED PERSONAL DATA,No
Http://opendatacommunities.org/id/metropolitan-district-council/leeds,Leeds City Council,30/11/2021,Resources and Housing,Leeds Building Services,Supplies and Services,Other Hired And Contracted Services,265,18/11/2021,2111-00007,0.00,51780.00,R,A Buckler (Haulage) Ltd,No
Http://opendatacommunities.org/id/metropolitan-district-council/leeds,Leeds City Council,30/11/2021,Resources and Housing,Leeds Building Services,Supplies and Services,Other Hired And Contracted Services,265,18/11/2021,2111-00008,0.00,450.00,R,A Buckler (Haulage) Ltd,No
Http://opendatacommunities.org/id/metropolitan-district-council/leeds,Leeds City Council,30/11/2021,Resources and Housing,HRA Housing Leeds,Capital,OTHER COSTS,7,23/11/2021,2111-00009,0.00,35.00,C,REDACTED PERSONAL DATA,No
Http://opendatacommunities.org/id/metropolitan-district-council/leeds,Leeds City Council,30/11/2021,Resources and Housing,HRA Housing Leeds,Capital,OTHER COSTS,7,23/11/2021,2111-00010,0.00,217.02,C,REDACTED PERSONAL DATA,No
Http://opendatacommunities.org/id/metropolitan-district-council/leeds,Leeds City Council,30/11/2021,Children and Families,Social Care,Agency Payments,Services Rendered By Other Organisations,511,05/11/2021,2111-00011,0.00,217.43,R,REDACTED PERSONAL DATA,No
Http://opendatacommunities.org/id/metropolitan-district-council/leeds,Leeds City Council,30/11/2021,Resources and Housing,HRA Housing Leeds,Capital,OTHER COSTS,7,10/11/2021,2111-00012,0.00,100.00,C,REDACTED PERSONAL DATA,No
Http://opendatacommunities.org/id/metropolitan-district-council/leeds,Leeds City Council,30/11/2021,Communities and Environment,Elections Licensing and Registration,External Income,Admissions Booking Fees & Ticket Sales,933,03/11/2021,2111-00013,0.00,351.00,R,REDACTED PERSONAL DATA,No
Http://opendatacommunities.org/id/metropolitan-district-council/leeds,Leeds City Council,30/11/2021,Resources and Housing,HRA Housing Leeds,Capital,CONSTRUCTION,3,15/11/2021,2111-00014,0.00,150000.00,C,A Connolly Limited,No
Http://opendatacommunities.org/id/metropolitan-district-council/leeds,Leeds City Council,30/11/2021,Resources and Housing,HRA Housing Leeds,Capital,CONSTRUCTION,3,15/11/2021,2111-00015,0.00,129882.62,C,A Connolly Limited,No
Http://opendatacommunities.org/id/metropolitan-district-council/leeds,Leeds City Council,30/11/2021,Resources and Housing,Leeds Building Services,Supplies and Services,Other Hired And Contracted Services,265,01/11/2021,2111-00016,0.00,3188.00,R,A Coole Electrical Ltd,No
Http://opendatacommunities.org/id/metropolitan-district-council/leeds,Leeds City Council,30/11/2021,Resources and Housing,Leeds Building Services,Supplies and Services,Other Hired And Contracted Services,265,05/11/2021,2111-00017,0.00,17508.00,R,A Coole Electrical Ltd,No
Http://opendatacommunities.org/id/metropolitan-district-council/leeds,Leeds City Council,30/11/2021,Resources and Housing,Leeds Building Services,Supplies and Services,Other Hired And Contracted Services,265,11/11/2021,2111-00018,0.00,3550.00,R,A Coole Electrical Ltd,No
Http://opendatacommunities.org/id/metropolitan-district-council/leeds,Leeds City Council,30/11/2021,Resources and Housing,Leeds Building Services,Supplies and Services,Other Hired And Contracted Services,265,17/11/2021,2111-00019,0.00,15599.00,R,A Coole Electrical Ltd,No
Http://opendatacommunities.org/id/metropolitan-district-council/leeds,Leeds City Council,30/11/2021,Resources and Housing,Leeds Building Services,Supplies and Services,Other Hired And Contracted Services,265,19/11/2021,2111-00020,0.00,11785.00,R,A Coole Electrical Ltd,No
Http://opendatacommunities.org/id/metropolitan-district-council/leeds,Leeds City Council,30/11/2021,Resources and Housing,Leeds Building Services,Supplies and Services,Other Hired And Contracted Services,265,25/11/2021,2111-00021,0.00,6557.00,R,A Coole Electrical Ltd,No
Http://opendatacommunities.org/id/metropolitan-district-council/leeds,Leeds City Council,30/11/2021,Resources and Housing,Leeds Building Services,Supplies and Services,Other Hired And Contracted Services,265,25/11/2021,2111-00022,0.00,14861.00,R,A Coole Electrical Ltd,No
Http://opendatacommunities.org/id/metropolitan-district-council/leeds,Leeds City Council,30/11/2021,Communities and Environment,Customer Access,Supplies and Services,Bought In Professional Services,277,03/11/2021,2111-00023,0.00,78.00,R,A D Dumitru,No
Http://opendatacommunities.org/id/metropolitan-district-council/leeds,Leeds City Council,30/11/2021,Communities and Environment,Customer Access,Supplies and Services,Bought In Professional Services,277,03/11/2021,2111-00024,0.00,27.00,R,A D Dumitru,No
Http://opendatacommunities.org/id/metropolitan-district-council/leeds,Leeds City Council,30/11/2021,Communities and Environment,Customer Access,Supplies and Services,Bought In Professional Services,277,10/11/2021,2111-00025,0.00,18.00,R,A D Dumitru,No
Http://opendatacommunities.org/id/metropolitan-district-council/leeds,Leeds City Council,30/11/2021,Communities and Environment,Customer Access,Supplies and Services,Bought In Professional Services,277,10/11/2021,2111-00026,0.00,22.50,R,A D Dumitru,No
Http://opendatacommunities.org/id/metropolitan-district-council/leeds,Leeds City Council,30/11/2021,Communities and Environment,Customer Access,Supplies and Services,Bought In Professional Services,277,17/11/2021,2111-00027,0.00,22.50,R,A D Dumitru,No
Http://opendatacommunities.org/id/metropolitan-district-council/leeds,Leeds City Council,30/11/2021,Communities and Environment,Customer Access,Supplies and Services,Bought In Professional Services,277,17/11/2021,2111-00028,0.00,18.00,R,A D Dumitru,No
Http://opendatacommunities.org/id/metropolitan-district-council/leeds,Leeds City Council,30/11/2021,Communities and Environment,Communities,Supplies and Services,Other Hired And Contracted Services,265,22/11/2021,2111-00029,0.00,25.00,R,REDACTED PERSONAL DATA,No
Http://opendatacommunities.org/id/metropolitan-district-council/leeds,Leeds City Council,30/11/2021,Communities and Environment,Customer Access,Supplies and Services,Bought In Professional Services,277,24/11/2021,2111-00030,0.00,45.00,R,A D Dumitru,No
Http://opendatacommunities.org/id/metropolitan-district-council/leeds,Leeds City Council,30/11/2021,Communities and Environment,Customer Access,Supplies and Services,Bought In Professional Services,277,24/11/2021,2111-00031,0.00,27.00,R,A D Dumitru,No
Http://opendatacommunities.org/id/metropolitan-district-council/leeds,Leeds City Council,30/11/2021,Communities and Environment,Customer Access,Supplies and Services,Bought In Professional Services,277,24/11/2021,2111-00032,0.00,18.00,R,A D Dumitru,No
Http://opendatacommunities.org/id/metropolitan-district-council/leeds,Leeds City Council,30/11/2021,Resources and Housing,HRA Housing Leeds,Capital,OTHER COSTS,7,15/11/2021,2111-00033,0.00,80.00,C,REDACTED PERSONAL DATA,No
Http://opendatacommunities.org/id/metropolitan-district-council/leeds,Leeds City Council,30/11/2021,Children and Families,Social Care,Agency Payments,Services Rendered By Other Organisations,511,03/11/2021,2111-00034,0.00,783.90,R,REDACTED PERSONAL DATA,No
Http://opendatacommunities.org/id/metropolitan-district-council/leeds,Leeds City Council,30/11/2021,Children and Families,Social Care,Agency Payments,Services Rendered By Voluntary Sector,505,05/11/2021,2111-00035,0.00,3806.61,R,REDACTED PERSONAL DATA,No
Http://opendatacommunities.org/id/metropolitan-district-council/leeds,Leeds City Council,30/11/2021,City Development,Highways,Capital,CONSTRUCTION,3,30/11/2021,2111-00036,0.00,4444.17,C,A E YATES LTD,No
Http://opendatacommunities.org/id/metropolitan-district-council/leeds,Leeds City Council,30/11/2021,Children and Families,Social Care,Agency Payments,Services Rendered By Other Organisations,511,03/11/2021,2111-00037,0.00,201.00,R,REDACTED PERSONAL DATA,No
Http://opendatacommunities.org/id/metropolitan-district-council/leeds,Leeds City Council,30/11/2021,Children and Families,Social Care,Agency Payments,Section 17,551,12/11/2021,2111-00038,0.00,132.00,R,REDACTED PERSONAL DATA,No
Http://opendatacommunities.org/id/metropolitan-district-council/leeds,Leeds City Council,30/11/2021,Children and Families,Social Care,Agency Payments,Section 17,551,15/11/2021,2111-00039,0.00,50.00,R,REDACTED PERSONAL DATA,No
Http://opendatacommunities.org/id/metropolitan-district-council/leeds,Leeds City Council,30/11/2021,Children and Families,Social Care,Agency Payments,Section 17,551,19/11/2021,2111-00040,0.00,132.00,R,REDACTED PERSONAL DATA,No
Http://opendatacommunities.org/id/metropolitan-district-council/leeds,Leeds City Council,30/11/2021,Children and Families,Social Care,Agency Payments,Section 17,551,30/11/2021,2111-00041,0.00,82.80,R,REDACTED PERSONAL DATA,No
Http://opendatacommunities.org/id/metropolitan-district-council/leeds,Leeds City Council,30/11/2021,Children and Families,Social Care,Agency Payments,Section 17,551,30/11/2021,2111-00042,0.00,84.00,R,REDACTED PERSONAL DATA,No
Http://opendatacommunities.org/id/metropolitan-district-council/leeds,Leeds City Council,30/11/2021,Children and Families,Social Care,Agency Payments,Services Rendered By Other Organisations,511,05/11/2021,2111-00043,0.00,178.40,R,REDACTED PERSONAL DATA,No
Http://opendatacommunities.org/id/metropolitan-district-council/leeds,Leeds City Council,30/11/2021,Children and Families,Social Care,Agency Payments,Services Rendered By Other Organisations,511,05/11/2021,2111-00044,0.00,587.05,R,REDACTED PERSONAL DATA,No
Http://opendatacommunities.org/id/metropolitan-district-council/leeds,Leeds City Council,30/11/2021,Adults and Health,Other Generic Services,Agency Payments,Fees To Carers,563,05/11/2021,2111-00045,0.00,163.80,R,REDACTED PERSONAL DATA,No
Http://opendatacommunities.org/id/metropolitan-district-council/leeds,Leeds City Council,30/11/2021,Adults and Health,Other Generic Services,Agency Payments,Fees To Carers,563,16/11/2021,2111-00046,0.00,433.78,R,REDACTED PERSONAL DATA,No
Http://opendatacommunities.org/id/metropolitan-district-council/leeds,Leeds City Council,30/11/2021,Adults and Health,Other Generic Services,Agency Payments,Fees To Carers,563,16/11/2021,2111-00047,0.00,50.40,R,REDACTED PERSONAL DATA,No
Http://opendatacommunities.org/id/metropolitan-district-council/leeds,Leeds City Council,30/11/2021,City Development,Libraries Arts & Heritage,Supplies and Services,Other Hired And Contracted Services,265,09/11/2021,2111-00048,0.00,225.00,R,REDACTED COMMERCIAL CONFIDENTIALITY,No
Http://opendatacommunities.org/id/metropolitan-district-council/leeds,Leeds City Council,30/11/2021,Resources and Housing,Leeds Building Services,Supplies and Services,Operational Materials,205,02/11/2021,2111-00049,0.00,2607.00,R,A J H  Pump Supply & Repair Ltd,No
Http://opendatacommunities.org/id/metropolitan-district-council/leeds,Leeds City Council,30/11/2021,Resources and Housing,Leeds Building Services,Supplies and Services,Other Hired And Contracted Services,265,02/11/2021,2111-00050,0.00,5800.00,R,A J H  Pump Supply & Repair Ltd,No
Http://opendatacommunities.org/id/metropolitan-district-council/leeds,Leeds City Council,30/11/2021,Resources and Housing,Leeds Building Services,Supplies and Services,Other Hired And Contracted Services,265,02/11/2021,2111-00051,0.00,728.00,R,A J H  Pump Supply & Repair Ltd,No
Http://opendatacommunities.org/id/metropolitan-district-council/leeds,Leeds City Council,30/11/2021,Resources and Housing,Leeds Building Services,Supplies and Services,Operational Materials,205,05/11/2021,2111-00052,0.00,471.00,R,A J H  Pump Supply & Repair Ltd,No
Http://opendatacommunities.org/id/metropolitan-district-council/leeds,Leeds City Council,30/11/2021,Resources and Housing,Leeds Building Services,Supplies and Services,Operational Materials,205,26/11/2021,2111-00053,0.00,795.00,R,A J H  Pump Supply & Repair Ltd,No
Http://opendatacommunities.org/id/metropolitan-district-council/leeds,Leeds City Council,30/11/2021,Communities and Environment,Parks and Countryside,Supplies and Services,Resaleable Materials,204,23/11/2021,2111-00054,0.00,288.00,R,A J PROMOTIONS,No
Http://opendatacommunities.org/id/metropolitan-district-council/leeds,Leeds City Council,30/11/2021,Children and Families,Social Care,Agency Payments,Services Rendered By Other Organisations,511,05/11/2021,2111-00055,0.00,1739.40,R,REDACTED PERSONAL DATA,No
Http://opendatacommunities.org/id/metropolitan-district-council/leeds,Leeds City Council,30/11/2021,Communities and Environment,Benefits Welfare and Poverty,Supplies and Services,Grant Related Expenditure,290,15/11/2021,2111-00056,0.00,500.00,R,REDACTED PERSONAL DATA,No
Http://opendatacommunities.org/id/metropolitan-district-council/leeds,Leeds City Council,30/11/2021,Children and Families,Social Care,Employees,Agency Staff,8,03/11/2021,2111-00057,0.00,87.50,R,A Little Something Extra Ltd,No
Http://opendatacommunities.org/id/metropolitan-district-council/leeds,Leeds City Council,30/11/2021,Children and Families,Social Care,Employees,Agency Staff,8,10/11/2021,2111-00058,0.00,350.00,R,A Little Something Extra Ltd,No
Http://opendatacommunities.org/id/metropolitan-district-council/leeds,Leeds City Council,30/11/2021,Children and Families,Social Care,Agency Payments,Services Rendered By Other Organisations,511,16/11/2021,2111-00059,0.00,507.50,R,A Little Something Extra Ltd,No
Http://opendatacommunities.org/id/metropolitan-district-council/leeds,Leeds City Council,30/11/2021,Children and Families,Social Care,Employees,Agency Staff,8,24/11/2021,2111-00060,0.00,490.00,R,A Little Something Extra Ltd,No
Http://opendatacommunities.org/id/metropolitan-district-council/leeds,Leeds City Council,30/11/2021,Communities and Environment,Customer Access,Supplies and Services,Bought In Professional Services,277,03/11/2021,2111-00061,0.00,13.50,R,A MOHAMMED,No
Http://opendatacommunities.org/id/metropolitan-district-council/leeds,Leeds City Council,30/11/2021,Communities and Environment,Customer Access,Supplies and Services,Bought In Professional Services,277,03/11/2021,2111-00062,0.00,18.00,R,A MOHAMMED,No
Http://opendatacommunities.org/id/metropolitan-district-council/leeds,Leeds City Council,30/11/2021,Communities and Environment,Customer Access,Supplies and Services,Bought In Professional Services,277,03/11/2021,2111-00063,0.00,18.00,R,A MOHAMMED,No
Http://opendatacommunities.org/id/metropolitan-district-council/leeds,Leeds City Council,30/11/2021,Communities and Environment,Customer Access,Supplies and Services,Bought In Professional Services,277,03/11/2021,2111-00064,0.00,18.00,R,A MOHAMMED,No
Http://opendatacommunities.org/id/metropolitan-district-council/leeds,Leeds City Council,30/11/2021,Communities and Environment,Customer Access,Supplies and Services,Bought In Professional Services,277,03/11/2021,2111-00065,0.00,18.00,R,A MOHAMMED,No
Http://opendatacommunities.org/id/metropolitan-district-council/leeds,Leeds City Council,30/11/2021,Communities and Environment,Customer Access,Supplies and Services,Bought In Professional Services,277,03/11/2021,2111-00066,0.00,18.00,R,A MOHAMMED,No
Http://opendatacommunities.org/id/metropolitan-district-council/leeds,Leeds City Council,30/11/2021,Communities and Environment,Customer Access,Supplies and Services,Bought In Professional Services,277,03/11/2021,2111-00067,0.00,18.00,R,A MOHAMMED,No
Http://opendatacommunities.org/id/metropolitan-district-council/leeds,Leeds City Council,30/11/2021,Communities and Environment,Customer Access,Supplies and Services,Bought In Professional Services,277,03/11/2021,2111-00068,0.00,18.00,R,A MOHAMMED,No
Http://opendatacommunities.org/id/metropolitan-district-council/leeds,Leeds City Council,30/11/2021,Communities and Environment,Customer Access,Supplies and Services,Bought In Professional Services,277,03/11/2021,2111-00069,0.00,13.50,R,A MOHAMMED,No
Http://opendatacommunities.org/id/metropolitan-district-council/leeds,Leeds City Council,30/11/2021,Communities and Environment,Customer Access,Supplies and Services,Bought In Professional Services,277,03/11/2021,2111-00070,0.00,18.00,R,A MOHAMMED,No
Http://opendatacommunities.org/id/metropolitan-district-council/leeds,Leeds City Council,30/11/2021,Communities and Environment,Customer Access,Supplies and Services,Bought In Professional Services,277,03/11/2021,2111-00071,0.00,9.00,R,A MOHAMMED,No
Http://opendatacommunities.org/id/metropolitan-district-council/leeds,Leeds City Council,30/11/2021,Communities and Environment,Customer Access,Supplies and Services,Bought In Professional Services,277,03/11/2021,2111-00072,0.00,18.00,R,A MOHAMMED,No
Http://opendatacommunities.org/id/metropolitan-district-council/leeds,Leeds City Council,30/11/2021,Communities and Environment,Customer Access,Supplies and Services,Bought In Professional Services,277,03/11/2021,2111-00073,0.00,18.00,R,A MOHAMMED,No
Http://opendatacommunities.org/id/metropolitan-district-council/leeds,Leeds City Council,30/11/2021,Communities and Environment,Customer Access,Supplies and Services,Bought In Professional Services,277,03/11/2021,2111-00074,0.00,9.00,R,A MOHAMMED,No
Http://opendatacommunities.org/id/metropolitan-district-council/leeds,Leeds City Council,30/11/2021,Communities and Environment,Customer Access,Supplies and Services,Bought In Professional Services,277,03/11/2021,2111-00075,0.00,27.00,R,A MOHAMMED,No
Http://opendatacommunities.org/id/metropolitan-district-council/leeds,Leeds City Council,30/11/2021,Communities and Environment,Customer Access,Supplies and Services,Bought In Professional Services,277,03/11/2021,2111-00076,0.00,18.00,R,A MOHAMMED,No
Http://opendatacommunities.org/id/metropolitan-district-council/leeds,Leeds City Council,30/11/2021,Communities and Environment,Customer Access,Supplies and Services,Bought In Professional Services,277,03/11/2021,2111-00077,0.00,27.00,R,A MOHAMMED,No
Http://opendatacommunities.org/id/metropolitan-district-council/leeds,Leeds City Council,30/11/2021,Communities and Environment,Customer Access,Supplies and Services,Bought In Professional Services,277,10/11/2021,2111-00078,0.00,13.50,R,A MOHAMMED,No
Http://opendatacommunities.org/id/metropolitan-district-council/leeds,Leeds City Council,30/11/2021,Communities and Environment,Customer Access,Supplies and Services,Bought In Professional Services,277,10/11/2021,2111-00079,0.00,9.00,R,A MOHAMMED,No
Http://opendatacommunities.org/id/metropolitan-district-council/leeds,Leeds City Council,30/11/2021,Communities and Environment,Customer Access,Supplies and Services,Bought In Professional Services,277,10/11/2021,2111-00080,0.00,18.00,R,A MOHAMMED,No
Http://opendatacommunities.org/id/metropolitan-district-council/leeds,Leeds City Council,30/11/2021,Communities and Environment,Customer Access,Supplies and Services,Bought In Professional Services,277,10/11/2021,2111-00081,0.00,18.00,R,A MOHAMMED,No
Http://opendatacommunities.org/id/metropolitan-district-council/leeds,Leeds City Council,30/11/2021,Communities and Environment,Customer Access,Supplies and Services,Bought In Professional Services,277,10/11/2021,2111-00082,0.00,13.50,R,A MOHAMMED,No
Http://opendatacommunities.org/id/metropolitan-district-council/leeds,Leeds City Council,30/11/2021,Communities and Environment,Customer Access,Supplies and Services,Bought In Professional Services,277,10/11/2021,2111-00083,0.00,18.00,R,A MOHAMMED,No
Http://opendatacommunities.org/id/metropolitan-district-council/leeds,Leeds City Council,30/11/2021,Communities and Environment,Customer Access,Supplies and Services,Bought In Professional Services,277,17/11/2021,2111-00084,0.00,18.00,R,A MOHAMMED,No
Http://opendatacommunities.org/id/metropolitan-district-council/leeds,Leeds City Council,30/11/2021,Communities and Environment,Customer Access,Supplies and Services,Bought In Professional Services,277,17/11/2021,2111-00085,0.00,49.50,R,A MOHAMMED,No
Http://opendatacommunities.org/id/metropolitan-district-council/leeds,Leeds City Council,30/11/2021,Communities and Environment,Customer Access,Supplies and Services,Bought In Professional Services,277,17/11/2021,2111-00086,0.00,18.00,R,A MOHAMMED,No
Http://opendatacommunities.org/id/metropolitan-district-council/leeds,Leeds City Council,30/11/2021,Communities and Environment,Customer Access,Supplies and Services,Bought In Professional Services,277,17/11/2021,2111-00087,0.00,18.00,R,A MOHAMMED,No
Http://opendatacommunities.org/id/metropolitan-district-council/leeds,Leeds City Council,30/11/2021,Communities and Environment,Customer Access,Supplies and Services,Bought In Professional Services,277,17/11/2021,2111-00088,0.00,18.00,R,A MOHAMMED,No
Http://opendatacommunities.org/id/metropolitan-district-council/leeds,Leeds City Council,30/11/2021,Communities and Environment,Customer Access,Supplies and Services,Bought In Professional Services,277,17/11/2021,2111-00089,0.00,18.00,R,A MOHAMMED,No
Http://opendatacommunities.org/id/metropolitan-district-council/leeds,Leeds City Council,30/11/2021,Communities and Environment,Customer Access,Supplies and Services,Bought In Professional Services,277,17/11/2021,2111-00090,0.00,18.00,R,A MOHAMMED,No
Http://opendatacommunities.org/id/metropolitan-district-council/leeds,Leeds City Council,30/11/2021,Communities and Environment,Customer Access,Supplies and Services,Bought In Professional Services,277,17/11/2021,2111-00091,0.00,18.00,R,A MOHAMMED,No
Http://opendatacommunities.org/id/metropolitan-district-council/leeds,Leeds City Council,30/11/2021,Communities and Environment,Customer Access,Supplies and Services,Bought In Professional Services,277,17/11/2021,2111-00092,0.00,18.00,R,A MOHAMMED,No
Http://opendatacommunities.org/id/metropolitan-district-council/leeds,Leeds City Council,30/11/2021,Communities and Environment,Customer Access,Supplies and Services,Bought In Professional Services,277,17/11/2021,2111-00093,0.00,18.00,R,A MOHAMMED,No
Http://opendatacommunities.org/id/metropolitan-district-council/leeds,Leeds City Council,30/11/2021,Communities and Environment,Customer Access,Supplies and Services,Bought In Professional Services,277,24/11/2021,2111-00094,0.00,5.00,R,A MOHAMMED,No
Http://opendatacommunities.org/id/metropolitan-district-council/leeds,Leeds City Council,30/11/2021,Communities and Environment,Customer Access,Supplies and Services,Bought In Professional Services,277,24/11/2021,2111-00095,0.00,18.00,R,A MOHAMMED,No
Http://opendatacommunities.org/id/metropolitan-district-council/leeds,Leeds City Council,30/11/2021,Communities and Environment,Customer Access,Supplies and Services,Bought In Professional Services,277,24/11/2021,2111-00096,0.00,18.00,R,A MOHAMMED,No
Http://opendatacommunities.org/id/metropolitan-district-council/leeds,Leeds City Council,30/11/2021,Communities and Environment,Customer Access,Supplies and Services,Bought In Professional Services,277,24/11/2021,2111-00097,0.00,18.00,R,A MOHAMMED,No
Http://opendatacommunities.org/id/metropolitan-district-council/leeds,Leeds City Council,30/11/2021,Communities and Environment,Customer Access,Supplies and Services,Bought In Professional Services,277,24/11/2021,2111-00098,0.00,22.50,R,A MOHAMMED,No
Http://opendatacommunities.org/id/metropolitan-district-council/leeds,Leeds City Council,30/11/2021,Communities and Environment,Customer Access,Supplies and Services,Bought In Professional Services,277,24/11/2021,2111-00099,0.00,18.00,R,A MOHAMMED,No
Http://opendatacommunities.org/id/metropolitan-district-council/leeds,Leeds City Council,30/11/2021,Communities and Environment,Customer Access,Supplies and Services,Bought In Professional Services,277,24/11/2021,2111-00100,0.00,18.00,R,A MOHAMMED,No
Http://opendatacommunities.org/id/metropolitan-district-council/leeds,Leeds City Council,30/11/2021,Children and Families,Social Care,Agency Payments,Services Rendered By Other Organisations,511,03/11/2021,2111-00101,0.00,1567.80,R,REDACTED PERSONAL DATA,No
Http://opendatacommunities.org/id/metropolitan-district-council/leeds,Leeds City Council,30/11/2021,Children and Families,Social Care,Agency Payments,Services Rendered By Other Organisations,511,05/11/2021,2111-00102,0.00,1672.50,R,REDACTED PERSONAL DATA,No
Http://opendatacommunities.org/id/metropolitan-district-council/leeds,Leeds City Council,30/11/2021,Communities and Environment,Customer Access,Supplies and Services,Bought In Professional Services,277,03/11/2021,2111-00103,0.00,18.00,R,A NAMAKI,No
Http://opendatacommunities.org/id/metropolitan-district-council/leeds,Leeds City Council,30/11/2021,Communities and Environment,Customer Access,Supplies and Services,Bought In Professional Services,277,10/11/2021,2111-00104,0.00,18.00,R,A NAMAKI,No
Http://opendatacommunities.org/id/metropolitan-district-council/leeds,Leeds City Council,30/11/2021,Communities and Environment,Customer Access,Supplies and Services,Bought In Professional Services,277,10/11/2021,2111-00105,0.00,36.00,R,A NAMAKI,No
Http://opendatacommunities.org/id/metropolitan-district-council/leeds,Leeds City Council,30/11/2021,Communities and Environment,Customer Access,Supplies and Services,Bought In Professional Services,277,10/11/2021,2111-00106,0.00,45.00,R,A NAMAKI,No
Http://opendatacommunities.org/id/metropolitan-district-council/leeds,Leeds City Council,30/11/2021,Communities and Environment,Customer Access,Supplies and Services,Bought In Professional Services,277,10/11/2021,2111-00107,0.00,72.00,R,A NAMAKI,No
Http://opendatacommunities.org/id/metropolitan-district-council/leeds,Leeds City Council,30/11/2021,Communities and Environment,Customer Access,Supplies and Services,Bought In Professional Services,277,10/11/2021,2111-00108,0.00,18.00,R,A NAMAKI,No
Http://opendatacommunities.org/id/metropolitan-district-council/leeds,Leeds City Council,30/11/2021,Communities and Environment,Customer Access,Supplies and Services,Bought In Professional Services,277,10/11/2021,2111-00109,0.00,22.80,R,A NAMAKI,No
Http://opendatacommunities.org/id/metropolitan-district-council/leeds,Leeds City Council,30/11/2021,Communities and Environment,Customer Access,Supplies and Services,Bought In Professional Services,277,10/11/2021,2111-00110,0.00,18.00,R,A NAMAKI,No
Http://opendatacommunities.org/id/metropolitan-district-council/leeds,Leeds City Council,30/11/2021,Communities and Environment,Customer Access,Supplies and Services,Bought In Professional Services,277,10/11/2021,2111-00111,0.00,18.00,R,A NAMAKI,No
Http://opendatacommunities.org/id/metropolitan-district-council/leeds,Leeds City Council,30/11/2021,Communities and Environment,Customer Access,Supplies and Services,Bought In Professional Services,277,17/11/2021,2111-00112,0.00,19.50,R,A NAMAKI,No
Http://opendatacommunities.org/id/metropolitan-district-council/leeds,Leeds City Council,30/11/2021,Communities and Environment,Customer Access,Supplies and Services,Bought In Professional Services,277,17/11/2021,2111-00113,0.00,18.00,R,A NAMAKI,No
Http://opendatacommunities.org/id/metropolitan-district-council/leeds,Leeds City Council,30/11/2021,Communities and Environment,Customer Access,Supplies and Services,Bought In Professional Services,277,17/11/2021,2111-00114,0.00,18.00,R,A NAMAKI,No
Http://opendatacommunities.org/id/metropolitan-district-council/leeds,Leeds City Council,30/11/2021,Communities and Environment,Customer Access,Supplies and Services,Bought In Professional Services,277,24/11/2021,2111-00115,0.00,90.00,R,A NAMAKI,No
Http://opendatacommunities.org/id/metropolitan-district-council/leeds,Leeds City Council,30/11/2021,Communities and Environment,Customer Access,Supplies and Services,Bought In Professional Services,277,24/11/2021,2111-00116,0.00,18.00,R,A NAMAKI,No
Http://opendatacommunities.org/id/metropolitan-district-council/leeds,Leeds City Council,30/11/2021,Communities and Environment,Customer Access,Supplies and Services,Bought In Professional Services,277,24/11/2021,2111-00117,0.00,18.00,R,A NAMAKI,No
Http://opendatacommunities.org/id/metropolitan-district-council/leeds,Leeds City Council,30/11/2021,Communities and Environment,Customer Access,Supplies and Services,Bought In Professional Services,277,24/11/2021,2111-00118,0.00,22.50,R,A NAMAKI,No
Http://opendatacommunities.org/id/metropolitan-district-council/leeds,Leeds City Council,30/11/2021,Communities and Environment,Customer Access,Supplies and Services,Bought In Professional Services,277,24/11/2021,2111-00119,0.00,36.00,R,A NAMAKI,No
Http://opendatacommunities.org/id/metropolitan-district-council/leeds,Leeds City Council,30/11/2021,Communities and Environment,Customer Access,Supplies and Services,Bought In Professional Services,277,24/11/2021,2111-00120,0.00,18.00,R,A NAMAKI,No
Http://opendatacommunities.org/id/metropolitan-district-council/leeds,Leeds City Council,30/11/2021,Communities and Environment,Customer Access,Supplies and Services,Bought In Professional Services,277,24/11/2021,2111-00121,0.00,18.00,R,A NAMAKI,No
Http://opendatacommunities.org/id/metropolitan-district-council/leeds,Leeds City Council,30/11/2021,Communities and Environment,Customer Access,Supplies and Services,Bought In Professional Services,277,24/11/2021,2111-00122,0.00,18.00,R,A NAMAKI,No
Http://opendatacommunities.org/id/metropolitan-district-council/leeds,Leeds City Council,30/11/2021,Communities and Environment,Customer Access,Supplies and Services,Bought In Professional Services,277,24/11/2021,2111-00123,0.00,9.00,R,A NAMAKI,No
Http://opendatacommunities.org/id/metropolitan-district-council/leeds,Leeds City Council,30/11/2021,Communities and Environment,Customer Access,Supplies and Services,Bought In Professional Services,277,24/11/2021,2111-00124,0.00,18.00,R,A NAMAKI,No
Http://opendatacommunities.org/id/metropolitan-district-council/leeds,Leeds City Council,30/11/2021,Resources and Housing,HRA Housing Leeds,Capital,OTHER COSTS,7,25/11/2021,2111-00125,0.00,50.00,C,REDACTED PERSONAL DATA,No
Http://opendatacommunities.org/id/metropolitan-district-council/leeds,Leeds City Council,30/11/2021,Communities and Environment,Benefits Welfare and Poverty,Supplies and Services,Grant Related Expenditure,298,15/11/2021,2111-00126,0.00,500.00,R,REDACTED PERSONAL DATA,No
Http://opendatacommunities.org/id/metropolitan-district-council/leeds,Leeds City Council,30/11/2021,Resources and Housing,Shared Services,Supplies and Services,Other Hired And Contracted Services,265,03/11/2021,2111-00127,0.00,150.00,R,A Star Couriers Ltd,No
Http://opendatacommunities.org/id/metropolitan-district-council/leeds,Leeds City Council,30/11/2021,Communities and Environment,Waste Management,Employees,Training & Development,70,11/11/2021,2111-00128,0.00,267.80,R,A T Nerac Ltd,No
Http://opendatacommunities.org/id/metropolitan-district-council/leeds,Leeds City Council,30/11/2021,Children and Families,Social Care,Agency Payments,Independent Fostering Agencies,509,10/11/2021,2111-00129,0.00,1658.00,R,A Taxis,No
Http://opendatacommunities.org/id/metropolitan-district-council/leeds,Leeds City Council,30/11/2021,City Development,Economic Development,Supplies and Services,Grant Related Expenditure,290,12/11/2021,2111-00130,0.00,1648.00,R,A Van About Town,No
Http://opendatacommunities.org/id/metropolitan-district-council/leeds,Leeds City Council,30/11/2021,Children and Families,Social Care,Agency Payments,Services Rendered By Other Organisations,511,05/11/2021,2111-00131,0.00,869.70,R,REDACTED PERSONAL DATA,No
Http://opendatacommunities.org/id/metropolitan-district-council/leeds,Leeds City Council,30/11/2021,Children and Families,Social Care,Agency Payments,Placement Support,550,23/11/2021,2111-00132,0.00,200.00,R,REDACTED PERSONAL DATA,No
Http://opendatacommunities.org/id/metropolitan-district-council/leeds,Leeds City Council,30/11/2021,Resources and Housing,HRA Housing Leeds,Capital,OTHER COSTS,7,04/11/2021,2111-00133,0.00,80.00,C,REDACTED PERSONAL DATA,No
Http://opendatacommunities.org/id/metropolitan-district-council/leeds,Leeds City Council,30/11/2021,Resources and Housing,HRA Housing Leeds,Capital,OTHER COSTS,7,15/11/2021,2111-00134,0.00,100.00,C,REDACTED PERSONAL DATA,No
Http://opendatacommunities.org/id/metropolitan-district-council/leeds,Leeds City Council,30/11/2021,Resources and Housing,Leeds Building Services,Supplies and Services,Operational Materials,205,25/11/2021,2111-00135,0.00,1120.00,R,A1 STAIR LIFT SERVICES,No
Http://opendatacommunities.org/id/metropolitan-district-council/leeds,Leeds City Council,30/11/2021,Children and Families,Social Care,Supplies and Services,Operational Materials,205,04/10/2021,2111-00136,0.00,250.76,R,Aardvark Archery,Yes
Http://opendatacommunities.org/id/metropolitan-district-council/leeds,Leeds City Council,30/11/2021,Adults and Health,Services For Older People - 65 And Over,Agency Payments,Residential Care Dementia,571,10/11/2021,2111-00137,0.00,1245.20,R,Aaron Court Care Home,No
Http://opendatacommunities.org/id/metropolitan-district-council/leeds,Leeds City Council,30/11/2021,Communities and Environment,Benefits Welfare and Poverty,Supplies and Services,Grant Related Expenditure,298,02/11/2021,2111-00138,0.00,500.00,R,REDACTED PERSONAL DATA,No
Http://opendatacommunities.org/id/metropolitan-district-council/leeds,Leeds City Council as Accountable Body,30/11/2021,Social Services Pooled Budgets,Leeds Community Equip Store Pooled Budgt,Supplies and Services,Other Equipment,203,25/11/2021,2111-00139,0.00,1119.00,R,AAT (GB) LTD,No
Http://opendatacommunities.org/id/metropolitan-district-council/leeds,Leeds City Council as Accountable Body,30/11/2021,Social Services Pooled Budgets,Leeds Community Equip Store Pooled Budgt,Supplies and Services,Other Equipment,203,26/11/2021,2111-00140,0.00,464.00,R,AAT (GB) LTD,No
Http://opendatacommunities.org/id/metropolitan-district-council/leeds,Leeds City Council,30/11/2021,Adults and Health,Services For Older People - 65 And Over,Supplies and Services,Publication And Promotion,267,14/10/2021,2111-00141,0.00,40.68,R,Abalone Graphics Ltd,Yes
Http://opendatacommunities.org/id/metropolitan-district-council/leeds,Leeds City Council,30/11/2021,Adults and Health,Public Health,Agency Payments,Public Health Commissioned Services,526,08/11/2021,2111-00142,0.00,1821.40,R,Abbey Grange Medical Practice,No
Http://opendatacommunities.org/id/metropolitan-district-council/leeds,Leeds City Council,30/11/2021,Children and Families,Learning,Supplies and Services,Other Hired And Contracted Services,265,23/11/2021,2111-00143,0.00,1575.00,R,Abbey Multi Academy Trust,No
Http://opendatacommunities.org/id/metropolitan-district-council/leeds,Leeds City Council,30/11/2021,Communities and Environment,Benefits Welfare and Poverty,Supplies and Services,Grant Related Expenditure,298,08/11/2021,2111-00144,0.00,500.00,R,REDACTED PERSONAL DATA,No
Http://opendatacommunities.org/id/metropolitan-district-council/leeds,Leeds City Council,30/11/2021,Children and Families,Social Care,Agency Payments,Services Rendered By Other Organisations,511,03/11/2021,2111-00145,0.00,348.40,R,REDACTED PERSONAL DATA,No
Http://opendatacommunities.org/id/metropolitan-district-council/leeds,Leeds City Council,30/11/2021,Communities and Environment,Parks and Countryside,Supplies and Services,Other Hired And Contracted Services,265,05/11/2021,2111-00146,0.00,550.00,R,Abbotts Memorials,No
Http://opendatacommunities.org/id/metropolitan-district-council/leeds,Leeds City Council,30/11/2021,Communities and Environment,Parks and Countryside,Supplies and Services,Other Hired And Contracted Services,265,19/11/2021,2111-00147,0.00,550.00,R,Abbotts Memorials,No
Http://opendatacommunities.org/id/metropolitan-district-council/leeds,Leeds City Council,30/11/2021,Communities and Environment,Parks and Countryside,Supplies and Services,Other Hired And Contracted Services,265,26/11/2021,2111-00148,0.00,600.00,R,Abbotts Memorials,No
Http://opendatacommunities.org/id/metropolitan-district-council/leeds,Leeds City Council,30/11/2021,Communities and Environment,Parks and Countryside,Supplies and Services,Other Hired And Contracted Services,265,26/11/2021,2111-00149,0.00,550.00,R,Abbotts Memorials,No
Http://opendatacommunities.org/id/metropolitan-district-council/leeds,Leeds City Council,30/11/2021,Children and Families,Social Care,Agency Payments,General External Residential Placements,507,17/11/2021,2111-00150,0.00,15942.99,R,ABC Care and Educationd LTD,No
Http://opendatacommunities.org/id/metropolitan-district-council/leeds,Leeds City Council,30/11/2021,Children and Families,Social Care,Agency Payments,Services Rendered By Other Organisations,511,03/11/2021,2111-00151,0.00,6009.90,R,ABC NURSERY AT LUFC,No
Http://opendatacommunities.org/id/metropolitan-district-council/leeds,Leeds City Council,30/11/2021,Children and Families,Social Care,Agency Payments,Services Rendered By Other Organisations,511,05/11/2021,2111-00152,0.00,5000.78,R,ABC NURSERY AT LUFC,No
Http://opendatacommunities.org/id/metropolitan-district-council/leeds,Leeds City Council,30/11/2021,Children and Families,Social Care,Agency Payments,Services Rendered By Other Organisations,511,03/11/2021,2111-00153,0.00,1567.80,R,Abc@D'S Childcare,No
Http://opendatacommunities.org/id/metropolitan-district-council/leeds,Leeds City Council,30/11/2021,Children and Families,Social Care,Agency Payments,Services Rendered By Other Organisations,511,05/11/2021,2111-00154,0.00,7827.30,R,Abc@D'S Childcare,No
Http://opendatacommunities.org/id/metropolitan-district-council/leeds,Leeds City Council,30/11/2021,Resources and Housing,Sustainable Energy & Climate Change,Capital,OTHER COSTS,7,23/11/2021,2111-00155,0.00,2100.00,C,REDACTED COMMERCIAL CONFIDENTIALITY,No
Http://opendatacommunities.org/id/metropolitan-district-council/leeds,Leeds City Council,30/11/2021,Communities and Environment,Benefits Welfare and Poverty,Supplies and Services,Grant Related Expenditure,290,10/11/2021,2111-00156,0.00,500.00,R,REDACTED PERSONAL DATA,No
Http://opendatacommunities.org/id/metropolitan-district-council/leeds,Leeds City Council,30/11/2021,Communities and Environment,Customer Access,Supplies and Services,Bought In Professional Services,277,03/11/2021,2111-00157,0.00,13.50,R,Abdul Kalam,No
Http://opendatacommunities.org/id/metropolitan-district-council/leeds,Leeds City Council,30/11/2021,Communities and Environment,Customer Access,Supplies and Services,Bought In Professional Services,277,10/11/2021,2111-00158,0.00,18.00,R,Abdul Kalam,No
Http://opendatacommunities.org/id/metropolitan-district-council/leeds,Leeds City Council,30/11/2021,Communities and Environment,Customer Access,Supplies and Services,Bought In Professional Services,277,10/11/2021,2111-00159,0.00,18.00,R,Abdul Kalam,No
Http://opendatacommunities.org/id/metropolitan-district-council/leeds,Leeds City Council,30/11/2021,Communities and Environment,Customer Access,Supplies and Services,Bought In Professional Services,277,10/11/2021,2111-00160,0.00,18.00,R,Abdul Kalam,No
Http://opendatacommunities.org/id/metropolitan-district-council/leeds,Leeds City Council,30/11/2021,Communities and Environment,Customer Access,Supplies and Services,Bought In Professional Services,277,17/11/2021,2111-00161,0.00,18.00,R,Abdul Kalam,No
Http://opendatacommunities.org/id/metropolitan-district-council/leeds,Leeds City Council,30/11/2021,Communities and Environment,Customer Access,Supplies and Services,Bought In Professional Services,277,24/11/2021,2111-00162,0.00,18.00,R,Abdul Kalam,No
Http://opendatacommunities.org/id/metropolitan-district-council/leeds,Leeds City Council,30/11/2021,Communities and Environment,Customer Access,Supplies and Services,Bought In Professional Services,277,24/11/2021,2111-00163,0.00,9.00,R,Abdul Kalam,No
Http://opendatacommunities.org/id/metropolitan-district-council/leeds,Leeds City Council,30/11/2021,Communities and Environment,Elections Licensing and Registration,External Income,Admissions Booking Fees & Ticket Sales,933,25/11/2021,2111-00164,0.00,130.00,R,Abdul Qadeer,No
Http://opendatacommunities.org/id/metropolitan-district-council/leeds,Leeds City Council,30/11/2021,Resources and Housing,Sustainable Energy & Climate Change,Capital,OTHER COSTS,7,02/11/2021,2111-00165,0.00,2100.00,C,REDACTED COMMERCIAL CONFIDENTIALITY,No
Http://opendatacommunities.org/id/metropolitan-district-council/leeds,Leeds City Council,30/11/2021,Communities and Environment,Customer Access,Supplies and Services,Bought In Professional Services,277,10/11/2021,2111-00166,0.00,9.00,R,Abdulahad Denha,No
Http://opendatacommunities.org/id/metropolitan-district-council/leeds,Leeds City Council,30/11/2021,Communities and Environment,Customer Access,Supplies and Services,Bought In Professional Services,277,17/11/2021,2111-00167,0.00,27.00,R,Abdulahad Denha,No
Http://opendatacommunities.org/id/metropolitan-district-council/leeds,Leeds City Council,30/11/2021,Communities and Environment,Customer Access,Supplies and Services,Bought In Professional Services,277,17/11/2021,2111-00168,0.00,27.00,R,Abdulahad Denha,No
Http://opendatacommunities.org/id/metropolitan-district-council/leeds,Leeds City Council,30/11/2021,Communities and Environment,Customer Access,Supplies and Services,Bought In Professional Services,277,17/11/2021,2111-00169,0.00,18.00,R,Abdulahad Denha,No
Http://opendatacommunities.org/id/metropolitan-district-council/leeds,Leeds City Council,30/11/2021,Communities and Environment,Customer Access,Supplies and Services,Bought In Professional Services,277,24/11/2021,2111-00170,0.00,18.00,R,Abdulahad Denha,No
Http://opendatacommunities.org/id/metropolitan-district-council/leeds,Leeds City Council,30/11/2021,Children and Families,Social Care,Agency Payments,Placement Support,550,25/11/2021,2111-00171,0.00,120.00,R,REDACTED PERSONAL DATA,No
Http://opendatacommunities.org/id/metropolitan-district-council/leeds,Leeds City Council,30/11/2021,Communities and Environment,Customer Access,Supplies and Services,Bought In Professional Services,277,03/11/2021,2111-00172,0.00,22.50,R,Abdulrahim Dastyar,No
Http://opendatacommunities.org/id/metropolitan-district-council/leeds,Leeds City Council,30/11/2021,Communities and Environment,Customer Access,Supplies and Services,Bought In Professional Services,277,03/11/2021,2111-00173,0.00,21.00,R,Abdulrahim Dastyar,No
Http://opendatacommunities.org/id/metropolitan-district-council/leeds,Leeds City Council,30/11/2021,Communities and Environment,Customer Access,Supplies and Services,Bought In Professional Services,277,10/11/2021,2111-00174,0.00,18.00,R,Abdulrahim Dastyar,No
Http://opendatacommunities.org/id/metropolitan-district-council/leeds,Leeds City Council,30/11/2021,Communities and Environment,Customer Access,Supplies and Services,Bought In Professional Services,277,17/11/2021,2111-00175,0.00,22.50,R,Abdulrahim Dastyar,No
Http://opendatacommunities.org/id/metropolitan-district-council/leeds,Leeds City Council,30/11/2021,Communities and Environment,Customer Access,Supplies and Services,Bought In Professional Services,277,17/11/2021,2111-00176,0.00,22.50,R,Abdulrahim Dastyar,No
Http://opendatacommunities.org/id/metropolitan-district-council/leeds,Leeds City Council,30/11/2021,Communities and Environment,Customer Access,Supplies and Services,Bought In Professional Services,277,17/11/2021,2111-00177,0.00,9.00,R,Abdulrahim Dastyar,No
Http://opendatacommunities.org/id/metropolitan-district-council/leeds,Leeds City Council,30/11/2021,Communities and Environment,Customer Access,Supplies and Services,Bought In Professional Services,277,17/11/2021,2111-00178,0.00,9.00,R,Abdulrahim Dastyar,No
Http://opendatacommunities.org/id/metropolitan-district-council/leeds,Leeds City Council,30/11/2021,Communities and Environment,Customer Access,Supplies and Services,Bought In Professional Services,277,24/11/2021,2111-00179,0.00,18.00,R,Abdulrahim Dastyar,No
Http://opendatacommunities.org/id/metropolitan-district-council/leeds,Leeds City Council,30/11/2021,Communities and Environment,Customer Access,Supplies and Services,Bought In Professional Services,277,24/11/2021,2111-00180,0.00,18.00,R,Abdulrahim Dastyar,No
Http://opendatacommunities.org/id/metropolitan-district-council/leeds,Leeds City Council,30/11/2021,Communities and Environment,Customer Access,Supplies and Services,Bought In Professional Services,277,24/11/2021,2111-00181,0.00,9.00,R,Abdulrahim Dastyar,No
Http://opendatacommunities.org/id/metropolitan-district-council/leeds,Leeds City Council,30/11/2021,Children and Families,Social Care,Appropriations,16 Plus Top Up Allowance,625,05/11/2021,2111-00182,0.00,30.00,R,REDACTED PERSONAL DATA,No
Http://opendatacommunities.org/id/metropolitan-district-council/leeds,Leeds City Council,30/11/2021,Children and Families,Social Care,Appropriations,16 Plus Top Up Allowance,625,12/11/2021,2111-00183,0.00,30.00,R,REDACTED PERSONAL DATA,No
Http://opendatacommunities.org/id/metropolitan-district-council/leeds,Leeds City Council,30/11/2021,Children and Families,Social Care,Appropriations,16 Plus Top Up Allowance,625,19/11/2021,2111-00184,0.00,30.00,R,REDACTED PERSONAL DATA,No
Http://opendatacommunities.org/id/metropolitan-district-council/leeds,Leeds City Council,30/11/2021,Children and Families,Social Care,Appropriations,16 Plus Top Up Allowance,625,26/11/2021,2111-00185,0.00,30.00,R,REDACTED PERSONAL DATA,No
Http://opendatacommunities.org/id/metropolitan-district-council/leeds,Leeds City Council,30/11/2021,Adults and Health,Services For Older People - 65 And Over,Agency Payments,Nursing Home,570,10/11/2021,2111-00186,0.00,19738.25,R,Aberford Hall,No
Http://opendatacommunities.org/id/metropolitan-district-council/leeds,Leeds City Council,30/11/2021,Adults and Health,Other Adult Services,Agency Payments,Nursing Home,570,16/11/2021,2111-00187,0.00,66150.00,R,Aberford Hall,No
Http://opendatacommunities.org/id/metropolitan-district-council/leeds,Leeds City Council,30/11/2021,Resources and Housing,Leeds Building Services,Supplies and Services,Operational Materials,205,19/11/2021,2111-00188,0.00,8.75,R,ABI GARAGE DOORS LTD,No
Http://opendatacommunities.org/id/metropolitan-district-council/leeds,Leeds City Council,30/11/2021,Resources and Housing,Leeds Building Services,Supplies and Services,Operational Materials,205,19/11/2021,2111-00189,0.00,68.08,R,ABI GARAGE DOORS LTD,No
Http://opendatacommunities.org/id/metropolitan-district-council/leeds,Leeds City Council,30/11/2021,Communities and Environment,Customer Access,Supplies and Services,Bought In Professional Services,277,10/11/2021,2111-00190,0.00,10.80,R,Abida Begum,No
Http://opendatacommunities.org/id/metropolitan-district-council/leeds,Leeds City Council,30/11/2021,Communities and Environment,Customer Access,Supplies and Services,Bought In Professional Services,277,17/11/2021,2111-00191,0.00,25.50,R,Abida Begum,No
Http://opendatacommunities.org/id/metropolitan-district-council/leeds,Leeds City Council,30/11/2021,Communities and Environment,Customer Access,Supplies and Services,Bought In Professional Services,277,17/11/2021,2111-00192,0.00,9.00,R,Abida Begum,No
Http://opendatacommunities.org/id/metropolitan-district-council/leeds,Leeds City Council,30/11/2021,Communities and Environment,Customer Access,Supplies and Services,Bought In Professional Services,277,24/11/2021,2111-00193,0.00,18.00,R,Abida Begum,No
Http://opendatacommunities.org/id/metropolitan-district-council/leeds,Leeds City Council,30/11/2021,Children and Families,Social Care,Appropriations,Leaving Care Allowances,634,05/11/2021,2111-00194,0.00,40.00,R,REDACTED PERSONAL DATA,No
Http://opendatacommunities.org/id/metropolitan-district-council/leeds,Leeds City Council,30/11/2021,Children and Families,Social Care,Appropriations,Leaving Care Allowances,634,12/11/2021,2111-00195,0.00,40.00,R,REDACTED PERSONAL DATA,No
Http://opendatacommunities.org/id/metropolitan-district-council/leeds,Leeds City Council,30/11/2021,Children and Families,Social Care,Appropriations,Leaving Care Allowances,634,19/11/2021,2111-00196,0.00,40.00,R,REDACTED PERSONAL DATA,No
Http://opendatacommunities.org/id/metropolitan-district-council/leeds,Leeds City Council,30/11/2021,Children and Families,Social Care,Appropriations,Leaving Care Allowances,634,26/11/2021,2111-00197,0.00,40.00,R,REDACTED PERSONAL DATA,No
Http://opendatacommunities.org/id/metropolitan-district-council/leeds,Leeds City Council,30/11/2021,Children and Families,Social Care,Appropriations,Leaving Care Allowances,634,09/11/2021,2111-00198,0.00,50.00,R,REDACTED PERSONAL DATA,No
Http://opendatacommunities.org/id/metropolitan-district-council/leeds,Leeds City Council,30/11/2021,Resources and Housing,Strategic Housing Partnership & Support,Internal Recharges,Legal Disbursements,411,24/11/2021,2111-00199,0.00,300.00,R,Abigail Cheetham,No
Http://opendatacommunities.org/id/metropolitan-district-council/leeds,Leeds City Council,30/11/2021,Strategic Landlord,Housing Management,Internal Recharges,Legal Disbursements,411,24/11/2021,2111-00200,0.00,325.00,R,Abigail Cheetham,No
Http://opendatacommunities.org/id/metropolitan-district-council/leeds,Leeds City Council,30/11/2021,City Development,Economic Development,Supplies and Services,Grant Related Expenditure,290,29/11/2021,2111-00201,0.00,1031.00,R,Abigail Levin Consultancy Ltd,No
Http://opendatacommunities.org/id/metropolitan-district-council/leeds,Leeds City Council,30/11/2021,Communities and Environment,Benefits Welfare and Poverty,Supplies and Services,Grant Related Expenditure,298,01/11/2021,2111-00202,0.00,500.00,R,REDACTED PERSONAL DATA,No
Http://opendatacommunities.org/id/metropolitan-district-council/leeds,Leeds City Council,30/11/2021,Communities and Environment,Benefits Welfare and Poverty,Supplies and Services,Grant Related Expenditure,298,01/11/2021,2111-00203,0.00,500.00,R,REDACTED PERSONAL DATA,No
Http://opendatacommunities.org/id/metropolitan-district-council/leeds,Leeds City Council,30/11/2021,Children and Families,Social Care,Agency Payments,Placement Support,550,09/11/2021,2111-00204,0.00,200.00,R,REDACTED PERSONAL DATA,No
Http://opendatacommunities.org/id/metropolitan-district-council/leeds,Leeds City Council,30/11/2021,Children and Families,Social Care,Agency Payments,Contact,548,08/11/2021,2111-00205,0.00,11.95,R,REDACTED PERSONAL DATA,No
Http://opendatacommunities.org/id/metropolitan-district-council/leeds,Leeds City Council,30/11/2021,Children and Families,Social Care,Appropriations,Leaving Care Allowances,634,12/11/2021,2111-00206,0.00,10.00,R,REDACTED PERSONAL DATA,No
Http://opendatacommunities.org/id/metropolitan-district-council/leeds,Leeds City Council,30/11/2021,Children and Families,Social Care,Agency Payments,Contact,548,29/11/2021,2111-00207,0.00,30.94,R,REDACTED PERSONAL DATA,No
Http://opendatacommunities.org/id/metropolitan-district-council/leeds,Leeds City Council,30/11/2021,Children and Families,Social Care,Supplies and Services,Food & Drink,231,04/10/2021,2111-00208,0.00,28.65,R,Abu Bakar,Yes
Http://opendatacommunities.org/id/metropolitan-district-council/leeds,Leeds City Council,30/11/2021,Adults and Health,Services For Adults Under 65 Mental/Dis,Agency Payments,Fees - Level 4,520,12/11/2021,2111-00209,0.00,175.00,R,Abubaker Denja Mohammed,No
Http://opendatacommunities.org/id/metropolitan-district-council/leeds,Leeds City Council,30/11/2021,Adults and Health,Services For Adults Under 65 Mental/Dis,Agency Payments,Fees - Level 4,520,12/11/2021,2111-00210,0.00,175.00,R,Abubaker Denja Mohammed,No
Http://opendatacommunities.org/id/metropolitan-district-council/leeds,Leeds City Council,30/11/2021,Adults and Health,Services For Adults Under 65 Mental/Dis,Agency Payments,Fees - Level 4,520,12/11/2021,2111-00211,0.00,175.00,R,Abubaker Denja Mohammed,No
Http://opendatacommunities.org/id/metropolitan-district-council/leeds,Leeds City Council,30/11/2021,Adults and Health,Services For Adults Under 65 Mental/Dis,Agency Payments,Fees - Level 4,520,26/11/2021,2111-00212,0.00,175.00,R,Abubaker Denja Mohammed,No
Http://opendatacommunities.org/id/metropolitan-district-council/leeds,Leeds City Council,30/11/2021,Adults and Health,Services For Adults Under 65 Mental/Dis,Agency Payments,Fees - Level 4,520,26/11/2021,2111-00213,0.00,175.00,R,Abubaker Denja Mohammed,No
Http://opendatacommunities.org/id/metropolitan-district-council/leeds,Leeds City Council,30/11/2021,Adults and Health,Services For Adults Under 65 Mental/Dis,Agency Payments,Fees - Level 4,520,26/11/2021,2111-00214,0.00,175.00,R,Abubaker Denja Mohammed,No
Http://opendatacommunities.org/id/metropolitan-district-council/leeds,Leeds City Council,30/11/2021,Adults and Health,Services For Adults Under 65 Mental/Dis,Agency Payments,Fees - Level 4,520,26/11/2021,2111-00215,0.00,175.00,R,Abubaker Denja Mohammed,No
Http://opendatacommunities.org/id/metropolitan-district-council/leeds,Leeds City Council,30/11/2021,Adults and Health,Services For Adults Under 65 Mental/Dis,Agency Payments,Fees - Level 4,520,26/11/2021,2111-00216,0.00,175.00,R,Abubaker Denja Mohammed,No
Http://opendatacommunities.org/id/metropolitan-district-council/leeds,Leeds City Council,30/11/2021,Children and Families,Partnerships & Health,Employees,Training & Development,70,29/11/2021,2111-00217,0.00,1000.00,R,AC EDUCATION,No
Http://opendatacommunities.org/id/metropolitan-district-council/leeds,Leeds City Council,30/11/2021,Communities and Environment,Waste Management,Transport,Repair & Maintenance of  Plant,342,22/10/2021,2111-00218,0.00,57.25,R,Access Locksmiths,Yes
Http://opendatacommunities.org/id/metropolitan-district-council/leeds,Leeds City Council,30/11/2021,Communities and Environment,Cleaner Neighbourhood Teams,Supplies and Services,Operational Furniture And Equipment,203,25/10/2021,2111-00219,0.00,99.40,R,Access Locksmiths,Yes
Http://opendatacommunities.org/id/metropolitan-district-council/leeds,Leeds City Council,30/11/2021,Resources and Housing,Leeds Building Services,Supplies and Services,Operational Materials,205,09/11/2021,2111-00220,0.00,30.00,R,ACCESS LOCKSMITHS (LEEDS) LIMITED,No
Http://opendatacommunities.org/id/metropolitan-district-council/leeds,Leeds City Council,30/11/2021,Communities and Environment,Waste Management,Supplies and Services,Operational Furniture And Equipment,203,11/11/2021,2111-00221,0.00,572.50,R,ACCESS LOCKSMITHS (LEEDS) LIMITED,No
Http://opendatacommunities.org/id/metropolitan-district-council/leeds,Leeds City Council,30/11/2021,Strategic Landlord,Property and Contracts,Premises,General Maintenance,104,11/11/2021,2111-00222,0.00,218.73,R,ACCESS LOCKSMITHS (LEEDS) LIMITED,No
Http://opendatacommunities.org/id/metropolitan-district-council/leeds,Leeds City Council,30/11/2021,Resources and Housing,Leeds Building Services,Supplies and Services,Operational Materials,205,12/11/2021,2111-00223,0.00,108.15,R,ACCESS LOCKSMITHS (LEEDS) LIMITED,No
Http://opendatacommunities.org/id/metropolitan-district-council/leeds,Leeds City Council,30/11/2021,Resources and Housing,Leeds Building Services,Supplies and Services,Operational Materials,205,12/11/2021,2111-00224,0.00,40.54,R,ACCESS LOCKSMITHS (LEEDS) LIMITED,No
Http://opendatacommunities.org/id/metropolitan-district-council/leeds,Leeds City Council,30/11/2021,Resources and Housing,Leeds Building Services,Supplies and Services,Operational Materials,205,19/11/2021,2111-00225,0.00,10.80,R,ACCESS LOCKSMITHS (LEEDS) LIMITED,No
Http://opendatacommunities.org/id/metropolitan-district-council/leeds,Leeds City Council,30/11/2021,Resources and Housing,Leeds Building Services,Supplies and Services,Operational Materials,205,19/11/2021,2111-00226,0.00,35.80,R,ACCESS LOCKSMITHS (LEEDS) LIMITED,No
Http://opendatacommunities.org/id/metropolitan-district-council/leeds,Leeds City Council,30/11/2021,Resources and Housing,Leeds Building Services,Supplies and Services,Operational Materials,205,26/11/2021,2111-00227,0.00,38.56,R,ACCESS LOCKSMITHS (LEEDS) LIMITED,No
Http://opendatacommunities.org/id/metropolitan-district-council/leeds,Leeds City Council,30/11/2021,Resources and Housing,Leeds Building Services,Supplies and Services,Operational Materials,205,26/11/2021,2111-00228,0.00,36.33,R,ACCESS LOCKSMITHS (LEEDS) LIMITED,No
Http://opendatacommunities.org/id/metropolitan-district-council/leeds,Leeds City Council,30/11/2021,Resources and Housing,Leeds Building Services,Supplies and Services,Operational Materials,205,26/11/2021,2111-00229,0.00,11.00,R,ACCESS LOCKSMITHS (LEEDS) LIMITED,No
Http://opendatacommunities.org/id/metropolitan-district-council/leeds,Leeds City Council,30/11/2021,Resources and Housing,Leeds Building Services,Supplies and Services,Operational Materials,205,26/11/2021,2111-00230,0.00,487.26,R,ACCESS LOCKSMITHS (LEEDS) LIMITED,No
Http://opendatacommunities.org/id/metropolitan-district-council/leeds,Leeds City Council,30/11/2021,Resources and Housing,Leeds Building Services,Supplies and Services,Operational Materials,205,26/11/2021,2111-00231,0.00,102.98,R,ACCESS LOCKSMITHS (LEEDS) LIMITED,No
Http://opendatacommunities.org/id/metropolitan-district-council/leeds,Leeds City Council,30/11/2021,Strategic Landlord,Property and Contracts,Premises,General Maintenance,104,26/11/2021,2111-00232,0.00,140.80,R,ACCESS LOCKSMITHS (LEEDS) LIMITED,No
Http://opendatacommunities.org/id/metropolitan-district-council/leeds,Leeds City Council,30/11/2021,Strategic Landlord,Property and Contracts,Premises,General Maintenance,104,26/11/2021,2111-00233,0.00,182.01,R,ACCESS LOCKSMITHS (LEEDS) LIMITED,No
Http://opendatacommunities.org/id/metropolitan-district-council/leeds,Leeds City Council,30/11/2021,Strategic Landlord,Property and Contracts,Premises,General Maintenance,104,26/11/2021,2111-00234,0.00,282.81,R,ACCESS LOCKSMITHS (LEEDS) LIMITED,No
Http://opendatacommunities.org/id/metropolitan-district-council/leeds,Leeds City Council,30/11/2021,Strategic Landlord,Property and Contracts,Premises,General Maintenance,104,26/11/2021,2111-00235,0.00,200.35,R,ACCESS LOCKSMITHS (LEEDS) LIMITED,No
Http://opendatacommunities.org/id/metropolitan-district-council/leeds,Leeds City Council,30/11/2021,Strategic Landlord,Housing Management,Supplies and Services,Resaleable Materials,204,26/11/2021,2111-00236,0.00,60.00,R,ACCESS LOCKSMITHS (LEEDS) LIMITED,No
Http://opendatacommunities.org/id/metropolitan-district-council/leeds,Leeds City Council,30/11/2021,Resources and Housing,Leeds Building Services,Supplies and Services,Other Hired And Contracted Services,265,26/11/2021,2111-00237,0.00,266.33,R,ACCESS LOCKSMITHS (LEEDS) LIMITED,No
Http://opendatacommunities.org/id/metropolitan-district-council/leeds,Leeds City Council,30/11/2021,Resources and Housing,Leeds Building Services,Supplies and Services,Operational Materials,205,26/11/2021,2111-00238,0.00,38.00,R,ACCESS LOCKSMITHS (LEEDS) LIMITED,No
Http://opendatacommunities.org/id/metropolitan-district-council/leeds,Leeds City Council,30/11/2021,Resources and Housing,Leeds Building Services,Supplies and Services,Operational Materials,205,26/11/2021,2111-00239,0.00,63.80,R,ACCESS LOCKSMITHS (LEEDS) LIMITED,No
Http://opendatacommunities.org/id/metropolitan-district-council/leeds,Leeds City Council,30/11/2021,Resources and Housing,Leeds Building Services,Supplies and Services,Operational Materials,205,26/11/2021,2111-00240,0.00,28.00,R,ACCESS LOCKSMITHS (LEEDS) LIMITED,No
Http://opendatacommunities.org/id/metropolitan-district-council/leeds,Leeds City Council,30/11/2021,Resources and Housing,Leeds Building Services,Supplies and Services,Operational Materials,205,26/11/2021,2111-00241,0.00,15.80,R,ACCESS LOCKSMITHS (LEEDS) LIMITED,No
Http://opendatacommunities.org/id/metropolitan-district-council/leeds,Leeds City Council,30/11/2021,Resources and Housing,Leeds Building Services,Supplies and Services,Operational Materials,205,26/11/2021,2111-00242,0.00,154.52,R,ACCESS LOCKSMITHS (LEEDS) LIMITED,No
Http://opendatacommunities.org/id/metropolitan-district-council/leeds,Leeds City Council,30/11/2021,Resources and Housing,Leeds Building Services,Supplies and Services,Operational Materials,205,26/11/2021,2111-00243,0.00,9.90,R,ACCESS LOCKSMITHS (LEEDS) LIMITED,No
Http://opendatacommunities.org/id/metropolitan-district-council/leeds,Leeds City Council,30/11/2021,Resources and Housing,Leeds Building Services,Supplies and Services,Operational Materials,205,26/11/2021,2111-00244,0.00,19.98,R,ACCESS LOCKSMITHS (LEEDS) LIMITED,No
Http://opendatacommunities.org/id/metropolitan-district-council/leeds,Leeds City Council,30/11/2021,Resources and Housing,Commercial Services,Supplies and Services,Operational Furniture And Equipment,203,30/11/2021,2111-00245,0.00,220.00,R,ACCESS LOCKSMITHS (LEEDS) LIMITED,No
Http://opendatacommunities.org/id/metropolitan-district-council/leeds,Leeds City Council as Accountable Body,30/11/2021,Social Services Pooled Budgets,Leeds Community Equip Store Pooled Budgt,Supplies and Services,Other Equipment,203,12/11/2021,2111-00246,0.00,71.00,R,Accora,No
Http://opendatacommunities.org/id/metropolitan-district-council/leeds,Leeds City Council,30/11/2021,City Development,Recreation,Transport,External Hire -Occasional,304,30/11/2021,2111-00247,0.00,124.50,R,ACE CONTAINER SERVICES LIMITED,No
Http://opendatacommunities.org/id/metropolitan-district-council/leeds,Leeds City Council,30/11/2021,City Development,Libraries Arts & Heritage,Supplies and Services,Advertising,211,03/11/2021,2111-00248,0.00,1149.94,R,Ace Leaflet Distribution & Print Ltd,No
Http://opendatacommunities.org/id/metropolitan-district-council/leeds,Leeds City Council,30/11/2021,City Development,Regeneration,Capital,OTHER COSTS,7,26/11/2021,2111-00249,0.00,7319.40,C,Ace Shelters Ltd,No
Http://opendatacommunities.org/id/metropolitan-district-council/leeds,Leeds City Council,30/11/2021,Children and Families,Social Care,Premises,Maintenance Of Buildings,101,26/11/2021,2111-00250,0.00,296.00,R,ACL Refrigeration & Air Conditioning Ltd,No
Http://opendatacommunities.org/id/metropolitan-district-council/leeds,Leeds City Council,30/11/2021,Communities and Environment,Parks and Countryside,Supplies and Services,Operational Materials,205,15/10/2021,2111-00251,0.00,615.00,R,Acme Facilities Group,Yes
Http://opendatacommunities.org/id/metropolitan-district-council/leeds,Leeds City Council,30/11/2021,Communities and Environment,Parks and Countryside,Supplies and Services,Operational Materials,205,27/10/2021,2111-00252,0.00,90.00,R,Acme Facilities Group,Yes
Http://opendatacommunities.org/id/metropolitan-district-council/leeds,Leeds City Council,30/11/2021,Children and Families,Social Care,Agency Payments,General External Residential Placements,507,05/11/2021,2111-00253,0.00,15188.70,R,Acorn Care & Education Ltd (Sales),No
Http://opendatacommunities.org/id/metropolitan-district-council/leeds,Leeds City Council,30/11/2021,Children and Families,Partnerships & Health,Agency Payments,SEN Placements,566,12/11/2021,2111-00254,0.00,8500.00,R,Acorn Care & Education Ltd (Sales),No
Http://opendatacommunities.org/id/metropolitan-district-council/leeds,Leeds City Council,30/11/2021,Children and Families,Partnerships & Health,Agency Payments,SEN Placements,566,17/11/2021,2111-00255,0.00,8500.00,R,Acorn Care & Education Ltd (Sales),No
Http://opendatacommunities.org/id/metropolitan-district-council/leeds,Leeds City Council,30/11/2021,Resources and Housing,Commercial Services,Transport,Private Hire,360,23/11/2021,2111-00256,0.00,1680.00,R,Acorn Care & Education Ltd (Sales),No
Http://opendatacommunities.org/id/metropolitan-district-council/leeds,Leeds City Council,30/11/2021,Children and Families,Partnerships & Health,Agency Payments,SEN Placements,566,24/11/2021,2111-00257,0.00,1741.48,R,Acorn Care & Education Ltd (Sales),No
Http://opendatacommunities.org/id/metropolitan-district-council/leeds,Leeds City Council,30/11/2021,Children and Families,Social Care,Agency Payments,General External Residential Placements,507,25/11/2021,2111-00258,0.00,24117.42,R,Acorn Care & Education Ltd (Sales),No
Http://opendatacommunities.org/id/metropolitan-district-council/leeds,Leeds City Council,30/11/2021,Children and Families,Social Care,Agency Payments,General External Residential Placements,507,25/11/2021,2111-00259,0.00,23339.44,R,Acorn Care & Education Ltd (Sales),No
Http://opendatacommunities.org/id/metropolitan-district-council/leeds,Leeds City Council,30/11/2021,Children and Families,Social Care,Agency Payments,General External Residential Placements,507,25/11/2021,2111-00260,0.00,24117.42,R,Acorn Care & Education Ltd (Sales),No
Http://opendatacommunities.org/id/metropolitan-district-council/leeds,Leeds City Council,30/11/2021,Children and Families,Social Care,Agency Payments,General External Residential Placements,507,25/11/2021,2111-00261,0.00,24117.42,R,Acorn Care & Education Ltd (Sales),No
Http://opendatacommunities.org/id/metropolitan-district-council/leeds,Leeds City Council,30/11/2021,Children and Families,Partnerships & Health,Agency Payments,SEN Placements,566,25/11/2021,2111-00262,0.00,19261.87,R,Acorn Care & Education Ltd (Sales),No
Http://opendatacommunities.org/id/metropolitan-district-council/leeds,Leeds City Council,30/11/2021,Children and Families,Social Care,Agency Payments,General External Residential Placements,507,25/11/2021,2111-00263,0.00,23339.44,R,Acorn Care & Education Ltd (Sales),No
Http://opendatacommunities.org/id/metropolitan-district-council/leeds,Leeds City Council,30/11/2021,Children and Families,Social Care,Agency Payments,General External Residential Placements,507,25/11/2021,2111-00264,0.00,24117.42,R,Acorn Care & Education Ltd (Sales),No
Http://opendatacommunities.org/id/metropolitan-district-council/leeds,Leeds City Council,30/11/2021,Resources and Housing,Commercial Services,Transport,Private Hire,360,26/11/2021,2111-00265,0.00,880.00,R,Acorn Care & Education Ltd (Sales),No
Http://opendatacommunities.org/id/metropolitan-district-council/leeds,Leeds City Council,30/11/2021,City Development,Libraries Arts & Heritage,Supplies and Services,Other Hired And Contracted Services,265,05/11/2021,2111-00266,0.00,3250.00,R,Acorn Construction (Yorkshire) Ltd,No
Http://opendatacommunities.org/id/metropolitan-district-council/leeds,Leeds City Council,30/11/2021,City Development,Libraries Arts & Heritage,Supplies and Services,Other Hired And Contracted Services,265,19/11/2021,2111-00267,0.00,1560.00,R,Acorn Construction (Yorkshire) Ltd,No
Http://opendatacommunities.org/id/metropolitan-district-council/leeds,Leeds City Council,30/11/2021,Children and Families,Social Care,Agency Payments,Independent Fostering Agencies,509,03/11/2021,2111-00268,0.00,4068.44,R,Acorn House (Fostering Services) Ltd,No
Http://opendatacommunities.org/id/metropolitan-district-council/leeds,Leeds City Council,30/11/2021,Children and Families,Social Care,Agency Payments,Independent Fostering Agencies,509,03/11/2021,2111-00269,0.00,3866.01,R,Acorn House (Fostering Services) Ltd,No
Http://opendatacommunities.org/id/metropolitan-district-council/leeds,Leeds City Council,30/11/2021,Children and Families,Social Care,Agency Payments,Independent Fostering Agencies,509,25/11/2021,2111-00270,0.00,249.42,R,Acorn House (Fostering Services) Ltd,No
Http://opendatacommunities.org/id/metropolitan-district-council/leeds,Leeds City Council,30/11/2021,Resources and Housing,Strategic Housing Partnership & Support,Supplies and Services,Other Hired And Contracted Services,265,01/11/2021,2111-00271,0.00,3699.82,R,Acorn Housing,No
Http://opendatacommunities.org/id/metropolitan-district-council/leeds,Leeds City Council,30/11/2021,Resources and Housing,Strategic Housing Partnership & Support,Supplies and Services,Other Hired And Contracted Services,265,01/11/2021,2111-00272,0.00,2500.00,R,Acorn Housing,No
Http://opendatacommunities.org/id/metropolitan-district-council/leeds,Leeds City Council,30/11/2021,Resources and Housing,Strategic Housing Partnership & Support,Supplies and Services,Other Hired And Contracted Services,265,01/11/2021,2111-00273,0.00,2500.00,R,Acorn Housing,No
Http://opendatacommunities.org/id/metropolitan-district-council/leeds,Leeds City Council,30/11/2021,Resources and Housing,Strategic Housing Partnership & Support,Supplies and Services,Other Hired And Contracted Services,265,01/11/2021,2111-00274,0.00,2500.00,R,Acorn Housing,No
Http://opendatacommunities.org/id/metropolitan-district-council/leeds,Leeds City Council,30/11/2021,Resources and Housing,Strategic Housing Partnership & Support,Supplies and Services,Other Hired And Contracted Services,265,05/11/2021,2111-00275,0.00,1199.82,R,Acorn Housing,No
Http://opendatacommunities.org/id/metropolitan-district-council/leeds,Leeds City Council,30/11/2021,Resources and Housing,Strategic Housing Partnership & Support,Supplies and Services,Other Hired And Contracted Services,265,05/11/2021,2111-00276,0.00,2500.00,R,Acorn Housing,No
Http://opendatacommunities.org/id/metropolitan-district-council/leeds,Leeds City Council,30/11/2021,Resources and Housing,Strategic Housing Partnership & Support,Supplies and Services,Other Hired And Contracted Services,265,10/11/2021,2111-00277,0.00,644.62,R,Acorn Housing,No
Http://opendatacommunities.org/id/metropolitan-district-council/leeds,Leeds City Council,30/11/2021,Adults and Health,Services For Older People - 65 And Over,Agency Payments,Residential Care Dementia,571,10/11/2021,2111-00278,0.00,1640.48,R,Acorn Nursing Home,No
Http://opendatacommunities.org/id/metropolitan-district-council/leeds,Leeds City Council,30/11/2021,Children and Families,Social Care,Agency Payments,Services Rendered By Other Organisations,511,03/11/2021,2111-00279,0.00,1567.80,R,ACORNS NURSERY,No
Http://opendatacommunities.org/id/metropolitan-district-council/leeds,Leeds City Council,30/11/2021,Children and Families,Social Care,Agency Payments,Services Rendered By Other Organisations,511,05/11/2021,2111-00280,0.00,4783.35,R,ACORNS NURSERY,No
Http://opendatacommunities.org/id/metropolitan-district-council/leeds,Leeds City Council,30/11/2021,Adults and Health,Services For Older People - 65 And Over,Agency Payments,Nursing Home,570,10/11/2021,2111-00281,0.00,22952.79,R,Acre Green,No
Http://opendatacommunities.org/id/metropolitan-district-council/leeds,Leeds City Council,30/11/2021,Adults and Health,Services For Older People - 65 And Over,Agency Payments,Residential,580,10/11/2021,2111-00282,0.00,3927.20,R,Acre Green,No
Http://opendatacommunities.org/id/metropolitan-district-council/leeds,Leeds City Council,30/11/2021,Adults and Health,Services For Older People Under 65 P/Dis,Agency Payments,Nursing Home,570,10/11/2021,2111-00283,0.00,1970.40,R,Acre Green,No
Http://opendatacommunities.org/id/metropolitan-district-council/leeds,Leeds City Council,30/11/2021,Adults and Health,Services For Older People Under 65 P/Dis,Agency Payments,Residential,580,10/11/2021,2111-00284,0.00,1767.20,R,Acre Green,No
Http://opendatacommunities.org/id/metropolitan-district-council/leeds,Leeds City Council,30/11/2021,Adults and Health,Other Adult Services,Agency Payments,Nursing Home,570,16/11/2021,2111-00285,0.00,113400.00,R,Acre Green,No
Http://opendatacommunities.org/id/metropolitan-district-council/leeds,Leeds City Council,30/11/2021,Children and Families,Social Care,Agency Payments,Services Rendered By Other Organisations,511,03/11/2021,2111-00286,0.00,2090.40,R,Acre Wood Day Nursery,No
Http://opendatacommunities.org/id/metropolitan-district-council/leeds,Leeds City Council,30/11/2021,Children and Families,Social Care,Agency Payments,Services Rendered By Other Organisations,511,05/11/2021,2111-00287,0.00,10035.00,R,Acre Wood Day Nursery,No
Http://opendatacommunities.org/id/metropolitan-district-council/leeds,Leeds City Council,30/11/2021,Communities and Environment,Communities,Supplies and Services,Computer Software & Equipment,214,07/10/2021,2111-00288,0.00,6760.95,R,Acs Business Supplies Lt,Yes
Http://opendatacommunities.org/id/metropolitan-district-council/leeds,Leeds City Council,30/11/2021,City Development,Highways,Supplies and Services,Operational Materials,205,09/11/2021,2111-00289,0.00,182.00,R,Actavo Hire And Sales Uk Limited,No
Http://opendatacommunities.org/id/metropolitan-district-council/leeds,Leeds City Council,30/11/2021,Resources and Housing,Leeds Building Services,Supplies and Services,Other Hired And Contracted Services,265,30/11/2021,2111-00290,0.00,27.10,R,Actavo Hire And Sales Uk Limited,No
Http://opendatacommunities.org/id/metropolitan-district-council/leeds,Leeds City Council,30/11/2021,Resources and Housing,Leeds Building Services,Supplies and Services,Other Hired And Contracted Services,265,30/11/2021,2111-00291,0.00,27.10,R,Actavo Hire And Sales Uk Limited,No
Http://opendatacommunities.org/id/metropolitan-district-council/leeds,Leeds City Council,30/11/2021,Resources and Housing,Leeds Building Services,Supplies and Services,Operational Materials,205,30/11/2021,2111-00292,0.00,80.23,R,Actavo Hire And Sales Uk Limited,No
Http://opendatacommunities.org/id/metropolitan-district-council/leeds,Leeds City Council,30/11/2021,Resources and Housing,Leeds Building Services,Supplies and Services,Other Hired And Contracted Services,265,30/11/2021,2111-00293,0.00,26.23,R,Actavo Hire And Sales Uk Limited,No
Http://opendatacommunities.org/id/metropolitan-district-council/leeds,Leeds City Council,30/11/2021,Resources and Housing,Leeds Building Services,Supplies and Services,Operational Materials,205,30/11/2021,2111-00294,0.00,82.90,R,Actavo Hire And Sales Uk Limited,No
Http://opendatacommunities.org/id/metropolitan-district-council/leeds,Leeds City Council,30/11/2021,Resources and Housing,Leeds Building Services,Supplies and Services,Other Hired And Contracted Services,265,30/11/2021,2111-00295,0.00,27.10,R,Actavo Hire And Sales Uk Limited,No
Http://opendatacommunities.org/id/metropolitan-district-council/leeds,Leeds City Council,30/11/2021,Children and Families,Social Care,Agency Payments,Services Rendered By Other Organisations,511,03/11/2021,2111-00296,0.00,522.60,R,ACTIVE KIDS YEADON LLP,No
Http://opendatacommunities.org/id/metropolitan-district-council/leeds,Leeds City Council,30/11/2021,Children and Families,Social Care,Agency Payments,Services Rendered By Other Organisations,511,05/11/2021,2111-00297,0.00,7370.15,R,ACTIVE KIDS YEADON LLP,No
Http://opendatacommunities.org/id/metropolitan-district-council/leeds,Leeds City Council,30/11/2021,City Development,Recreation,Supplies and Services,Other Hired And Contracted Services,265,04/10/2021,2111-00298,0.00,6.00,R,Active Leeds,Yes
Http://opendatacommunities.org/id/metropolitan-district-council/leeds,Leeds City Council,30/11/2021,City Development,Recreation,Supplies and Services,Other Hired And Contracted Services,265,05/10/2021,2111-00299,0.00,6.00,R,Active Leeds,Yes
Http://opendatacommunities.org/id/metropolitan-district-council/leeds,Leeds City Council,30/11/2021,City Development,Recreation,Supplies and Services,Other Hired And Contracted Services,265,08/10/2021,2111-00300,0.00,-6.00,R,Active Leeds,Yes
Http://opendatacommunities.org/id/metropolitan-district-council/leeds,Leeds City Council,30/11/2021,City Development,Recreation,Supplies and Services,Other Hired And Contracted Services,265,08/10/2021,2111-00301,0.00,159.50,R,Active Leeds,Yes
Http://opendatacommunities.org/id/metropolitan-district-council/leeds,Leeds City Council,30/11/2021,City Development,Recreation,Supplies and Services,Other Hired And Contracted Services,265,15/10/2021,2111-00302,0.00,-6.00,R,Active Leeds,Yes
Http://opendatacommunities.org/id/metropolitan-district-council/leeds,Leeds City Council,30/11/2021,City Development,Recreation,Supplies and Services,Other Hired And Contracted Services,265,15/10/2021,2111-00303,0.00,-159.50,R,Active Leeds,Yes
Http://opendatacommunities.org/id/metropolitan-district-council/leeds,Leeds City Council,30/11/2021,City Development,Recreation,Supplies and Services,Other Hired And Contracted Services,265,26/10/2021,2111-00304,0.00,29.87,R,Active Leeds,Yes
Http://opendatacommunities.org/id/metropolitan-district-council/leeds,Leeds City Council,30/11/2021,Adults and Health,Services For Adults Under 65 Mental/Dis,Agency Payments,Sheltered Accommodation,569,10/11/2021,2111-00305,0.00,18263.68,R,Active Pathways,No
Http://opendatacommunities.org/id/metropolitan-district-council/leeds,Leeds City Council as Accountable Body,30/11/2021,Social Services Pooled Budgets,Jcs For People With Learning Disabilitie,Agency Payments,Sheltered Accommodation,569,10/11/2021,2111-00306,0.00,12452.52,R,Active Pathways,No
Http://opendatacommunities.org/id/metropolitan-district-council/leeds,Leeds City Council,30/11/2021,Communities and Environment,Waste Management,Supplies and Services,Waste Disposal Charges,236,04/11/2021,2111-00307,0.00,1395.30,R,Acumen Waste Services Ltd,No
Http://opendatacommunities.org/id/metropolitan-district-council/leeds,Leeds City Council,30/11/2021,Communities and Environment,Waste Management,Supplies and Services,Recycling & Reuse Charges,234,04/11/2021,2111-00308,0.00,979.20,R,Acumen Waste Services Ltd,No
Http://opendatacommunities.org/id/metropolitan-district-council/leeds,Leeds City Council,30/11/2021,Communities and Environment,Waste Management,Supplies and Services,Recycling & Reuse Charges,234,05/11/2021,2111-00309,0.00,1005.84,R,Acumen Waste Services Ltd,No
Http://opendatacommunities.org/id/metropolitan-district-council/leeds,Leeds City Council,30/11/2021,Communities and Environment,Waste Management,Supplies and Services,Recycling & Reuse Charges,234,05/11/2021,2111-00310,0.00,994.32,R,Acumen Waste Services Ltd,No
Http://opendatacommunities.org/id/metropolitan-district-council/leeds,Leeds City Council,30/11/2021,Communities and Environment,Waste Management,Supplies and Services,Recycling & Reuse Charges,234,05/11/2021,2111-00311,0.00,1002.96,R,Acumen Waste Services Ltd,No
Http://opendatacommunities.org/id/metropolitan-district-council/leeds,Leeds City Council,30/11/2021,Communities and Environment,Waste Management,Supplies and Services,Recycling & Reuse Charges,234,10/11/2021,2111-00312,0.00,1030.32,R,Acumen Waste Services Ltd,No
Http://opendatacommunities.org/id/metropolitan-district-council/leeds,Leeds City Council,30/11/2021,Communities and Environment,Waste Management,Supplies and Services,Recycling & Reuse Charges,234,10/11/2021,2111-00313,0.00,1025.28,R,Acumen Waste Services Ltd,No
Http://opendatacommunities.org/id/metropolitan-district-council/leeds,Leeds City Council,30/11/2021,Communities and Environment,Waste Management,Supplies and Services,Recycling & Reuse Charges,234,12/11/2021,2111-00314,0.00,1025.28,R,Acumen Waste Services Ltd,No
Http://opendatacommunities.org/id/metropolitan-district-council/leeds,Leeds City Council,30/11/2021,Communities and Environment,Waste Management,Supplies and Services,Recycling & Reuse Charges,234,12/11/2021,2111-00315,0.00,1009.44,R,Acumen Waste Services Ltd,No
Http://opendatacommunities.org/id/metropolitan-district-council/leeds,Leeds City Council,30/11/2021,Communities and Environment,Waste Management,Supplies and Services,Recycling & Reuse Charges,234,12/11/2021,2111-00316,0.00,1015.20,R,Acumen Waste Services Ltd,No
Http://opendatacommunities.org/id/metropolitan-district-council/leeds,Leeds City Council,30/11/2021,Communities and Environment,Waste Management,Supplies and Services,Recycling & Reuse Charges,234,12/11/2021,2111-00317,0.00,1012.32,R,Acumen Waste Services Ltd,No
Http://opendatacommunities.org/id/metropolitan-district-council/leeds,Leeds City Council,30/11/2021,Communities and Environment,Waste Management,Supplies and Services,Recycling & Reuse Charges,234,17/11/2021,2111-00318,0.00,877.68,R,Acumen Waste Services Ltd,No
Http://opendatacommunities.org/id/metropolitan-district-council/leeds,Leeds City Council,30/11/2021,Communities and Environment,Waste Management,Supplies and Services,Recycling & Reuse Charges,234,17/11/2021,2111-00319,0.00,1018.08,R,Acumen Waste Services Ltd,No
Http://opendatacommunities.org/id/metropolitan-district-council/leeds,Leeds City Council,30/11/2021,Communities and Environment,Waste Management,Supplies and Services,Recycling & Reuse Charges,234,17/11/2021,2111-00320,0.00,864.72,R,Acumen Waste Services Ltd,No
Http://opendatacommunities.org/id/metropolitan-district-council/leeds,Leeds City Council,30/11/2021,Communities and Environment,Waste Management,Supplies and Services,Recycling & Reuse Charges,234,19/11/2021,2111-00321,0.00,961.20,R,Acumen Waste Services Ltd,No
Http://opendatacommunities.org/id/metropolitan-district-council/leeds,Leeds City Council,30/11/2021,Communities and Environment,Waste Management,Supplies and Services,Recycling & Reuse Charges,234,19/11/2021,2111-00322,0.00,1002.24,R,Acumen Waste Services Ltd,No
Http://opendatacommunities.org/id/metropolitan-district-council/leeds,Leeds City Council,30/11/2021,Communities and Environment,Waste Management,Supplies and Services,Recycling & Reuse Charges,234,19/11/2021,2111-00323,0.00,915.84,R,Acumen Waste Services Ltd,No
Http://opendatacommunities.org/id/metropolitan-district-council/leeds,Leeds City Council,30/11/2021,Communities and Environment,Waste Management,Supplies and Services,Recycling & Reuse Charges,234,19/11/2021,2111-00324,0.00,955.44,R,Acumen Waste Services Ltd,No
Http://opendatacommunities.org/id/metropolitan-district-council/leeds,Leeds City Council,30/11/2021,Communities and Environment,Waste Management,Supplies and Services,Waste Disposal Charges,236,19/11/2021,2111-00325,0.00,2080.85,R,Acumen Waste Services Ltd,No
Http://opendatacommunities.org/id/metropolitan-district-council/leeds,Leeds City Council,30/11/2021,Communities and Environment,Waste Management,Supplies and Services,Recycling & Reuse Charges,234,24/11/2021,2111-00326,0.00,1014.48,R,Acumen Waste Services Ltd,No
Http://opendatacommunities.org/id/metropolitan-district-council/leeds,Leeds City Council,30/11/2021,Communities and Environment,Waste Management,Supplies and Services,Recycling & Reuse Charges,234,24/11/2021,2111-00327,0.00,984.24,R,Acumen Waste Services Ltd,No
Http://opendatacommunities.org/id/metropolitan-district-council/leeds,Leeds City Council,30/11/2021,Communities and Environment,Waste Management,Supplies and Services,Recycling & Reuse Charges,234,24/11/2021,2111-00328,0.00,1021.68,R,Acumen Waste Services Ltd,No
Http://opendatacommunities.org/id/metropolitan-district-council/leeds,Leeds City Council,30/11/2021,Communities and Environment,Waste Management,Supplies and Services,Waste Disposal Charges,236,24/11/2021,2111-00329,0.00,820.00,R,Acumen Waste Services Ltd,No
Http://opendatacommunities.org/id/metropolitan-district-council/leeds,Leeds City Council,30/11/2021,Communities and Environment,Waste Management,Supplies and Services,Recycling & Reuse Charges,234,26/11/2021,2111-00330,0.00,984.24,R,Acumen Waste Services Ltd,No
Http://opendatacommunities.org/id/metropolitan-district-council/leeds,Leeds City Council,30/11/2021,Communities and Environment,Waste Management,Supplies and Services,Recycling & Reuse Charges,234,26/11/2021,2111-00331,0.00,831.60,R,Acumen Waste Services Ltd,No
Http://opendatacommunities.org/id/metropolitan-district-council/leeds,Leeds City Council,30/11/2021,Communities and Environment,Waste Management,Supplies and Services,Recycling & Reuse Charges,234,26/11/2021,2111-00332,0.00,897.12,R,Acumen Waste Services Ltd,No
Http://opendatacommunities.org/id/metropolitan-district-council/leeds,Leeds City Council,30/11/2021,Communities and Environment,Waste Management,Supplies and Services,Recycling & Reuse Charges,234,26/11/2021,2111-00333,0.00,979.92,R,Acumen Waste Services Ltd,No
Http://opendatacommunities.org/id/metropolitan-district-council/leeds,Leeds City Council,30/11/2021,Communities and Environment,Waste Management,Supplies and Services,Recycling & Reuse Charges,234,26/11/2021,2111-00334,0.00,858.24,R,Acumen Waste Services Ltd,No
Http://opendatacommunities.org/id/metropolitan-district-council/leeds,Leeds City Council,30/11/2021,Communities and Environment,Waste Management,Supplies and Services,Recycling & Reuse Charges,234,26/11/2021,2111-00335,0.00,978.48,R,Acumen Waste Services Ltd,No
Http://opendatacommunities.org/id/metropolitan-district-council/leeds,Leeds City Council,30/11/2021,Resources and Housing,Shared Services,Supplies and Services,Other Hired And Contracted Services,265,15/11/2021,2111-00336,0.00,131.54,R,AD3 Envelope Printers Limited,No
Http://opendatacommunities.org/id/metropolitan-district-council/leeds,Leeds City Council,30/11/2021,Resources and Housing,Shared Services,Supplies and Services,Operational Materials,205,26/11/2021,2111-00337,0.00,1131.75,R,AD3 Envelope Printers Limited,No
Http://opendatacommunities.org/id/metropolitan-district-council/leeds,Leeds City Council,30/11/2021,Children and Families,Social Care,Appropriations,Leaving Care Grants,635,24/11/2021,2111-00338,0.00,1830.00,R,REDACTED PERSONAL DATA,No
Http://opendatacommunities.org/id/metropolitan-district-council/leeds,Leeds City Council,30/11/2021,Communities and Environment,Benefits Welfare and Poverty,Supplies and Services,Grant Related Expenditure,290,15/11/2021,2111-00339,0.00,500.00,R,REDACTED PERSONAL DATA,No
Http://opendatacommunities.org/id/metropolitan-district-council/leeds,Leeds City Council,30/11/2021,Communities and Environment,Benefits Welfare and Poverty,Supplies and Services,Grant Related Expenditure,290,01/11/2021,2111-00340,0.00,500.00,R,REDACTED PERSONAL DATA,No
Http://opendatacommunities.org/id/metropolitan-district-council/leeds,Leeds City Council,30/11/2021,Communities and Environment,Benefits Welfare and Poverty,Supplies and Services,Grant Related Expenditure,298,09/11/2021,2111-00341,0.00,500.00,R,REDACTED PERSONAL DATA,No
Http://opendatacommunities.org/id/metropolitan-district-council/leeds,Leeds City Council,30/11/2021,City Development,Recreation,External Income,Sporting & Other Recreational Fees,928,23/11/2021,2111-00342,0.00,187.00,R,REDACTED PERSONAL DATA,No
Http://opendatacommunities.org/id/metropolitan-district-council/leeds,Leeds City Council,30/11/2021,Children and Families,Social Care,Appropriations,Leaving Care Allowances,634,05/11/2021,2111-00343,0.00,50.00,R,REDACTED PERSONAL DATA,No
Http://opendatacommunities.org/id/metropolitan-district-council/leeds,Leeds City Council,30/11/2021,Children and Families,Social Care,Appropriations,Leaving Care Allowances,634,12/11/2021,2111-00344,0.00,50.00,R,REDACTED PERSONAL DATA,No
Http://opendatacommunities.org/id/metropolitan-district-council/leeds,Leeds City Council,30/11/2021,Children and Families,Social Care,Appropriations,Leaving Care Allowances,634,19/11/2021,2111-00345,0.00,50.00,R,REDACTED PERSONAL DATA,No
Http://opendatacommunities.org/id/metropolitan-district-council/leeds,Leeds City Council,30/11/2021,Children and Families,Social Care,Appropriations,Leaving Care Allowances,634,25/11/2021,2111-00346,0.00,50.00,R,REDACTED PERSONAL DATA,No
Http://opendatacommunities.org/id/metropolitan-district-council/leeds,Leeds City Council,30/11/2021,Children and Families,Social Care,Appropriations,Leaving Care Allowances,634,25/11/2021,2111-00347,0.00,60.00,R,REDACTED PERSONAL DATA,No
Http://opendatacommunities.org/id/metropolitan-district-council/leeds,Leeds City Council,30/11/2021,Children and Families,Social Care,Appropriations,Leaving Care Allowances,634,29/11/2021,2111-00348,0.00,60.00,R,REDACTED PERSONAL DATA,No
Http://opendatacommunities.org/id/metropolitan-district-council/leeds,Leeds City Council,30/11/2021,Children and Families,Social Care,Appropriations,Leaving Care Allowances,634,29/11/2021,2111-00349,0.00,60.00,R,REDACTED PERSONAL DATA,No
Http://opendatacommunities.org/id/metropolitan-district-council/leeds,Leeds City Council,30/11/2021,Children and Families,Social Care,Appropriations,Leaving Care Allowances,634,29/11/2021,2111-00350,0.00,60.00,R,REDACTED PERSONAL DATA,No
Http://opendatacommunities.org/id/metropolitan-district-council/leeds,Leeds City Council,30/11/2021,Children and Families,Social Care,Agency Payments,Placement Support,550,11/11/2021,2111-00351,0.00,77.50,R,REDACTED PERSONAL DATA,No
Http://opendatacommunities.org/id/metropolitan-district-council/leeds,Leeds City Council,30/11/2021,Communities and Environment,Benefits Welfare and Poverty,Supplies and Services,Grant Related Expenditure,290,19/11/2021,2111-00352,0.00,500.00,R,REDACTED PERSONAL DATA,No
Http://opendatacommunities.org/id/metropolitan-district-council/leeds,Leeds City Council,30/11/2021,City Development,Libraries Arts & Heritage,Supplies and Services,Operational Materials,205,18/11/2021,2111-00353,0.00,91.19,R,REDACTED PERSONAL DATA,No
Http://opendatacommunities.org/id/metropolitan-district-council/leeds,Leeds City Council,30/11/2021,Children and Families,Social Care,Supplies and Services,Office Furniture & Equipment,201,15/10/2021,2111-00354,0.00,190.00,R,Adams Phones,Yes
Http://opendatacommunities.org/id/metropolitan-district-council/leeds,Leeds City Council,30/11/2021,Adults and Health,Services For Older People - 65 And Over,Agency Payments,Nursing Home,570,10/11/2021,2111-00355,0.00,2648.00,R,Adbolton Hall,No
Http://opendatacommunities.org/id/metropolitan-district-council/leeds,Leeds City Council,30/11/2021,City Development,Asset Management Services,Internal Recharges,Legal Disbursements,411,05/11/2021,2111-00356,0.00,36063.00,R,Addleshaw Goddard LLP,No
Http://opendatacommunities.org/id/metropolitan-district-council/leeds,Leeds City Council,30/11/2021,City Development,Asset Management Services,Internal Recharges,Legal Disbursements,411,19/11/2021,2111-00357,0.00,960.60,R,Addleshaw Goddard LLP,No
Http://opendatacommunities.org/id/metropolitan-district-council/leeds,Leeds City Council,30/11/2021,Adults and Health,Public Health,Agency Payments,Public Health Commissioned Services,526,08/11/2021,2111-00358,0.00,2668.04,R,Addlestone & Partners,No
Http://opendatacommunities.org/id/metropolitan-district-council/leeds,Leeds City Council,30/11/2021,Communities and Environment,Parks and Countryside,Supplies and Services,Other Hired And Contracted Services,265,25/11/2021,2111-00359,0.00,9108.00,R,Addlestone & Partners,No
Http://opendatacommunities.org/id/metropolitan-district-council/leeds,Leeds City Council,30/11/2021,Resources and Housing,Technology,Employees,Agency Staff,8,13/10/2021,2111-00360,0.00,12413.80,R,Adecco Alfred Marks,Yes
Http://opendatacommunities.org/id/metropolitan-district-council/leeds,Leeds City Council,30/11/2021,Resources and Housing,Technology,Employees,Agency Staff,8,21/10/2021,2111-00361,0.00,29050.54,R,Adecco Alfred Marks,Yes
Http://opendatacommunities.org/id/metropolitan-district-council/leeds,Leeds City Council,30/11/2021,Strategic Accounts,Miscellaneous,Supplies and Services,Non-Recurring Grants,227,25/11/2021,2111-00362,0.00,200.00,R,Adel Gardeners Club,No
Http://opendatacommunities.org/id/metropolitan-district-council/leeds,Leeds City Council,30/11/2021,Children and Families,Social Care,Agency Payments,Services Rendered By Voluntary Sector,505,03/11/2021,2111-00363,0.00,261.30,R,ADEL PRE SCHOOL,No
Http://opendatacommunities.org/id/metropolitan-district-council/leeds,Leeds City Council,30/11/2021,Children and Families,Social Care,Agency Payments,Services Rendered By Voluntary Sector,505,05/11/2021,2111-00364,0.00,4626.14,R,ADEL PRE SCHOOL,No
Http://opendatacommunities.org/id/metropolitan-district-council/leeds,Leeds City Council,30/11/2021,Resources and Housing,Commercial Services,Transport,Fuel (Non LCC Supplies),321,27/10/2021,2111-00365,0.00,47.06,R,Adel Sf Connect,Yes
Http://opendatacommunities.org/id/metropolitan-district-council/leeds,Leeds City Council,30/11/2021,Children and Families,Social Care,Agency Payments,Contact,548,11/11/2021,2111-00366,0.00,12.90,R,REDACTED PERSONAL DATA,No
Http://opendatacommunities.org/id/metropolitan-district-council/leeds,Leeds City Council,30/11/2021,Children and Families,Social Care,Agency Payments,Contact,548,18/11/2021,2111-00367,0.00,6.20,R,REDACTED PERSONAL DATA,No
Http://opendatacommunities.org/id/metropolitan-district-council/leeds,Leeds City Council,30/11/2021,Children and Families,Social Care,Agency Payments,Contact,548,29/11/2021,2111-00368,0.00,5.30,R,REDACTED PERSONAL DATA,No
Http://opendatacommunities.org/id/metropolitan-district-council/leeds,Leeds City Council,30/11/2021,City Development,Recreation,Supplies and Services,Bought In Professional Services,277,03/11/2021,2111-00369,0.00,80.00,R,Adele Battersby,No
Http://opendatacommunities.org/id/metropolitan-district-council/leeds,Leeds City Council,30/11/2021,City Development,Recreation,Supplies and Services,Bought In Professional Services,277,25/11/2021,2111-00370,0.00,120.00,R,Adele Battersby,No
Http://opendatacommunities.org/id/metropolitan-district-council/leeds,Leeds City Council,30/11/2021,City Development,Recreation,Supplies and Services,Bought In Professional Services,277,30/11/2021,2111-00371,0.00,380.00,R,Adele Battersby,No
Http://opendatacommunities.org/id/metropolitan-district-council/leeds,Leeds City Council,30/11/2021,City Development,Recreation,Supplies and Services,Bought In Professional Services,277,30/11/2021,2111-00372,0.00,60.00,R,Adele Battersby,No
Http://opendatacommunities.org/id/metropolitan-district-council/leeds,Leeds City Council,30/11/2021,City Development,Recreation,Supplies and Services,Bought In Professional Services,277,30/11/2021,2111-00373,0.00,40.00,R,Adele Battersby,No
Http://opendatacommunities.org/id/metropolitan-district-council/leeds,Leeds City Council,30/11/2021,Children and Families,Social Care,Agency Payments,Services Rendered By Other Organisations,511,03/11/2021,2111-00374,0.00,1393.60,R,REDACTED PERSONAL DATA,No
Http://opendatacommunities.org/id/metropolitan-district-council/leeds,Leeds City Council,30/11/2021,Children and Families,Social Care,Agency Payments,Services Rendered By Other Organisations,511,05/11/2021,2111-00375,0.00,1087.13,R,REDACTED PERSONAL DATA,No
Http://opendatacommunities.org/id/metropolitan-district-council/leeds,Leeds City Council,30/11/2021,Communities and Environment,Benefits Welfare and Poverty,Supplies and Services,Grant Related Expenditure,298,08/11/2021,2111-00376,0.00,500.00,R,REDACTED PERSONAL DATA,No
Http://opendatacommunities.org/id/metropolitan-district-council/leeds,Leeds City Council,30/11/2021,Children and Families,Social Care,Agency Payments,Contact,548,05/11/2021,2111-00377,0.00,24.90,R,REDACTED PERSONAL DATA,No
Http://opendatacommunities.org/id/metropolitan-district-council/leeds,Leeds City Council,30/11/2021,Children and Families,Social Care,Agency Payments,Contact,548,19/11/2021,2111-00378,0.00,24.90,R,REDACTED PERSONAL DATA,No
Http://opendatacommunities.org/id/metropolitan-district-council/leeds,Leeds City Council,30/11/2021,Children and Families,Social Care,Agency Payments,Contact,548,26/11/2021,2111-00379,0.00,24.90,R,REDACTED PERSONAL DATA,No
Http://opendatacommunities.org/id/metropolitan-district-council/leeds,Leeds City Council,30/11/2021,Children and Families,Social Care,Agency Payments,Section 17,551,05/11/2021,2111-00380,0.00,79.20,R,REDACTED PERSONAL DATA,No
Http://opendatacommunities.org/id/metropolitan-district-council/leeds,Leeds City Council,30/11/2021,Children and Families,Social Care,Agency Payments,Section 17,551,12/11/2021,2111-00381,0.00,79.20,R,REDACTED PERSONAL DATA,No
Http://opendatacommunities.org/id/metropolitan-district-council/leeds,Leeds City Council,30/11/2021,Children and Families,Social Care,Agency Payments,Section 17,551,19/11/2021,2111-00382,0.00,79.20,R,REDACTED PERSONAL DATA,No
Http://opendatacommunities.org/id/metropolitan-district-council/leeds,Leeds City Council,30/11/2021,Children and Families,Social Care,Agency Payments,Section 17,551,26/11/2021,2111-00383,0.00,79.20,R,REDACTED PERSONAL DATA,No
Http://opendatacommunities.org/id/metropolitan-district-council/leeds,Leeds City Council,30/11/2021,Resources and Housing,Leeds Building Services,Supplies and Services,Operational Materials,205,02/11/2021,2111-00384,0.00,-159.50,R,ADI Global,No
Http://opendatacommunities.org/id/metropolitan-district-council/leeds,Leeds City Council,30/11/2021,Resources and Housing,Leeds Building Services,Supplies and Services,Operational Materials,205,02/11/2021,2111-00385,0.00,273.15,R,ADI Global,No
Http://opendatacommunities.org/id/metropolitan-district-council/leeds,Leeds City Council,30/11/2021,Resources and Housing,Leeds Building Services,Supplies and Services,Operational Materials,205,02/11/2021,2111-00386,0.00,886.83,R,ADI Global,No
Http://opendatacommunities.org/id/metropolitan-district-council/leeds,Leeds City Council,30/11/2021,Resources and Housing,Leeds Building Services,Supplies and Services,Operational Materials,205,02/11/2021,2111-00387,0.00,57.03,R,ADI Global,No
Http://opendatacommunities.org/id/metropolitan-district-council/leeds,Leeds City Council,30/11/2021,Resources and Housing,Leeds Building Services,Supplies and Services,Operational Materials,205,02/11/2021,2111-00388,0.00,21.31,R,ADI Global,No
Http://opendatacommunities.org/id/metropolitan-district-council/leeds,Leeds City Council,30/11/2021,Resources and Housing,Leeds Building Services,Supplies and Services,Operational Materials,205,02/11/2021,2111-00389,0.00,72.23,R,ADI Global,No
Http://opendatacommunities.org/id/metropolitan-district-council/leeds,Leeds City Council,30/11/2021,Resources and Housing,Leeds Building Services,Supplies and Services,Operational Materials,205,02/11/2021,2111-00390,0.00,73.18,R,ADI Global,No
Http://opendatacommunities.org/id/metropolitan-district-council/leeds,Leeds City Council,30/11/2021,Resources and Housing,Leeds Building Services,Supplies and Services,Operational Materials,205,02/11/2021,2111-00391,0.00,260.80,R,ADI Global,No
Http://opendatacommunities.org/id/metropolitan-district-council/leeds,Leeds City Council,30/11/2021,Resources and Housing,Leeds Building Services,Supplies and Services,Operational Materials,205,02/11/2021,2111-00392,0.00,183.98,R,ADI Global,No
Http://opendatacommunities.org/id/metropolitan-district-council/leeds,Leeds City Council,30/11/2021,Resources and Housing,Leeds Building Services,Supplies and Services,Operational Materials,205,02/11/2021,2111-00393,0.00,247.86,R,ADI Global,No
Http://opendatacommunities.org/id/metropolitan-district-council/leeds,Leeds City Council,30/11/2021,Resources and Housing,Leeds Building Services,Supplies and Services,Operational Materials,205,02/11/2021,2111-00394,0.00,129.14,R,ADI Global,No
Http://opendatacommunities.org/id/metropolitan-district-council/leeds,Leeds City Council,30/11/2021,Resources and Housing,Leeds Building Services,Supplies and Services,Operational Materials,205,26/11/2021,2111-00395,0.00,95.44,R,ADI Global,No
Http://opendatacommunities.org/id/metropolitan-district-council/leeds,Leeds City Council,30/11/2021,Insurance,Insurance,Supplies and Services,Insurance Claims,248,17/11/2021,2111-00396,0.00,215.00,R,Admiral Law,No
Http://opendatacommunities.org/id/metropolitan-district-council/leeds,Leeds City Council,30/11/2021,City Development,Libraries Arts & Heritage,Supplies and Services,Computer Software & Equipment,214,04/10/2021,2111-00397,0.00,41.62,R,Adobe Creative Cloud,Yes
Http://opendatacommunities.org/id/metropolitan-district-council/leeds,Leeds City Council,30/11/2021,City Development,Libraries Arts & Heritage,Supplies and Services,Computer Software & Equipment,214,25/10/2021,2111-00398,0.00,8.32,R,Adobe Photogphy Plan,Yes
Http://opendatacommunities.org/id/metropolitan-district-council/leeds,Leeds City Council,30/11/2021,Children and Families,Partnerships & Health,Employees,Training & Development,70,01/11/2021,2111-00399,0.00,600.00,R,Adolescent And Childrens Trust,No
Http://opendatacommunities.org/id/metropolitan-district-council/leeds,Leeds City Council,30/11/2021,Children and Families,Social Care,Agency Payments,Independent Fostering Agencies,509,04/11/2021,2111-00400,0.00,3450.00,R,Adolescent And Childrens Trust,No
Http://opendatacommunities.org/id/metropolitan-district-council/leeds,Leeds City Council,30/11/2021,Children and Families,Social Care,Agency Payments,Independent Fostering Agencies,509,04/11/2021,2111-00401,0.00,3450.00,R,Adolescent And Childrens Trust,No
Http://opendatacommunities.org/id/metropolitan-district-council/leeds,Leeds City Council,30/11/2021,Children and Families,Social Care,Agency Payments,Independent Fostering Agencies,509,04/11/2021,2111-00402,0.00,3450.00,R,Adolescent And Childrens Trust,No
Http://opendatacommunities.org/id/metropolitan-district-council/leeds,Leeds City Council,30/11/2021,Children and Families,Social Care,Agency Payments,Independent Fostering Agencies,509,04/11/2021,2111-00403,0.00,3630.00,R,Adolescent And Childrens Trust,No
Http://opendatacommunities.org/id/metropolitan-district-council/leeds,Leeds City Council,30/11/2021,Children and Families,Social Care,Agency Payments,Independent Fostering Agencies,509,04/11/2021,2111-00404,0.00,3630.00,R,Adolescent And Childrens Trust,No
Http://opendatacommunities.org/id/metropolitan-district-council/leeds,Leeds City Council,30/11/2021,Children and Families,Social Care,Agency Payments,Independent Fostering Agencies,509,04/11/2021,2111-00405,0.00,3450.00,R,Adolescent And Childrens Trust,No
Http://opendatacommunities.org/id/metropolitan-district-council/leeds,Leeds City Council,30/11/2021,Children and Families,Social Care,Agency Payments,Independent Fostering Agencies,509,04/11/2021,2111-00406,0.00,3630.00,R,Adolescent And Childrens Trust,No
Http://opendatacommunities.org/id/metropolitan-district-council/leeds,Leeds City Council,30/11/2021,Children and Families,Social Care,Agency Payments,Independent Fostering Agencies,509,04/11/2021,2111-00407,0.00,3630.00,R,Adolescent And Childrens Trust,No
Http://opendatacommunities.org/id/metropolitan-district-council/leeds,Leeds City Council,30/11/2021,Children and Families,Social Care,Agency Payments,Independent Fostering Agencies,509,04/11/2021,2111-00408,0.00,3347.10,R,Adolescent And Childrens Trust,No
Http://opendatacommunities.org/id/metropolitan-district-council/leeds,Leeds City Council,30/11/2021,Children and Families,Social Care,Agency Payments,Independent Fostering Agencies,509,04/11/2021,2111-00409,0.00,3630.00,R,Adolescent And Childrens Trust,No
Http://opendatacommunities.org/id/metropolitan-district-council/leeds,Leeds City Council,30/11/2021,Adults and Health,Services For Adults Under 65 Mental/Dis,Agency Payments,Home Care,568,03/11/2021,2111-00410,0.00,148.50,R,Adopt Healthcare,No
Http://opendatacommunities.org/id/metropolitan-district-council/leeds,Leeds City Council,30/11/2021,Adults and Health,Services For Adults Under 65 Mental/Dis,Agency Payments,Home Care,568,10/11/2021,2111-00411,0.00,165.00,R,Adopt Healthcare,No
Http://opendatacommunities.org/id/metropolitan-district-council/leeds,Leeds City Council,30/11/2021,Adults and Health,Services For Adults Under 65 Mental/Dis,Agency Payments,Home Care,568,17/11/2021,2111-00412,0.00,132.00,R,Adopt Healthcare,No
Http://opendatacommunities.org/id/metropolitan-district-council/leeds,Leeds City Council,30/11/2021,Adults and Health,Services For Adults Under 65 Mental/Dis,Agency Payments,Home Care,568,24/11/2021,2111-00413,0.00,115.50,R,Adopt Healthcare,No
Http://opendatacommunities.org/id/metropolitan-district-council/leeds,Leeds City Council,30/11/2021,Children and Families,Social Care,Agency Payments,Placement Support,550,05/11/2021,2111-00414,0.00,42.30,R,REDACTED PERSONAL DATA,No
Http://opendatacommunities.org/id/metropolitan-district-council/leeds,Leeds City Council,30/11/2021,Children and Families,Social Care,Agency Payments,Placement Support,550,12/11/2021,2111-00415,0.00,21.15,R,REDACTED PERSONAL DATA,No
Http://opendatacommunities.org/id/metropolitan-district-council/leeds,Leeds City Council,30/11/2021,Children and Families,Social Care,Agency Payments,Placement Support,550,19/11/2021,2111-00416,0.00,21.15,R,REDACTED PERSONAL DATA,No
Http://opendatacommunities.org/id/metropolitan-district-council/leeds,Leeds City Council,30/11/2021,Children and Families,Social Care,Agency Payments,Placement Support,550,26/11/2021,2111-00417,0.00,21.15,R,REDACTED PERSONAL DATA,No
Http://opendatacommunities.org/id/metropolitan-district-council/leeds,Leeds City Council as Accountable Body,30/11/2021,Social Services Pooled Budgets,Jcs For People With Learning Disabilitie,Agency Payments,Residential,580,12/11/2021,2111-00418,0.00,2609.36,R,ADRIAN HOUSE,No
Http://opendatacommunities.org/id/metropolitan-district-council/leeds,Leeds City Council,30/11/2021,Communities and Environment,Benefits Welfare and Poverty,Supplies and Services,Grant Related Expenditure,298,30/11/2021,2111-00419,0.00,500.00,R,REDACTED PERSONAL DATA,No
Http://opendatacommunities.org/id/metropolitan-district-council/leeds,Leeds City Council,30/11/2021,Communities and Environment,Benefits Welfare and Poverty,Supplies and Services,Grant Related Expenditure,298,24/11/2021,2111-00420,0.00,500.00,R,REDACTED PERSONAL DATA,No
Http://opendatacommunities.org/id/metropolitan-district-council/leeds,Leeds City Council,30/11/2021,City Development,Recreation,Supplies and Services,External Audit Fees,261,08/11/2021,2111-00421,0.00,270.00,R,ADVANCE STOCKS LTD,No
Http://opendatacommunities.org/id/metropolitan-district-council/leeds,Leeds City Council,30/11/2021,City Development,Libraries Arts & Heritage,Supplies and Services,External Audit Fees,261,10/11/2021,2111-00422,0.00,90.00,R,ADVANCE STOCKS LTD,No
Http://opendatacommunities.org/id/metropolitan-district-council/leeds,Leeds City Council,30/11/2021,Children and Families,Social Care,Internal Recharges,Legal Disbursements,411,11/11/2021,2111-00423,0.00,1244.40,R,ADVANCED CHILD CARE ASSESSMENTS LTD,No
Http://opendatacommunities.org/id/metropolitan-district-council/leeds,Leeds City Council,30/11/2021,Children and Families,Social Care,Internal Recharges,Legal Disbursements,411,11/11/2021,2111-00424,0.00,825.00,R,ADVANCED CHILD CARE ASSESSMENTS LTD,No
Http://opendatacommunities.org/id/metropolitan-district-council/leeds,Leeds City Council,30/11/2021,Children and Families,Social Care,Supplies and Services,Office Consumables,210,22/10/2021,2111-00425,0.00,67.80,R,Advanced Machinery Servic,Yes
Http://opendatacommunities.org/id/metropolitan-district-council/leeds,Leeds City Council as Accountable Body,30/11/2021,Social Services Pooled Budgets,Jcs For People With Learning Disabilitie,Agency Payments,Home Care,568,05/11/2021,2111-00426,0.00,1315.02,R,Advantage Healthcare Ltd,No
Http://opendatacommunities.org/id/metropolitan-district-council/leeds,Leeds City Council as Accountable Body,30/11/2021,Social Services Pooled Budgets,Jcs For People With Learning Disabilitie,Agency Payments,Home Care,568,12/11/2021,2111-00427,0.00,2070.00,R,Advantage Healthcare Ltd,No
Http://opendatacommunities.org/id/metropolitan-district-council/leeds,Leeds City Council as Accountable Body,30/11/2021,Social Services Pooled Budgets,Jcs For People With Learning Disabilitie,Agency Payments,Home Care,568,12/11/2021,2111-00428,0.00,2156.25,R,Advantage Healthcare Ltd,No
Http://opendatacommunities.org/id/metropolitan-district-council/leeds,Leeds City Council as Accountable Body,30/11/2021,Social Services Pooled Budgets,Jcs For People With Learning Disabilitie,Agency Payments,Home Care,568,12/11/2021,2111-00429,0.00,1893.19,R,Advantage Healthcare Ltd,No
Http://opendatacommunities.org/id/metropolitan-district-council/leeds,Leeds City Council as Accountable Body,30/11/2021,Social Services Pooled Budgets,Jcs For People With Learning Disabilitie,Agency Payments,Home Care,568,12/11/2021,2111-00430,0.00,977.20,R,Advantage Healthcare Ltd,No
Http://opendatacommunities.org/id/metropolitan-district-council/leeds,Leeds City Council as Accountable Body,30/11/2021,Social Services Pooled Budgets,Jcs For People With Learning Disabilitie,Agency Payments,Home Care,568,19/11/2021,2111-00431,0.00,1294.30,R,Advantage Healthcare Ltd,No
Http://opendatacommunities.org/id/metropolitan-district-council/leeds,Leeds City Council as Accountable Body,30/11/2021,Social Services Pooled Budgets,Jcs For People With Learning Disabilitie,Agency Payments,Home Care,568,26/11/2021,2111-00432,0.00,4568.90,R,Advantage Healthcare Ltd,No
Http://opendatacommunities.org/id/metropolitan-district-council/leeds,Leeds City Council as Accountable Body,30/11/2021,Social Services Pooled Budgets,Jcs For People With Learning Disabilitie,Agency Payments,Home Care,568,30/11/2021,2111-00433,0.00,5151.30,R,Advantage Healthcare Ltd,No
Http://opendatacommunities.org/id/metropolitan-district-council/leeds,Leeds City Council as Accountable Body,30/11/2021,Social Services Pooled Budgets,Jcs For People With Learning Disabilitie,Agency Payments,Residential,580,10/11/2021,2111-00434,0.00,17105.76,R,ADVITAM LTD,No
Http://opendatacommunities.org/id/metropolitan-district-council/leeds,Leeds City Council,30/11/2021,Adults and Health,Services For Adults Under 65 Learn/Dis,Agency Payments,Payments To Voluntary Organisations,561,03/11/2021,2111-00435,0.00,16150.46,R,Advonet,No
Http://opendatacommunities.org/id/metropolitan-district-council/leeds,Leeds City Council,30/11/2021,Adults and Health,Services For Adults Under 65 Learn/Dis,Agency Payments,Payments To Voluntary Organisations,561,16/11/2021,2111-00436,0.00,17944.96,R,Advonet,No
Http://opendatacommunities.org/id/metropolitan-district-council/leeds,Leeds City Council,30/11/2021,Adults and Health,Services For Adults Under 65 Mental/Dis,Agency Payments,Fees - Level 4,520,12/11/2021,2111-00437,0.00,242.28,R,AE BIA Assessments Limited,No
Http://opendatacommunities.org/id/metropolitan-district-council/leeds,Leeds City Council,30/11/2021,Adults and Health,Services For Adults Under 65 Mental/Dis,Agency Payments,Fees - Level 4,520,12/11/2021,2111-00438,0.00,240.57,R,AE BIA Assessments Limited,No
Http://opendatacommunities.org/id/metropolitan-district-council/leeds,Leeds City Council,30/11/2021,Adults and Health,Services For Adults Under 65 Mental/Dis,Agency Payments,Fees - Level 4,520,26/11/2021,2111-00439,0.00,244.83,R,AE BIA Assessments Limited,No
Http://opendatacommunities.org/id/metropolitan-district-council/leeds,Leeds City Council,30/11/2021,City Development,Highways,Capital,OTHER COSTS,7,22/11/2021,2111-00440,0.00,19701.52,C,Aecom Limited,No
Http://opendatacommunities.org/id/metropolitan-district-council/leeds,Leeds City Council,30/11/2021,City Development,Highways,Supplies and Services,Other Hired And Contracted Services,265,22/11/2021,2111-00441,0.00,5036.00,R,Aecom Limited,No
Http://opendatacommunities.org/id/metropolitan-district-council/leeds,Leeds City Council,30/11/2021,City Development,Highways,Capital,OTHER COSTS,7,23/11/2021,2111-00442,0.00,60375.72,C,Aecom Limited,No
Http://opendatacommunities.org/id/metropolitan-district-council/leeds,Leeds City Council,30/11/2021,City Development,Highways,Capital,OTHER COSTS,7,30/11/2021,2111-00443,0.00,94874.70,C,Aecom Limited,No
Http://opendatacommunities.org/id/metropolitan-district-council/leeds,Leeds City Council,30/11/2021,Adults and Health,Services For Adults Under 65 Mental/Dis,Agency Payments,Home Care,568,03/11/2021,2111-00444,0.00,1149.00,R,Aegis Care Solutions Ltd,No
Http://opendatacommunities.org/id/metropolitan-district-council/leeds,Leeds City Council,30/11/2021,Adults and Health,Services For Adults Under 65 Mental/Dis,Agency Payments,Home Care,568,03/11/2021,2111-00445,0.00,2516.55,R,Aegis Care Solutions Ltd,No
Http://opendatacommunities.org/id/metropolitan-district-council/leeds,Leeds City Council,30/11/2021,Adults and Health,Services For Adults Under 65 Mental/Dis,Agency Payments,Home Care,568,03/11/2021,2111-00446,0.00,585.92,R,Aegis Care Solutions Ltd,No
Http://opendatacommunities.org/id/metropolitan-district-council/leeds,Leeds City Council,30/11/2021,Adults and Health,Services For Adults Under 65 Mental/Dis,Agency Payments,Home Care,568,03/11/2021,2111-00447,0.00,1642.30,R,Aegis Care Solutions Ltd,No
Http://opendatacommunities.org/id/metropolitan-district-council/leeds,Leeds City Council,30/11/2021,Adults and Health,Services For Adults Under 65 Mental/Dis,Agency Payments,Home Care,568,03/11/2021,2111-00448,0.00,1082.20,R,Aegis Care Solutions Ltd,No
Http://opendatacommunities.org/id/metropolitan-district-council/leeds,Leeds City Council,30/11/2021,Adults and Health,Services For Adults Under 65 Mental/Dis,Agency Payments,Home Care,568,03/11/2021,2111-00449,0.00,249.20,R,Aegis Care Solutions Ltd,No
Http://opendatacommunities.org/id/metropolitan-district-council/leeds,Leeds City Council,30/11/2021,Adults and Health,Services For Adults Under 65 Mental/Dis,Agency Payments,Home Care,568,15/11/2021,2111-00450,0.00,1249.50,R,Aegis Care Solutions Ltd,No
Http://opendatacommunities.org/id/metropolitan-district-council/leeds,Leeds City Council,30/11/2021,Adults and Health,Services For Adults Under 65 Mental/Dis,Agency Payments,Home Care,568,24/11/2021,2111-00451,0.00,594.00,R,Aegis Care Solutions Ltd,No
Http://opendatacommunities.org/id/metropolitan-district-council/leeds,Leeds City Council,30/11/2021,Adults and Health,Services For Adults Under 65 Mental/Dis,Agency Payments,Home Care,568,24/11/2021,2111-00452,0.00,475.20,R,Aegis Care Solutions Ltd,No
Http://opendatacommunities.org/id/metropolitan-district-council/leeds,Leeds City Council,30/11/2021,Adults and Health,Services For Adults Under 65 Mental/Dis,Agency Payments,Home Care,568,24/11/2021,2111-00453,0.00,475.20,R,Aegis Care Solutions Ltd,No
Http://opendatacommunities.org/id/metropolitan-district-council/leeds,Leeds City Council,30/11/2021,Adults and Health,Services For Adults Under 65 Mental/Dis,Agency Payments,Home Care,568,24/11/2021,2111-00454,0.00,594.00,R,Aegis Care Solutions Ltd,No
Http://opendatacommunities.org/id/metropolitan-district-council/leeds,Leeds City Council,30/11/2021,Adults and Health,Services For Adults Under 65 Mental/Dis,Agency Payments,Home Care,568,24/11/2021,2111-00455,0.00,475.20,R,Aegis Care Solutions Ltd,No
Http://opendatacommunities.org/id/metropolitan-district-council/leeds,Leeds City Council,30/11/2021,Adults and Health,Services For Adults Under 65 Mental/Dis,Agency Payments,Home Care,568,24/11/2021,2111-00456,0.00,475.20,R,Aegis Care Solutions Ltd,No
Http://opendatacommunities.org/id/metropolitan-district-council/leeds,Leeds City Council,30/11/2021,Adults and Health,Services For Adults Under 65 Mental/Dis,Agency Payments,Home Care,568,24/11/2021,2111-00457,0.00,475.20,R,Aegis Care Solutions Ltd,No
Http://opendatacommunities.org/id/metropolitan-district-council/leeds,Leeds City Council,30/11/2021,Adults and Health,Services For Adults Under 65 Mental/Dis,Agency Payments,Home Care,568,24/11/2021,2111-00458,0.00,594.00,R,Aegis Care Solutions Ltd,No
Http://opendatacommunities.org/id/metropolitan-district-council/leeds,Leeds City Council,30/11/2021,Adults and Health,Services For Adults Under 65 Mental/Dis,Agency Payments,Home Care,568,24/11/2021,2111-00459,0.00,475.20,R,Aegis Care Solutions Ltd,No
Http://opendatacommunities.org/id/metropolitan-district-council/leeds,Leeds City Council,30/11/2021,Adults and Health,Services For Adults Under 65 Mental/Dis,Agency Payments,Home Care,568,24/11/2021,2111-00460,0.00,594.00,R,Aegis Care Solutions Ltd,No
Http://opendatacommunities.org/id/metropolitan-district-council/leeds,Leeds City Council,30/11/2021,Adults and Health,Services For Adults Under 65 Mental/Dis,Agency Payments,Home Care,568,24/11/2021,2111-00461,0.00,356.40,R,Aegis Care Solutions Ltd,No
Http://opendatacommunities.org/id/metropolitan-district-council/leeds,Leeds City Council,30/11/2021,Children and Families,Social Care,Supplies and Services,Operational Materials,205,11/10/2021,2111-00462,0.00,199.00,R,Aerialandsatelliteexpr,Yes
Http://opendatacommunities.org/id/metropolitan-district-council/leeds,Leeds City Council,30/11/2021,City Development,Libraries Arts & Heritage,Supplies and Services,Non-Recurring Grants,227,05/11/2021,2111-00463,0.00,82.00,R,Aeris Houlihan,No
Http://opendatacommunities.org/id/metropolitan-district-council/leeds,Leeds City Council,30/11/2021,City Development,Economic Development,Supplies and Services,Grant Related Expenditure,290,10/11/2021,2111-00464,0.00,15000.00,R,Aeroservices Ltd,No
Http://opendatacommunities.org/id/metropolitan-district-council/leeds,Leeds City Council,30/11/2021,City Development,Libraries Arts & Heritage,Supplies and Services,Other Hired And Contracted Services,265,19/11/2021,2111-00465,0.00,1723.50,R,Aesg Ltd,No
Http://opendatacommunities.org/id/metropolitan-district-council/leeds,Leeds City Council,30/11/2021,Adults and Health,Assessment And Care Management,Agency Payments,Home Care,568,17/11/2021,2111-00466,0.00,133.92,R,Affinity Trust,No
Http://opendatacommunities.org/id/metropolitan-district-council/leeds,Leeds City Council,30/11/2021,Adults and Health,Services For Adults Under 65 Mental/Dis,Agency Payments,Home Care,568,17/11/2021,2111-00467,0.00,535.68,R,Affinity Trust,No
Http://opendatacommunities.org/id/metropolitan-district-council/leeds,Leeds City Council,30/11/2021,Adults and Health,Services For Adults Under 65 Mental/Dis,Agency Payments,HCAIT Community Support,575,17/11/2021,2111-00468,0.00,334.80,R,Affinity Trust,No
Http://opendatacommunities.org/id/metropolitan-district-council/leeds,Leeds City Council,30/11/2021,Adults and Health,Services For Older People - 65 And Over,Agency Payments,HCAIT Community Support,575,17/11/2021,2111-00469,0.00,602.64,R,Affinity Trust,No
Http://opendatacommunities.org/id/metropolitan-district-council/leeds,Leeds City Council,30/11/2021,Adults and Health,Services For Older People Under 65 P/Dis,Agency Payments,Home Care,568,17/11/2021,2111-00470,0.00,803.52,R,Affinity Trust,No
Http://opendatacommunities.org/id/metropolitan-district-council/leeds,Leeds City Council,30/11/2021,Adults and Health,Services For Older People Under 65 P/Dis,Agency Payments,HCAIT Community Support,575,17/11/2021,2111-00471,0.00,719.82,R,Affinity Trust,No
Http://opendatacommunities.org/id/metropolitan-district-council/leeds,Leeds City Council as Accountable Body,30/11/2021,Social Services Pooled Budgets,Jcs For People With Learning Disabilitie,Agency Payments,Home Care,568,17/11/2021,2111-00472,0.00,334.80,R,Affinity Trust,No
Http://opendatacommunities.org/id/metropolitan-district-council/leeds,Leeds City Council as Accountable Body,30/11/2021,Social Services Pooled Budgets,Jcs For People With Learning Disabilitie,Agency Payments,Day Centre,564,23/11/2021,2111-00473,0.00,15266.88,R,Affinity Trust,No
Http://opendatacommunities.org/id/metropolitan-district-council/leeds,Leeds City Council as Accountable Body,30/11/2021,Social Services Pooled Budgets,Jcs For People With Learning Disabilitie,Agency Payments,Sheltered Accommodation,569,10/11/2021,2111-00474,0.00,88493.85,R,Affinity Trust North Divisional Office,No
Http://opendatacommunities.org/id/metropolitan-district-council/leeds,Leeds City Council,30/11/2021,Resources and Housing,Sustainable Energy & Climate Change,Capital,OTHER COSTS,7,02/11/2021,2111-00475,0.00,2100.00,C,REDACTED COMMERCIAL CONFIDENTIALITY,No
Http://opendatacommunities.org/id/metropolitan-district-council/leeds,Leeds City Council,30/11/2021,Adults and Health,Public Health,Agency Payments,Services Rendered By Voluntary Sector,505,05/11/2021,2111-00476,0.00,7500.00,R,Age Uk Leeds,No
Http://opendatacommunities.org/id/metropolitan-district-council/leeds,Leeds City Council,30/11/2021,Children and Families,Social Care,Appropriations,Leaving Care Allowances,634,04/11/2021,2111-00477,0.00,114.00,R,REDACTED PERSONAL DATA,No
Http://opendatacommunities.org/id/metropolitan-district-council/leeds,Leeds City Council,30/11/2021,Communities and Environment,Parks and Countryside,Supplies and Services,Operational Materials,205,24/11/2021,2111-00478,0.00,2060.38,R,Agrovista UK Ltd,No
Http://opendatacommunities.org/id/metropolitan-district-council/leeds,Leeds City Council,30/11/2021,Communities and Environment,Parks and Countryside,Supplies and Services,Operational Materials,205,26/11/2021,2111-00479,0.00,1003.35,R,Agrovista UK Ltd,No
Http://opendatacommunities.org/id/metropolitan-district-council/leeds,Leeds City Council,30/11/2021,Communities and Environment,Parks and Countryside,Supplies and Services,Operational Materials,205,26/11/2021,2111-00480,0.00,600.85,R,Agrovista UK Ltd,No
Http://opendatacommunities.org/id/metropolitan-district-council/leeds,Leeds City Council,30/11/2021,Communities and Environment,Parks and Countryside,Supplies and Services,Operational Materials,205,26/11/2021,2111-00481,0.00,2078.65,R,Agrovista UK Ltd,No
Http://opendatacommunities.org/id/metropolitan-district-council/leeds,Leeds City Council,30/11/2021,Communities and Environment,Benefits Welfare and Poverty,Supplies and Services,Grant Related Expenditure,290,04/11/2021,2111-00482,0.00,500.00,R,REDACTED PERSONAL DATA,No
Http://opendatacommunities.org/id/metropolitan-district-council/leeds,Leeds City Council,30/11/2021,Communities and Environment,Customer Access,Supplies and Services,Bought In Professional Services,277,10/11/2021,2111-00483,0.00,30.90,R,Ahmed Moustafa Moustafa Mousa,No
Http://opendatacommunities.org/id/metropolitan-district-council/leeds,Leeds City Council,30/11/2021,Communities and Environment,Customer Access,Supplies and Services,Bought In Professional Services,277,10/11/2021,2111-00484,0.00,18.00,R,Ahmed Moustafa Moustafa Mousa,No
Http://opendatacommunities.org/id/metropolitan-district-council/leeds,Leeds City Council,30/11/2021,Communities and Environment,Customer Access,Supplies and Services,Bought In Professional Services,277,10/11/2021,2111-00485,0.00,18.00,R,Ahmed Moustafa Moustafa Mousa,No
Http://opendatacommunities.org/id/metropolitan-district-council/leeds,Leeds City Council,30/11/2021,Communities and Environment,Customer Access,Supplies and Services,Bought In Professional Services,277,17/11/2021,2111-00486,0.00,18.00,R,Ahmed Moustafa Moustafa Mousa,No
Http://opendatacommunities.org/id/metropolitan-district-council/leeds,Leeds City Council,30/11/2021,Communities and Environment,Customer Access,Supplies and Services,Bought In Professional Services,277,17/11/2021,2111-00487,0.00,12.70,R,Ahmed T. Al-Hamdi,No
Http://opendatacommunities.org/id/metropolitan-district-council/leeds,Leeds City Council,30/11/2021,Communities and Environment,Customer Access,Supplies and Services,Bought In Professional Services,277,17/11/2021,2111-00488,0.00,23.10,R,Ahmed T. Al-Hamdi,No
Http://opendatacommunities.org/id/metropolitan-district-council/leeds,Leeds City Council,30/11/2021,Resources and Housing,Sustainable Energy & Climate Change,Capital,OTHER COSTS,7,02/11/2021,2111-00489,0.00,2100.00,C,REDACTED COMMERCIAL CONFIDENTIALITY,No
Http://opendatacommunities.org/id/metropolitan-district-council/leeds,Leeds City Council,30/11/2021,Resources and Housing,Shared Services,Supplies and Services,Conference Meetings,253,30/11/2021,2111-00490,0.00,495.00,R,Ahmedia Ltd,No
Http://opendatacommunities.org/id/metropolitan-district-council/leeds,Leeds City Council,30/11/2021,Children and Families,Social Care,Agency Payments,Contact,548,05/11/2021,2111-00491,0.00,4.00,R,REDACTED PERSONAL DATA,No
Http://opendatacommunities.org/id/metropolitan-district-council/leeds,Leeds City Council,30/11/2021,Children and Families,Social Care,Agency Payments,Contact,548,12/11/2021,2111-00492,0.00,4.00,R,REDACTED PERSONAL DATA,No
Http://opendatacommunities.org/id/metropolitan-district-council/leeds,Leeds City Council as Accountable Body,30/11/2021,Social Services Pooled Budgets,Leeds Community Equip Store Pooled Budgt,Supplies and Services,Other Equipment,203,04/11/2021,2111-00493,0.00,460.00,R,AIDAPT BATHROOMS LTD,No
Http://opendatacommunities.org/id/metropolitan-district-council/leeds,Leeds City Council as Accountable Body,30/11/2021,Social Services Pooled Budgets,Leeds Community Equip Store Pooled Budgt,Supplies and Services,Other Equipment,203,05/11/2021,2111-00494,0.00,686.00,R,AIDAPT BATHROOMS LTD,No
Http://opendatacommunities.org/id/metropolitan-district-council/leeds,Leeds City Council as Accountable Body,30/11/2021,Social Services Pooled Budgets,Leeds Community Equip Store Pooled Budgt,Supplies and Services,Other Equipment,203,12/11/2021,2111-00495,0.00,606.00,R,AIDAPT BATHROOMS LTD,No
Http://opendatacommunities.org/id/metropolitan-district-council/leeds,Leeds City Council as Accountable Body,30/11/2021,Social Services Pooled Budgets,Leeds Community Equip Store Pooled Budgt,Supplies and Services,Other Equipment,203,12/11/2021,2111-00496,0.00,500.00,R,AIDAPT BATHROOMS LTD,No
Http://opendatacommunities.org/id/metropolitan-district-council/leeds,Leeds City Council as Accountable Body,30/11/2021,Social Services Pooled Budgets,Leeds Community Equip Store Pooled Budgt,Supplies and Services,Other Equipment,203,12/11/2021,2111-00497,0.00,98.00,R,AIDAPT BATHROOMS LTD,No
Http://opendatacommunities.org/id/metropolitan-district-council/leeds,Leeds City Council as Accountable Body,30/11/2021,Social Services Pooled Budgets,Leeds Community Equip Store Pooled Budgt,Supplies and Services,Other Equipment,203,12/11/2021,2111-00498,0.00,2940.00,R,AIDAPT BATHROOMS LTD,No
Http://opendatacommunities.org/id/metropolitan-district-council/leeds,Leeds City Council as Accountable Body,30/11/2021,Social Services Pooled Budgets,Leeds Community Equip Store Pooled Budgt,Supplies and Services,Other Equipment,203,12/11/2021,2111-00499,0.00,2940.00,R,AIDAPT BATHROOMS LTD,No
Http://opendatacommunities.org/id/metropolitan-district-council/leeds,Leeds City Council as Accountable Body,30/11/2021,Social Services Pooled Budgets,Leeds Community Equip Store Pooled Budgt,Supplies and Services,Other Equipment,203,19/11/2021,2111-00500,0.00,800.00,R,AIDAPT BATHROOMS LTD,No
Http://opendatacommunities.org/id/metropolitan-district-council/leeds,Leeds City Council as Accountable Body,30/11/2021,Social Services Pooled Budgets,Leeds Community Equip Store Pooled Budgt,Supplies and Services,Other Equipment,203,30/11/2021,2111-00501,0.00,1548.00,R,AIDAPT BATHROOMS LTD,No
Http://opendatacommunities.org/id/metropolitan-district-council/leeds,Leeds City Council,30/11/2021,Communities and Environment,Benefits Welfare and Poverty,Supplies and Services,Grant Related Expenditure,290,19/11/2021,2111-00502,0.00,500.00,R,REDACTED PERSONAL DATA,No
Http://opendatacommunities.org/id/metropolitan-district-council/leeds,Leeds City Council,30/11/2021,Children and Families,Partnerships & Health,Supplies and Services,Conference Meetings,253,08/11/2021,2111-00503,0.00,225.00,R,AIM PROJECT,No
Http://opendatacommunities.org/id/metropolitan-district-council/leeds,Leeds City Council,30/11/2021,Children and Families,Social Care,Appropriations,Leaving Care Allowances,634,10/11/2021,2111-00504,0.00,100.00,R,REDACTED PERSONAL DATA,No
Http://opendatacommunities.org/id/metropolitan-district-council/leeds,Leeds City Council,30/11/2021,Resources and Housing,Commercial Services,Supplies and Services,Other Hired And Contracted Services,265,11/11/2021,2111-00505,0.00,132.20,R,REDACTED PERSONAL DATA,No
Http://opendatacommunities.org/id/metropolitan-district-council/leeds,Leeds City Council,30/11/2021,Children and Families,Social Care,Appropriations,Leaving Care Allowances,634,04/11/2021,2111-00506,0.00,31.60,R,REDACTED PERSONAL DATA,No
Http://opendatacommunities.org/id/metropolitan-district-council/leeds,Leeds City Council,30/11/2021,Children and Families,Social Care,Agency Payments,Contact,548,15/11/2021,2111-00507,0.00,5.00,R,REDACTED PERSONAL DATA,No
Http://opendatacommunities.org/id/metropolitan-district-council/leeds,Leeds City Council,30/11/2021,Communities and Environment,Benefits Welfare and Poverty,Supplies and Services,Grant Related Expenditure,290,15/11/2021,2111-00508,0.00,500.00,R,REDACTED PERSONAL DATA,No
Http://opendatacommunities.org/id/metropolitan-district-council/leeds,Leeds City Council,30/11/2021,Strategic Accounts,Miscellaneous,Appropriations,Land Drainage Levies,665,01/11/2021,2111-00509,0.00,3924.91,R,Ainsty (2008) Internal Drainage Board,No
Http://opendatacommunities.org/id/metropolitan-district-council/leeds,Leeds City Council,30/11/2021,City Development,Libraries Arts & Heritage,Supplies and Services,Other Hired And Contracted Services,265,26/11/2021,2111-00510,0.00,6700.00,R,Air Giants Limited,No
Http://opendatacommunities.org/id/metropolitan-district-council/leeds,Leeds City Council,30/11/2021,Communities and Environment,Parks and Countryside,Supplies and Services,Operational Materials,205,26/11/2021,2111-00511,0.00,1296.47,R,Air Solutions (Leeds) Ltd,No
Http://opendatacommunities.org/id/metropolitan-district-council/leeds,Leeds City Council,30/11/2021,Adults and Health,Public Health,Agency Payments,Public Health Commissioned Services,526,08/11/2021,2111-00512,0.00,1894.68,R,Aire Valley Surgery,No
Http://opendatacommunities.org/id/metropolitan-district-council/leeds,Leeds City Council,30/11/2021,Communities and Environment,Parks and Countryside,Supplies and Services,Other Hired And Contracted Services,265,03/11/2021,2111-00513,0.00,1285.00,R,Aire Valley Tree Services Ltd,No
Http://opendatacommunities.org/id/metropolitan-district-council/leeds,Leeds City Council,30/11/2021,Communities and Environment,Parks and Countryside,Supplies and Services,Other Hired And Contracted Services,265,26/11/2021,2111-00514,0.00,335.00,R,Aire Valley Tree Services Ltd,No
Http://opendatacommunities.org/id/metropolitan-district-council/leeds,Leeds City Council,30/11/2021,Communities and Environment,Parks and Countryside,Supplies and Services,Other Hired And Contracted Services,265,26/11/2021,2111-00515,0.00,550.00,R,Aire Valley Tree Services Ltd,No
Http://opendatacommunities.org/id/metropolitan-district-council/leeds,Leeds City Council,30/11/2021,Communities and Environment,Parks and Countryside,Supplies and Services,Other Hired And Contracted Services,265,26/11/2021,2111-00516,0.00,950.00,R,Aire Valley Tree Services Ltd,No
Http://opendatacommunities.org/id/metropolitan-district-council/leeds,Leeds City Council,30/11/2021,Communities and Environment,Parks and Countryside,Supplies and Services,Other Hired And Contracted Services,265,26/11/2021,2111-00517,0.00,1300.00,R,Aire Valley Tree Services Ltd,No
Http://opendatacommunities.org/id/metropolitan-district-council/leeds,Leeds City Council,30/11/2021,Adults and Health,Services For Older People - 65 And Over,Agency Payments,Residential Care Dementia,571,10/11/2021,2111-00518,0.00,45615.85,R,Aire View Residential Home,No
Http://opendatacommunities.org/id/metropolitan-district-council/leeds,Leeds City Council,30/11/2021,Adults and Health,Services For Older People - 65 And Over,Agency Payments,Residential,580,10/11/2021,2111-00519,0.00,10737.59,R,Aire View Residential Home,No
Http://opendatacommunities.org/id/metropolitan-district-council/leeds,Leeds City Council,30/11/2021,Adults and Health,Other Adult Services,Agency Payments,Nursing Home,570,16/11/2021,2111-00520,0.00,72000.00,R,Aire View Residential Home,No
Http://opendatacommunities.org/id/metropolitan-district-council/leeds,Leeds City Council,30/11/2021,Adults and Health,Public Health,Agency Payments,Public Health Commissioned Services,526,08/11/2021,2111-00521,0.00,1194.84,R,Aireborough Family Practice,No
Http://opendatacommunities.org/id/metropolitan-district-council/leeds,Leeds City Council,30/11/2021,City Development,Economic Development,Supplies and Services,Grant Related Expenditure,290,22/11/2021,2111-00522,0.00,1495.00,R,Aireborough Thai Boxing Limited,No
Http://opendatacommunities.org/id/metropolitan-district-council/leeds,Leeds City Council,30/11/2021,Adults and Health,Services For Older People - 65 And Over,Agency Payments,Residential Care Dementia,571,10/11/2021,2111-00523,0.00,1518.60,R,Airedale Care Home,No
Http://opendatacommunities.org/id/metropolitan-district-council/leeds,Leeds City Council,30/11/2021,Adults and Health,Services For Older People - 65 And Over,Agency Payments,Residential,580,10/11/2021,2111-00524,0.00,16770.53,R,Airedale Care Home,No
Http://opendatacommunities.org/id/metropolitan-district-council/leeds,Leeds City Council,30/11/2021,Adults and Health,Other Adult Services,Agency Payments,Nursing Home,570,16/11/2021,2111-00525,0.00,9450.00,R,Airedale Care Home,No
Http://opendatacommunities.org/id/metropolitan-district-council/leeds,Leeds City Council,30/11/2021,Resources and Housing,Commercial Services,Supplies and Services,Operational Furniture And Equipment,203,10/11/2021,2111-00526,0.00,1197.00,R,AIREDALE CATERING EQUIPMENT LTD,No
Http://opendatacommunities.org/id/metropolitan-district-council/leeds,Leeds City Council,30/11/2021,Resources and Housing,Commercial Services,Premises,Fixtures & Fittings,131,26/11/2021,2111-00527,0.00,14446.00,R,AIREDALE CATERING EQUIPMENT LTD,No
Http://opendatacommunities.org/id/metropolitan-district-council/leeds,Leeds City Council,30/11/2021,Resources and Housing,Commercial Services,Supplies and Services,Operational Furniture And Equipment,203,30/11/2021,2111-00528,0.00,1735.00,R,AIREDALE CATERING EQUIPMENT LTD,No
Http://opendatacommunities.org/id/metropolitan-district-council/leeds,Leeds City Council,30/11/2021,Resources and Housing,Commercial Services,Supplies and Services,Operational Furniture And Equipment,203,30/11/2021,2111-00529,0.00,1735.00,R,AIREDALE CATERING EQUIPMENT LTD,No
Http://opendatacommunities.org/id/metropolitan-district-council/leeds,Leeds City Council,30/11/2021,Communities and Environment,Parks and Countryside,Supplies and Services,Other Hired And Contracted Services,265,05/11/2021,2111-00530,0.00,1419.79,R,Airedon Limited,No
Http://opendatacommunities.org/id/metropolitan-district-council/leeds,Leeds City Council,30/11/2021,Children and Families,Social Care,Transport,Public Transport Expenses,310,01/10/2021,2111-00531,0.00,11.85,R,Airpay 39051280-Amber Car,Yes
Http://opendatacommunities.org/id/metropolitan-district-council/leeds,Leeds City Council,30/11/2021,Children and Families,Social Care,Transport,Public Transport Expenses,310,01/10/2021,2111-00532,0.00,6.95,R,Airpay 39051753-Amber Car,Yes
Http://opendatacommunities.org/id/metropolitan-district-council/leeds,Leeds City Council,30/11/2021,Children and Families,Social Care,Transport,Public Transport Expenses,310,04/10/2021,2111-00533,0.00,9.05,R,Airpay 39053790-Amber Car,Yes
Http://opendatacommunities.org/id/metropolitan-district-council/leeds,Leeds City Council,30/11/2021,Children and Families,Social Care,Transport,Public Transport Expenses,310,12/10/2021,2111-00534,0.00,33.05,R,Airpay 39223775-Amber Car,Yes
Http://opendatacommunities.org/id/metropolitan-district-council/leeds,Leeds City Council,30/11/2021,City Development,Recreation,Supplies and Services,Operational Furniture And Equipment,203,14/10/2021,2111-00535,0.00,445.50,R,Airquee Ltd,Yes
Http://opendatacommunities.org/id/metropolitan-district-council/leeds,Leeds City Council,30/11/2021,Communities and Environment,Benefits Welfare and Poverty,Supplies and Services,Grant Related Expenditure,298,19/11/2021,2111-00536,0.00,500.00,R,REDACTED PERSONAL DATA,No
Http://opendatacommunities.org/id/metropolitan-district-council/leeds,Leeds City Council,30/11/2021,Communities and Environment,Benefits Welfare and Poverty,Supplies and Services,Grant Related Expenditure,298,15/11/2021,2111-00537,0.00,500.00,R,REDACTED PERSONAL DATA,No
Http://opendatacommunities.org/id/metropolitan-district-council/leeds,Leeds City Council,30/11/2021,Communities and Environment,Benefits Welfare and Poverty,Supplies and Services,Grant Related Expenditure,298,01/11/2021,2111-00538,0.00,500.00,R,REDACTED PERSONAL DATA,No
Http://opendatacommunities.org/id/metropolitan-district-council/leeds,Leeds City Council,30/11/2021,Adults and Health,Services For Adults Under 65 Mental/Dis,Agency Payments,Fees - Level 4,520,05/11/2021,2111-00539,0.00,175.00,R,AIT Mitra Limited,No
Http://opendatacommunities.org/id/metropolitan-district-council/leeds,Leeds City Council,30/11/2021,Adults and Health,Services For Adults Under 65 Mental/Dis,Agency Payments,Fees - Level 4,520,05/11/2021,2111-00540,0.00,175.00,R,AIT Mitra Limited,No
Http://opendatacommunities.org/id/metropolitan-district-council/leeds,Leeds City Council,30/11/2021,Adults and Health,Services For Adults Under 65 Mental/Dis,Agency Payments,Fees - Level 4,520,05/11/2021,2111-00541,0.00,175.00,R,AIT Mitra Limited,No
Http://opendatacommunities.org/id/metropolitan-district-council/leeds,Leeds City Council,30/11/2021,Adults and Health,Services For Adults Under 65 Mental/Dis,Agency Payments,Fees - Level 4,520,05/11/2021,2111-00542,0.00,175.00,R,AIT Mitra Limited,No
Http://opendatacommunities.org/id/metropolitan-district-council/leeds,Leeds City Council,30/11/2021,Adults and Health,Services For Adults Under 65 Mental/Dis,Agency Payments,Fees - Level 4,520,11/11/2021,2111-00543,0.00,175.00,R,AIT Mitra Limited,No
Http://opendatacommunities.org/id/metropolitan-district-council/leeds,Leeds City Council,30/11/2021,Adults and Health,Services For Adults Under 65 Mental/Dis,Agency Payments,Fees - Level 4,520,11/11/2021,2111-00544,0.00,175.00,R,AIT Mitra Limited,No
Http://opendatacommunities.org/id/metropolitan-district-council/leeds,Leeds City Council,30/11/2021,Adults and Health,Services For Adults Under 65 Mental/Dis,Agency Payments,Fees - Level 4,520,12/11/2021,2111-00545,0.00,175.00,R,AIT Mitra Limited,No
Http://opendatacommunities.org/id/metropolitan-district-council/leeds,Leeds City Council,30/11/2021,Adults and Health,Services For Adults Under 65 Mental/Dis,Agency Payments,Fees - Level 4,520,12/11/2021,2111-00546,0.00,175.00,R,AIT Mitra Limited,No
Http://opendatacommunities.org/id/metropolitan-district-council/leeds,Leeds City Council,30/11/2021,Adults and Health,Services For Adults Under 65 Mental/Dis,Agency Payments,Fees - Level 4,520,12/11/2021,2111-00547,0.00,175.00,R,AIT Mitra Limited,No
Http://opendatacommunities.org/id/metropolitan-district-council/leeds,Leeds City Council,30/11/2021,Adults and Health,Services For Adults Under 65 Mental/Dis,Agency Payments,Fees - Level 4,520,12/11/2021,2111-00548,0.00,175.00,R,AIT Mitra Limited,No
Http://opendatacommunities.org/id/metropolitan-district-council/leeds,Leeds City Council,30/11/2021,Adults and Health,Services For Adults Under 65 Mental/Dis,Agency Payments,Fees - Level 4,520,12/11/2021,2111-00549,0.00,175.00,R,AIT Mitra Limited,No
Http://opendatacommunities.org/id/metropolitan-district-council/leeds,Leeds City Council,30/11/2021,Adults and Health,Services For Adults Under 65 Mental/Dis,Agency Payments,Fees - Level 4,520,18/11/2021,2111-00550,0.00,175.00,R,AIT Mitra Limited,No
Http://opendatacommunities.org/id/metropolitan-district-council/leeds,Leeds City Council,30/11/2021,Adults and Health,Services For Adults Under 65 Mental/Dis,Agency Payments,Fees - Level 4,520,19/11/2021,2111-00551,0.00,175.00,R,AIT Mitra Limited,No
Http://opendatacommunities.org/id/metropolitan-district-council/leeds,Leeds City Council,30/11/2021,Adults and Health,Services For Adults Under 65 Mental/Dis,Agency Payments,Fees - Level 4,520,19/11/2021,2111-00552,0.00,175.00,R,AIT Mitra Limited,No
Http://opendatacommunities.org/id/metropolitan-district-council/leeds,Leeds City Council,30/11/2021,Adults and Health,Services For Adults Under 65 Mental/Dis,Agency Payments,Fees - Level 4,520,19/11/2021,2111-00553,0.00,175.00,R,AIT Mitra Limited,No
Http://opendatacommunities.org/id/metropolitan-district-council/leeds,Leeds City Council,30/11/2021,Adults and Health,Services For Adults Under 65 Mental/Dis,Agency Payments,Fees - Level 4,520,19/11/2021,2111-00554,0.00,175.00,R,AIT Mitra Limited,No
Http://opendatacommunities.org/id/metropolitan-district-council/leeds,Leeds City Council,30/11/2021,Adults and Health,Services For Adults Under 65 Mental/Dis,Agency Payments,Fees - Level 4,520,19/11/2021,2111-00555,0.00,175.00,R,AIT Mitra Limited,No
Http://opendatacommunities.org/id/metropolitan-district-council/leeds,Leeds City Council,30/11/2021,Adults and Health,Services For Adults Under 65 Mental/Dis,Agency Payments,Fees - Level 4,520,19/11/2021,2111-00556,0.00,175.00,R,AIT Mitra Limited,No
Http://opendatacommunities.org/id/metropolitan-district-council/leeds,Leeds City Council,30/11/2021,Adults and Health,Services For Adults Under 65 Mental/Dis,Agency Payments,Fees - Level 4,520,23/11/2021,2111-00557,0.00,175.00,R,AIT Mitra Limited,No
Http://opendatacommunities.org/id/metropolitan-district-council/leeds,Leeds City Council,30/11/2021,Adults and Health,Services For Adults Under 65 Mental/Dis,Agency Payments,Fees - Level 4,520,23/11/2021,2111-00558,0.00,175.00,R,AIT Mitra Limited,No
Http://opendatacommunities.org/id/metropolitan-district-council/leeds,Leeds City Council,30/11/2021,Adults and Health,Services For Adults Under 65 Mental/Dis,Agency Payments,Fees - Level 4,520,23/11/2021,2111-00559,0.00,175.00,R,AIT Mitra Limited,No
Http://opendatacommunities.org/id/metropolitan-district-council/leeds,Leeds City Council,30/11/2021,Adults and Health,Services For Adults Under 65 Mental/Dis,Agency Payments,Fees - Level 4,520,23/11/2021,2111-00560,0.00,175.00,R,AIT Mitra Limited,No
Http://opendatacommunities.org/id/metropolitan-district-council/leeds,Leeds City Council,30/11/2021,Adults and Health,Services For Adults Under 65 Mental/Dis,Agency Payments,Fees - Level 4,520,23/11/2021,2111-00561,0.00,175.00,R,AIT Mitra Limited,No
Http://opendatacommunities.org/id/metropolitan-district-council/leeds,Leeds City Council,30/11/2021,Adults and Health,Services For Adults Under 65 Mental/Dis,Agency Payments,Fees - Level 4,520,23/11/2021,2111-00562,0.00,175.00,R,AIT Mitra Limited,No
Http://opendatacommunities.org/id/metropolitan-district-council/leeds,Leeds City Council,30/11/2021,Adults and Health,Services For Adults Under 65 Mental/Dis,Agency Payments,Fees - Level 4,520,23/11/2021,2111-00563,0.00,175.00,R,AIT Mitra Limited,No
Http://opendatacommunities.org/id/metropolitan-district-council/leeds,Leeds City Council,30/11/2021,Adults and Health,Services For Adults Under 65 Mental/Dis,Agency Payments,Fees - Level 4,520,23/11/2021,2111-00564,0.00,175.00,R,AIT Mitra Limited,No
Http://opendatacommunities.org/id/metropolitan-district-council/leeds,Leeds City Council,30/11/2021,Adults and Health,Services For Adults Under 65 Mental/Dis,Agency Payments,Fees - Level 4,520,23/11/2021,2111-00565,0.00,175.00,R,AIT Mitra Limited,No
Http://opendatacommunities.org/id/metropolitan-district-council/leeds,Leeds City Council,30/11/2021,Adults and Health,Services For Adults Under 65 Mental/Dis,Agency Payments,Fees - Level 4,520,23/11/2021,2111-00566,0.00,175.00,R,AIT Mitra Limited,No
Http://opendatacommunities.org/id/metropolitan-district-council/leeds,Leeds City Council as Accountable Body,30/11/2021,Social Services Pooled Budgets,Jcs For People With Learning Disabilitie,Agency Payments,Residential,580,10/11/2021,2111-00567,0.00,7341.36,R,AITCH care homes,No
Http://opendatacommunities.org/id/metropolitan-district-council/leeds,Leeds City Council,30/11/2021,Resources and Housing,Leeds Building Services,Supplies and Services,Operational Furniture And Equipment,203,12/11/2021,2111-00568,0.00,521.00,R,AJM FIXINGS & POWER TOOLS LTD,No
Http://opendatacommunities.org/id/metropolitan-district-council/leeds,Leeds City Council,30/11/2021,Resources and Housing,Leeds Building Services,Supplies and Services,Operational Furniture And Equipment,203,12/11/2021,2111-00569,0.00,1046.50,R,AJM FIXINGS & POWER TOOLS LTD,No
Http://opendatacommunities.org/id/metropolitan-district-council/leeds,Leeds City Council,30/11/2021,Resources and Housing,Leeds Building Services,Supplies and Services,Operational Materials,205,12/11/2021,2111-00570,0.00,1069.80,R,AJM FIXINGS & POWER TOOLS LTD,No
Http://opendatacommunities.org/id/metropolitan-district-council/leeds,Leeds City Council,30/11/2021,Resources and Housing,Leeds Building Services,Supplies and Services,Operational Furniture And Equipment,203,12/11/2021,2111-00571,0.00,536.64,R,AJM FIXINGS & POWER TOOLS LTD,No
Http://opendatacommunities.org/id/metropolitan-district-council/leeds,Leeds City Council,30/11/2021,Resources and Housing,Leeds Building Services,Supplies and Services,Operational Furniture And Equipment,203,12/11/2021,2111-00572,0.00,1554.00,R,AJM FIXINGS & POWER TOOLS LTD,No
Http://opendatacommunities.org/id/metropolitan-district-council/leeds,Leeds City Council,30/11/2021,Resources and Housing,Leeds Building Services,Premises,Cleaning Maintenance & Toiletries,127,12/11/2021,2111-00573,0.00,1692.00,R,AJM FIXINGS & POWER TOOLS LTD,No
Http://opendatacommunities.org/id/metropolitan-district-council/leeds,Leeds City Council,30/11/2021,Resources and Housing,Leeds Building Services,Supplies and Services,Operational Furniture And Equipment,203,12/11/2021,2111-00574,0.00,435.00,R,AJM FIXINGS & POWER TOOLS LTD,No
Http://opendatacommunities.org/id/metropolitan-district-council/leeds,Leeds City Council,30/11/2021,Resources and Housing,Leeds Building Services,Supplies and Services,Operational Furniture And Equipment,203,12/11/2021,2111-00575,0.00,255.00,R,AJM FIXINGS & POWER TOOLS LTD,No
Http://opendatacommunities.org/id/metropolitan-district-council/leeds,Leeds City Council,30/11/2021,Resources and Housing,Leeds Building Services,Supplies and Services,Operational Furniture And Equipment,203,12/11/2021,2111-00576,0.00,197.78,R,AJM FIXINGS & POWER TOOLS LTD,No
Http://opendatacommunities.org/id/metropolitan-district-council/leeds,Leeds City Council,30/11/2021,Resources and Housing,Leeds Building Services,Supplies and Services,Operational Furniture And Equipment,203,12/11/2021,2111-00577,0.00,110.82,R,AJM FIXINGS & POWER TOOLS LTD,No
Http://opendatacommunities.org/id/metropolitan-district-council/leeds,Leeds City Council,30/11/2021,Resources and Housing,Leeds Building Services,Supplies and Services,Operational Furniture And Equipment,203,12/11/2021,2111-00578,0.00,1039.90,R,AJM FIXINGS & POWER TOOLS LTD,No
Http://opendatacommunities.org/id/metropolitan-district-council/leeds,Leeds City Council,30/11/2021,Resources and Housing,Leeds Building Services,Premises,Cleaning Maintenance & Toiletries,127,12/11/2021,2111-00579,0.00,149.94,R,AJM FIXINGS & POWER TOOLS LTD,No
Http://opendatacommunities.org/id/metropolitan-district-council/leeds,Leeds City Council,30/11/2021,Resources and Housing,Leeds Building Services,Supplies and Services,Operational Furniture And Equipment,203,12/11/2021,2111-00580,0.00,1099.56,R,AJM FIXINGS & POWER TOOLS LTD,No
Http://opendatacommunities.org/id/metropolitan-district-council/leeds,Leeds City Council,30/11/2021,Resources and Housing,Leeds Building Services,Supplies and Services,Operational Furniture And Equipment,203,12/11/2021,2111-00581,0.00,150.96,R,AJM FIXINGS & POWER TOOLS LTD,No
Http://opendatacommunities.org/id/metropolitan-district-council/leeds,Leeds City Council,30/11/2021,Resources and Housing,Leeds Building Services,Supplies and Services,Operational Furniture And Equipment,203,12/11/2021,2111-00582,0.00,25.24,R,AJM FIXINGS & POWER TOOLS LTD,No
Http://opendatacommunities.org/id/metropolitan-district-council/leeds,Leeds City Council,30/11/2021,Resources and Housing,Leeds Building Services,Supplies and Services,Operational Furniture And Equipment,203,12/11/2021,2111-00583,0.00,146.26,R,AJM FIXINGS & POWER TOOLS LTD,No
Http://opendatacommunities.org/id/metropolitan-district-council/leeds,Leeds City Council,30/11/2021,Resources and Housing,Leeds Building Services,Supplies and Services,Operational Furniture And Equipment,203,12/11/2021,2111-00584,0.00,252.40,R,AJM FIXINGS & POWER TOOLS LTD,No
Http://opendatacommunities.org/id/metropolitan-district-council/leeds,Leeds City Council,30/11/2021,Resources and Housing,Leeds Building Services,Premises,Cleaning Maintenance & Toiletries,127,12/11/2021,2111-00585,0.00,220.00,R,AJM FIXINGS & POWER TOOLS LTD,No
Http://opendatacommunities.org/id/metropolitan-district-council/leeds,Leeds City Council,30/11/2021,Resources and Housing,Leeds Building Services,Supplies and Services,Operational Furniture And Equipment,203,12/11/2021,2111-00586,0.00,182.00,R,AJM FIXINGS & POWER TOOLS LTD,No
Http://opendatacommunities.org/id/metropolitan-district-council/leeds,Leeds City Council,30/11/2021,Resources and Housing,Leeds Building Services,Supplies and Services,Operational Furniture And Equipment,203,12/11/2021,2111-00587,0.00,110.00,R,AJM FIXINGS & POWER TOOLS LTD,No
Http://opendatacommunities.org/id/metropolitan-district-council/leeds,Leeds City Council,30/11/2021,Resources and Housing,Leeds Building Services,Supplies and Services,Operational Furniture And Equipment,203,12/11/2021,2111-00588,0.00,76.40,R,AJM FIXINGS & POWER TOOLS LTD,No
Http://opendatacommunities.org/id/metropolitan-district-council/leeds,Leeds City Council,30/11/2021,Resources and Housing,Leeds Building Services,Supplies and Services,Operational Furniture And Equipment,203,19/11/2021,2111-00589,0.00,1956.25,R,AJM FIXINGS & POWER TOOLS LTD,No
Http://opendatacommunities.org/id/metropolitan-district-council/leeds,Leeds City Council,30/11/2021,Resources and Housing,Leeds Building Services,Supplies and Services,Operational Furniture And Equipment,203,24/11/2021,2111-00590,0.00,536.64,R,AJM FIXINGS & POWER TOOLS LTD,No
Http://opendatacommunities.org/id/metropolitan-district-council/leeds,Leeds City Council,30/11/2021,Resources and Housing,Leeds Building Services,Supplies and Services,Operational Furniture And Equipment,203,24/11/2021,2111-00591,0.00,757.20,R,AJM FIXINGS & POWER TOOLS LTD,No
Http://opendatacommunities.org/id/metropolitan-district-council/leeds,Leeds City Council,30/11/2021,Resources and Housing,Leeds Building Services,Supplies and Services,Operational Furniture And Equipment,203,25/11/2021,2111-00592,0.00,74.95,R,AJM FIXINGS & POWER TOOLS LTD,No
Http://opendatacommunities.org/id/metropolitan-district-council/leeds,Leeds City Council,30/11/2021,Resources and Housing,Leeds Building Services,Supplies and Services,Operational Furniture And Equipment,203,25/11/2021,2111-00593,0.00,38.55,R,AJM FIXINGS & POWER TOOLS LTD,No
Http://opendatacommunities.org/id/metropolitan-district-council/leeds,Leeds City Council,30/11/2021,Resources and Housing,Leeds Building Services,Supplies and Services,Operational Furniture And Equipment,203,25/11/2021,2111-00594,0.00,643.05,R,AJM FIXINGS & POWER TOOLS LTD,No
Http://opendatacommunities.org/id/metropolitan-district-council/leeds,Leeds City Council,30/11/2021,Resources and Housing,Leeds Building Services,Supplies and Services,Operational Furniture And Equipment,203,25/11/2021,2111-00595,0.00,139.98,R,AJM FIXINGS & POWER TOOLS LTD,No
Http://opendatacommunities.org/id/metropolitan-district-council/leeds,Leeds City Council,30/11/2021,Resources and Housing,Leeds Building Services,Supplies and Services,Operational Furniture And Equipment,203,25/11/2021,2111-00596,0.00,749.96,R,AJM FIXINGS & POWER TOOLS LTD,No
Http://opendatacommunities.org/id/metropolitan-district-council/leeds,Leeds City Council,30/11/2021,Resources and Housing,Leeds Building Services,Supplies and Services,Operational Materials,205,25/11/2021,2111-00597,0.00,441.60,R,AJM FIXINGS & POWER TOOLS LTD,No
Http://opendatacommunities.org/id/metropolitan-district-council/leeds,Leeds City Council,30/11/2021,Resources and Housing,Leeds Building Services,Supplies and Services,STORES - CENTRAL AND OTHER DEPOTS,005,25/11/2021,2111-00598,0.00,647.40,R,AJM FIXINGS & POWER TOOLS LTD,No
Http://opendatacommunities.org/id/metropolitan-district-council/leeds,Leeds City Council,30/11/2021,Resources and Housing,Leeds Building Services,Supplies and Services,Operational Furniture And Equipment,203,26/11/2021,2111-00599,0.00,329.90,R,AJM FIXINGS & POWER TOOLS LTD,No
Http://opendatacommunities.org/id/metropolitan-district-council/leeds,Leeds City Council,30/11/2021,Communities and Environment,Waste Management,Premises,General Maintenance,104,26/11/2021,2111-00600,0.00,2875.00,R,AK Containers Technical Services Ltd,No
Http://opendatacommunities.org/id/metropolitan-district-council/leeds,Leeds City Council,30/11/2021,Communities and Environment,Elections Licensing and Registration,External Income,Admissions Booking Fees & Ticket Sales,933,25/11/2021,2111-00601,0.00,130.00,R,Akhtar Hussain,No
Http://opendatacommunities.org/id/metropolitan-district-council/leeds,Leeds City Council,30/11/2021,Children and Families,Social Care,Appropriations,Leaving Care Grants,635,04/10/2021,2111-00602,0.00,25.00,R,Al Murad,Yes
Http://opendatacommunities.org/id/metropolitan-district-council/leeds,Leeds City Council,30/11/2021,City Development,Libraries Arts & Heritage,Supplies and Services,Other Hired And Contracted Services,265,04/11/2021,2111-00603,0.00,23.33,R,ALAA Enterprises,No
Http://opendatacommunities.org/id/metropolitan-district-council/leeds,Leeds City Council,30/11/2021,City Development,Recreation,External Income,Arts/Sports Facility Hire,920,12/11/2021,2111-00604,0.00,13.60,R,REDACTED PERSONAL DATA,No
Http://opendatacommunities.org/id/metropolitan-district-council/leeds,Leeds City Council,30/11/2021,Communities and Environment,Benefits Welfare and Poverty,Supplies and Services,Grant Related Expenditure,290,15/11/2021,2111-00605,0.00,500.00,R,REDACTED PERSONAL DATA,No
Http://opendatacommunities.org/id/metropolitan-district-council/leeds,Leeds City Council,30/11/2021,Communities and Environment,Benefits Welfare and Poverty,Supplies and Services,Grant Related Expenditure,298,02/11/2021,2111-00606,0.00,500.00,R,REDACTED PERSONAL DATA,No
Http://opendatacommunities.org/id/metropolitan-district-council/leeds,Leeds City Council,30/11/2021,Communities and Environment,Benefits Welfare and Poverty,Supplies and Services,Grant Related Expenditure,298,15/11/2021,2111-00607,0.00,500.00,R,REDACTED PERSONAL DATA,No
Http://opendatacommunities.org/id/metropolitan-district-council/leeds,Leeds City Council,30/11/2021,City Development,Employment & Skills,Agency Payments,Contributions To Partnerships,544,29/11/2021,2111-00608,0.00,1500.00,R,Al-Bashir Academy Ltd,No
Http://opendatacommunities.org/id/metropolitan-district-council/leeds,Leeds City Council,30/11/2021,Communities and Environment,Benefits Welfare and Poverty,Supplies and Services,Grant Related Expenditure,290,16/11/2021,2111-00609,0.00,500.00,R,REDACTED PERSONAL DATA,No
Http://opendatacommunities.org/id/metropolitan-district-council/leeds,Leeds City Council,30/11/2021,Communities and Environment,Communities,Supplies and Services,Computer Software & Equipment,214,12/11/2021,2111-00610,0.00,1228.37,R,Alcium Software Ltd,No
Http://opendatacommunities.org/id/metropolitan-district-council/leeds,Leeds City Council,30/11/2021,Communities and Environment,Communities,Supplies and Services,Computer Software & Equipment,214,19/11/2021,2111-00611,0.00,1228.33,R,Alcium Software Ltd,No
Http://opendatacommunities.org/id/metropolitan-district-council/leeds,Leeds City Council,30/11/2021,Children and Families,Social Care,Supplies and Services,Food & Drink,231,27/10/2021,2111-00612,0.00,30.43,R,Aldi 40 779,Yes
Http://opendatacommunities.org/id/metropolitan-district-council/leeds,Leeds City Council,30/11/2021,Children and Families,Social Care,Supplies and Services,Food & Drink,231,04/10/2021,2111-00613,0.00,48.16,R,Aldi 49 779,Yes
Http://opendatacommunities.org/id/metropolitan-district-council/leeds,Leeds City Council,30/11/2021,Children and Families,Social Care,Supplies and Services,Food & Drink,231,04/10/2021,2111-00614,0.00,4.98,R,Aldi 71 779,Yes
Http://opendatacommunities.org/id/metropolitan-district-council/leeds,Leeds City Council,30/11/2021,Children and Families,Social Care,Agency Payments,Section 17,551,06/10/2021,2111-00615,0.00,5.75,R,Aldi 71 779,Yes
Http://opendatacommunities.org/id/metropolitan-district-council/leeds,Leeds City Council,30/11/2021,Children and Families,Social Care,Supplies and Services,Food & Drink,231,20/10/2021,2111-00616,0.00,18.96,R,Aldi 71 779,Yes
Http://opendatacommunities.org/id/metropolitan-district-council/leeds,Leeds City Council,30/11/2021,Children and Families,Social Care,Supplies and Services,Food & Drink,231,04/10/2021,2111-00617,0.00,3.95,R,Aldi 89 779,Yes
Http://opendatacommunities.org/id/metropolitan-district-council/leeds,Leeds City Council,30/11/2021,Children and Families,Social Care,Supplies and Services,Food & Drink,231,05/10/2021,2111-00618,0.00,51.07,R,Aldi 89 779,Yes
Http://opendatacommunities.org/id/metropolitan-district-council/leeds,Leeds City Council,30/11/2021,Children and Families,Social Care,Supplies and Services,Food & Drink,231,12/10/2021,2111-00619,0.00,57.76,R,Aldi 89 779,Yes
Http://opendatacommunities.org/id/metropolitan-district-council/leeds,Leeds City Council,30/11/2021,Children and Families,Social Care,Supplies and Services,Food & Drink,231,18/10/2021,2111-00620,0.00,19.47,R,Aldi 89 779,Yes
Http://opendatacommunities.org/id/metropolitan-district-council/leeds,Leeds City Council,30/11/2021,Children and Families,Social Care,Supplies and Services,Food & Drink,231,19/10/2021,2111-00621,0.00,66.85,R,Aldi 89 779,Yes
Http://opendatacommunities.org/id/metropolitan-district-council/leeds,Leeds City Council,30/11/2021,Children and Families,Social Care,Supplies and Services,Food & Drink,231,26/10/2021,2111-00622,0.00,59.61,R,Aldi 89 779,Yes
Http://opendatacommunities.org/id/metropolitan-district-council/leeds,Leeds City Council,30/11/2021,City Development,Libraries Arts & Heritage,Transport,Public Transport Expenses,310,25/11/2021,2111-00623,0.00,11.10,R,REDACTED PERSONAL DATA,No
Http://opendatacommunities.org/id/metropolitan-district-council/leeds,Leeds City Council,30/11/2021,Communities and Environment,Benefits Welfare and Poverty,Supplies and Services,Grant Related Expenditure,298,18/11/2021,2111-00624,0.00,500.00,R,REDACTED PERSONAL DATA,No
Http://opendatacommunities.org/id/metropolitan-district-council/leeds,Leeds City Council,30/11/2021,Communities and Environment,Benefits Welfare and Poverty,Supplies and Services,Grant Related Expenditure,298,08/11/2021,2111-00625,0.00,500.00,R,REDACTED PERSONAL DATA,No
Http://opendatacommunities.org/id/metropolitan-district-council/leeds,Leeds City Council,30/11/2021,Communities and Environment,Benefits Welfare and Poverty,Supplies and Services,Grant Related Expenditure,298,30/11/2021,2111-00626,0.00,500.00,R,REDACTED PERSONAL DATA,No
Http://opendatacommunities.org/id/metropolitan-district-council/leeds,Leeds City Council,30/11/2021,Communities and Environment,Customer Access,Supplies and Services,Bought In Professional Services,277,10/11/2021,2111-00627,0.00,25.50,R,Alena Zueva,No
Http://opendatacommunities.org/id/metropolitan-district-council/leeds,Leeds City Council,30/11/2021,Communities and Environment,Customer Access,Supplies and Services,Bought In Professional Services,277,24/11/2021,2111-00628,0.00,42.00,R,Alena Zueva,No
Http://opendatacommunities.org/id/metropolitan-district-council/leeds,Leeds City Council,30/11/2021,Communities and Environment,Customer Access,Supplies and Services,Bought In Professional Services,277,24/11/2021,2111-00629,0.00,18.00,R,Alena Zueva,No
Http://opendatacommunities.org/id/metropolitan-district-council/leeds,Leeds City Council,30/11/2021,Communities and Environment,Benefits Welfare and Poverty,Supplies and Services,Grant Related Expenditure,298,16/11/2021,2111-00630,0.00,500.00,R,REDACTED PERSONAL DATA,No
Http://opendatacommunities.org/id/metropolitan-district-council/leeds,Leeds City Council,30/11/2021,Resources and Housing,Commercial Services,Transport,Vehicle Spares,345,04/11/2021,2111-00631,0.00,195.00,R,ALEX WAGG,No
Http://opendatacommunities.org/id/metropolitan-district-council/leeds,Leeds City Council,30/11/2021,Resources and Housing,Commercial Services,Supplies and Services,Other Hired And Contracted Services,265,04/11/2021,2111-00632,0.00,60.00,R,ALEX WAGG,No
Http://opendatacommunities.org/id/metropolitan-district-council/leeds,Leeds City Council,30/11/2021,Resources and Housing,Commercial Services,Supplies and Services,Other Hired And Contracted Services,265,05/11/2021,2111-00633,0.00,70.00,R,ALEX WAGG,No
Http://opendatacommunities.org/id/metropolitan-district-council/leeds,Leeds City Council,30/11/2021,Resources and Housing,Commercial Services,Supplies and Services,Other Hired And Contracted Services,265,05/11/2021,2111-00634,0.00,70.00,R,ALEX WAGG,No
Http://opendatacommunities.org/id/metropolitan-district-council/leeds,Leeds City Council,30/11/2021,Resources and Housing,Commercial Services,Supplies and Services,Other Hired And Contracted Services,265,05/11/2021,2111-00635,0.00,70.00,R,ALEX WAGG,No
Http://opendatacommunities.org/id/metropolitan-district-council/leeds,Leeds City Council,30/11/2021,Resources and Housing,Commercial Services,Supplies and Services,Other Hired And Contracted Services,265,05/11/2021,2111-00636,0.00,70.00,R,ALEX WAGG,No
Http://opendatacommunities.org/id/metropolitan-district-council/leeds,Leeds City Council,30/11/2021,Resources and Housing,Commercial Services,Supplies and Services,Other Hired And Contracted Services,265,05/11/2021,2111-00637,0.00,70.00,R,ALEX WAGG,No
Http://opendatacommunities.org/id/metropolitan-district-council/leeds,Leeds City Council,30/11/2021,Resources and Housing,Commercial Services,Supplies and Services,Other Hired And Contracted Services,265,10/11/2021,2111-00638,0.00,70.00,R,ALEX WAGG,No
Http://opendatacommunities.org/id/metropolitan-district-council/leeds,Leeds City Council,30/11/2021,Resources and Housing,Commercial Services,Supplies and Services,Other Hired And Contracted Services,265,12/11/2021,2111-00639,0.00,70.00,R,ALEX WAGG,No
Http://opendatacommunities.org/id/metropolitan-district-council/leeds,Leeds City Council,30/11/2021,Resources and Housing,Commercial Services,Supplies and Services,Other Hired And Contracted Services,265,12/11/2021,2111-00640,0.00,70.00,R,ALEX WAGG,No
Http://opendatacommunities.org/id/metropolitan-district-council/leeds,Leeds City Council,30/11/2021,Resources and Housing,Commercial Services,Supplies and Services,Other Hired And Contracted Services,265,12/11/2021,2111-00641,0.00,70.00,R,ALEX WAGG,No
Http://opendatacommunities.org/id/metropolitan-district-council/leeds,Leeds City Council,30/11/2021,Resources and Housing,Commercial Services,Supplies and Services,Other Hired And Contracted Services,265,12/11/2021,2111-00642,0.00,70.00,R,ALEX WAGG,No
Http://opendatacommunities.org/id/metropolitan-district-council/leeds,Leeds City Council,30/11/2021,Resources and Housing,Commercial Services,Supplies and Services,Other Hired And Contracted Services,265,12/11/2021,2111-00643,0.00,70.00,R,ALEX WAGG,No
Http://opendatacommunities.org/id/metropolitan-district-council/leeds,Leeds City Council,30/11/2021,Resources and Housing,Commercial Services,Supplies and Services,Other Hired And Contracted Services,265,12/11/2021,2111-00644,0.00,70.00,R,ALEX WAGG,No
Http://opendatacommunities.org/id/metropolitan-district-council/leeds,Leeds City Council,30/11/2021,Resources and Housing,Commercial Services,Transport,Vehicle Spares,345,12/11/2021,2111-00645,0.00,95.98,R,ALEX WAGG,No
Http://opendatacommunities.org/id/metropolitan-district-council/leeds,Leeds City Council,30/11/2021,Resources and Housing,Commercial Services,Supplies and Services,Other Hired And Contracted Services,265,17/11/2021,2111-00646,0.00,60.00,R,ALEX WAGG,No
Http://opendatacommunities.org/id/metropolitan-district-council/leeds,Leeds City Council,30/11/2021,Resources and Housing,Commercial Services,Supplies and Services,Other Hired And Contracted Services,265,17/11/2021,2111-00647,0.00,60.00,R,ALEX WAGG,No
Http://opendatacommunities.org/id/metropolitan-district-council/leeds,Leeds City Council,30/11/2021,Resources and Housing,Commercial Services,Supplies and Services,Other Hired And Contracted Services,265,17/11/2021,2111-00648,0.00,60.00,R,ALEX WAGG,No
Http://opendatacommunities.org/id/metropolitan-district-council/leeds,Leeds City Council,30/11/2021,Resources and Housing,Commercial Services,Supplies and Services,Other Hired And Contracted Services,265,17/11/2021,2111-00649,0.00,60.00,R,ALEX WAGG,No
Http://opendatacommunities.org/id/metropolitan-district-council/leeds,Leeds City Council,30/11/2021,Resources and Housing,Commercial Services,Supplies and Services,Other Hired And Contracted Services,265,19/11/2021,2111-00650,0.00,70.00,R,ALEX WAGG,No
Http://opendatacommunities.org/id/metropolitan-district-council/leeds,Leeds City Council,30/11/2021,Resources and Housing,Commercial Services,Supplies and Services,Other Hired And Contracted Services,265,19/11/2021,2111-00651,0.00,70.00,R,ALEX WAGG,No
Http://opendatacommunities.org/id/metropolitan-district-council/leeds,Leeds City Council,30/11/2021,Resources and Housing,Commercial Services,Supplies and Services,Other Hired And Contracted Services,265,19/11/2021,2111-00652,0.00,70.00,R,ALEX WAGG,No
Http://opendatacommunities.org/id/metropolitan-district-council/leeds,Leeds City Council,30/11/2021,Resources and Housing,Commercial Services,Supplies and Services,Other Hired And Contracted Services,265,19/11/2021,2111-00653,0.00,70.00,R,ALEX WAGG,No
Http://opendatacommunities.org/id/metropolitan-district-council/leeds,Leeds City Council,30/11/2021,Resources and Housing,Commercial Services,Supplies and Services,Other Hired And Contracted Services,265,19/11/2021,2111-00654,0.00,70.00,R,ALEX WAGG,No
Http://opendatacommunities.org/id/metropolitan-district-council/leeds,Leeds City Council,30/11/2021,Resources and Housing,Commercial Services,Supplies and Services,Other Hired And Contracted Services,265,26/11/2021,2111-00655,0.00,160.00,R,ALEX WAGG,No
Http://opendatacommunities.org/id/metropolitan-district-council/leeds,Leeds City Council,30/11/2021,Resources and Housing,Commercial Services,Supplies and Services,Other Hired And Contracted Services,265,26/11/2021,2111-00656,0.00,220.00,R,ALEX WAGG,No
Http://opendatacommunities.org/id/metropolitan-district-council/leeds,Leeds City Council,30/11/2021,Children and Families,Social Care,Agency Payments,Placement Support,550,29/11/2021,2111-00657,0.00,90.00,R,REDACTED PERSONAL DATA,No
Http://opendatacommunities.org/id/metropolitan-district-council/leeds,Leeds City Council,30/11/2021,City Development,Recreation,External Income,Sporting & Other Recreational Fees,928,04/11/2021,2111-00658,0.00,15.00,R,REDACTED PERSONAL DATA,No
Http://opendatacommunities.org/id/metropolitan-district-council/leeds,Leeds City Council,30/11/2021,Adults and Health,Services For Older People - 65 And Over,Agency Payments,Residential Care Dementia,571,10/11/2021,2111-00659,0.00,16384.24,R,ALEXANDER RESIDENTIAL HOME,No
Http://opendatacommunities.org/id/metropolitan-district-council/leeds,Leeds City Council,30/11/2021,Adults and Health,Services For Older People - 65 And Over,Agency Payments,Residential,580,10/11/2021,2111-00660,0.00,14555.04,R,ALEXANDER RESIDENTIAL HOME,No
Http://opendatacommunities.org/id/metropolitan-district-council/leeds,Leeds City Council,30/11/2021,Adults and Health,Services For Older People Under 65 P/Dis,Agency Payments,Residential Care Dementia,571,10/11/2021,2111-00661,0.00,9563.20,R,ALEXANDER RESIDENTIAL HOME,No
Http://opendatacommunities.org/id/metropolitan-district-council/leeds,Leeds City Council,30/11/2021,Communities and Environment,Benefits Welfare and Poverty,Supplies and Services,Grant Related Expenditure,290,01/11/2021,2111-00662,0.00,500.00,R,REDACTED PERSONAL DATA,No
Http://opendatacommunities.org/id/metropolitan-district-council/leeds,Leeds City Council,30/11/2021,Communities and Environment,Customer Access,Supplies and Services,Bought In Professional Services,277,03/11/2021,2111-00663,0.00,9.00,R,Alexandra Costenco,No
Http://opendatacommunities.org/id/metropolitan-district-council/leeds,Leeds City Council,30/11/2021,Communities and Environment,Customer Access,Supplies and Services,Bought In Professional Services,277,03/11/2021,2111-00664,0.00,36.00,R,Alexandra Costenco,No
Http://opendatacommunities.org/id/metropolitan-district-council/leeds,Leeds City Council,30/11/2021,Communities and Environment,Customer Access,Supplies and Services,Bought In Professional Services,277,10/11/2021,2111-00665,0.00,36.00,R,Alexandra Costenco,No
Http://opendatacommunities.org/id/metropolitan-district-council/leeds,Leeds City Council,30/11/2021,Communities and Environment,Customer Access,Supplies and Services,Bought In Professional Services,277,10/11/2021,2111-00666,0.00,67.50,R,Alexandra Costenco,No
Http://opendatacommunities.org/id/metropolitan-district-council/leeds,Leeds City Council,30/11/2021,Communities and Environment,Customer Access,Supplies and Services,Bought In Professional Services,277,17/11/2021,2111-00667,0.00,79.50,R,Alexandra Costenco,No
Http://opendatacommunities.org/id/metropolitan-district-council/leeds,Leeds City Council,30/11/2021,Communities and Environment,Customer Access,Supplies and Services,Bought In Professional Services,277,24/11/2021,2111-00668,0.00,54.00,R,Alexandra Costenco,No
Http://opendatacommunities.org/id/metropolitan-district-council/leeds,Leeds City Council,30/11/2021,Communities and Environment,Customer Access,Supplies and Services,Bought In Professional Services,277,24/11/2021,2111-00669,0.00,45.00,R,Alexandra Costenco,No
Http://opendatacommunities.org/id/metropolitan-district-council/leeds,Leeds City Council,30/11/2021,Adults and Health,Services For Older People - 65 And Over,Agency Payments,Residential Care Dementia,571,10/11/2021,2111-00670,0.00,19795.55,R,ALEXANDRA COURT,No
Http://opendatacommunities.org/id/metropolitan-district-council/leeds,Leeds City Council,30/11/2021,Adults and Health,Services For Older People - 65 And Over,Agency Payments,Residential,580,10/11/2021,2111-00671,0.00,6102.24,R,ALEXANDRA COURT,No
Http://opendatacommunities.org/id/metropolitan-district-council/leeds,Leeds City Council,30/11/2021,Communities and Environment,Benefits Welfare and Poverty,Supplies and Services,Grant Related Expenditure,298,10/11/2021,2111-00672,0.00,500.00,R,REDACTED PERSONAL DATA,No
Http://opendatacommunities.org/id/metropolitan-district-council/leeds,Leeds City Council,30/11/2021,Children and Families,Social Care,Agency Payments,Services Rendered By Other Organisations,511,03/11/2021,2111-00673,0.00,174.20,R,REDACTED PERSONAL DATA,No
Http://opendatacommunities.org/id/metropolitan-district-council/leeds,Leeds City Council,30/11/2021,Children and Families,Social Care,Agency Payments,Services Rendered By Other Organisations,511,05/11/2021,2111-00674,0.00,1304.55,R,REDACTED PERSONAL DATA,No
Http://opendatacommunities.org/id/metropolitan-district-council/leeds,Leeds City Council,30/11/2021,Adults and Health,Social Services Support Services,Employees,Training & Development,70,15/11/2021,2111-00675,0.00,13.00,R,REDACTED PERSONAL DATA,No
Http://opendatacommunities.org/id/metropolitan-district-council/leeds,Leeds City Council,30/11/2021,Communities and Environment,Benefits Welfare and Poverty,Supplies and Services,Grant Related Expenditure,298,08/11/2021,2111-00676,0.00,500.00,R,REDACTED PERSONAL DATA,No
Http://opendatacommunities.org/id/metropolitan-district-council/leeds,Leeds City Council,30/11/2021,Communities and Environment,Benefits Welfare and Poverty,Supplies and Services,Grant Related Expenditure,298,08/11/2021,2111-00677,0.00,500.00,R,REDACTED PERSONAL DATA,No
Http://opendatacommunities.org/id/metropolitan-district-council/leeds,Leeds City Council,30/11/2021,City Development,Economic Development,Supplies and Services,Grant Related Expenditure,290,19/11/2021,2111-00678,0.00,7967.00,R,Alfies Kitchen Limited,No
Http://opendatacommunities.org/id/metropolitan-district-council/leeds,Leeds City Council,30/11/2021,Resources and Housing,Leeds Building Services,Supplies and Services,Other Hired And Contracted Services,265,05/11/2021,2111-00679,0.00,640.00,R,Alfred Bagnall & Sons (Leeds) Ltd,No
Http://opendatacommunities.org/id/metropolitan-district-council/leeds,Leeds City Council,30/11/2021,Communities and Environment,Parks and Countryside,Supplies and Services,Operational Materials,205,05/11/2021,2111-00680,0.00,2500.00,R,Alfred Bagnall & Sons (Leeds) Ltd,No
Http://opendatacommunities.org/id/metropolitan-district-council/leeds,Leeds City Council,30/11/2021,Resources and Housing,Leeds Building Services,Supplies and Services,Other Hired And Contracted Services,265,18/11/2021,2111-00681,0.00,2600.00,R,Alfred Bagnall & Sons (Leeds) Ltd,No
Http://opendatacommunities.org/id/metropolitan-district-council/leeds,Leeds City Council,30/11/2021,Resources and Housing,Leeds Building Services,Supplies and Services,Other Hired And Contracted Services,265,18/11/2021,2111-00682,0.00,2800.00,R,Alfred Bagnall & Sons (Leeds) Ltd,No
Http://opendatacommunities.org/id/metropolitan-district-council/leeds,Leeds City Council,30/11/2021,Resources and Housing,Leeds Building Services,Supplies and Services,Other Hired And Contracted Services,265,25/11/2021,2111-00683,0.00,870.00,R,Alfred Bagnall & Sons (Leeds) Ltd,No
Http://opendatacommunities.org/id/metropolitan-district-council/leeds,Leeds City Council,30/11/2021,Resources and Housing,Leeds Building Services,Supplies and Services,Other Hired And Contracted Services,265,25/11/2021,2111-00684,0.00,1150.00,R,Alfred Bagnall & Sons (Leeds) Ltd,No
Http://opendatacommunities.org/id/metropolitan-district-council/leeds,Leeds City Council,30/11/2021,Resources and Housing,Leeds Building Services,Supplies and Services,Other Hired And Contracted Services,265,25/11/2021,2111-00685,0.00,2850.00,R,Alfred Bagnall & Sons (Leeds) Ltd,No
Http://opendatacommunities.org/id/metropolitan-district-council/leeds,Leeds City Council,30/11/2021,Resources and Housing,Leeds Building Services,Supplies and Services,Other Hired And Contracted Services,265,26/11/2021,2111-00686,0.00,20208.56,R,Alfred Bagnall & Sons (Leeds) Ltd,No
Http://opendatacommunities.org/id/metropolitan-district-council/leeds,Leeds City Council,30/11/2021,Resources and Housing,Leeds Building Services,Supplies and Services,Other Hired And Contracted Services,265,26/11/2021,2111-00687,0.00,10381.00,R,Alfred Bagnall & Sons (Leeds) Ltd,No
Http://opendatacommunities.org/id/metropolitan-district-council/leeds,Leeds City Council,30/11/2021,Resources and Housing,Sustainable Energy & Climate Change,Capital,OTHER COSTS,7,23/11/2021,2111-00688,0.00,2100.00,C,REDACTED COMMERCIAL CONFIDENTIALITY,No
Http://opendatacommunities.org/id/metropolitan-district-council/leeds,Leeds City Council,30/11/2021,Communities and Environment,Customer Access,Supplies and Services,Bought In Professional Services,277,03/11/2021,2111-00689,0.00,36.00,R,Ali Pourakaberian,No
Http://opendatacommunities.org/id/metropolitan-district-council/leeds,Leeds City Council,30/11/2021,Communities and Environment,Customer Access,Supplies and Services,Bought In Professional Services,277,03/11/2021,2111-00690,0.00,18.00,R,Ali Pourakaberian,No
Http://opendatacommunities.org/id/metropolitan-district-council/leeds,Leeds City Council,30/11/2021,Communities and Environment,Customer Access,Supplies and Services,Bought In Professional Services,277,03/11/2021,2111-00691,0.00,42.00,R,Ali Pourakaberian,No
Http://opendatacommunities.org/id/metropolitan-district-council/leeds,Leeds City Council,30/11/2021,Communities and Environment,Customer Access,Supplies and Services,Bought In Professional Services,277,10/11/2021,2111-00692,0.00,27.00,R,Ali Pourakaberian,No
Http://opendatacommunities.org/id/metropolitan-district-council/leeds,Leeds City Council,30/11/2021,Communities and Environment,Customer Access,Supplies and Services,Bought In Professional Services,277,10/11/2021,2111-00693,0.00,18.00,R,Ali Pourakaberian,No
Http://opendatacommunities.org/id/metropolitan-district-council/leeds,Leeds City Council,30/11/2021,Communities and Environment,Customer Access,Supplies and Services,Bought In Professional Services,277,17/11/2021,2111-00694,0.00,9.00,R,Ali Pourakaberian,No
Http://opendatacommunities.org/id/metropolitan-district-council/leeds,Leeds City Council,30/11/2021,Communities and Environment,Customer Access,Supplies and Services,Bought In Professional Services,277,17/11/2021,2111-00695,0.00,18.00,R,Ali Pourakaberian,No
Http://opendatacommunities.org/id/metropolitan-district-council/leeds,Leeds City Council,30/11/2021,Communities and Environment,Customer Access,Supplies and Services,Bought In Professional Services,277,17/11/2021,2111-00696,0.00,27.00,R,Ali Pourakaberian,No
Http://opendatacommunities.org/id/metropolitan-district-council/leeds,Leeds City Council,30/11/2021,Communities and Environment,Customer Access,Supplies and Services,Bought In Professional Services,277,24/11/2021,2111-00697,0.00,27.00,R,Ali Pourakaberian,No
Http://opendatacommunities.org/id/metropolitan-district-council/leeds,Leeds City Council,30/11/2021,Communities and Environment,Customer Access,Supplies and Services,Bought In Professional Services,277,24/11/2021,2111-00698,0.00,18.00,R,Ali Pourakaberian,No
Http://opendatacommunities.org/id/metropolitan-district-council/leeds,Leeds City Council,30/11/2021,Communities and Environment,Customer Access,Supplies and Services,Bought In Professional Services,277,24/11/2021,2111-00699,0.00,22.50,R,Ali Pourakaberian,No
Http://opendatacommunities.org/id/metropolitan-district-council/leeds,Leeds City Council,30/11/2021,Communities and Environment,Customer Access,Supplies and Services,Bought In Professional Services,277,24/11/2021,2111-00700,0.00,27.00,R,Ali Pourakaberian,No
Http://opendatacommunities.org/id/metropolitan-district-council/leeds,Leeds City Council,30/11/2021,Children and Families,Social Care,Supplies and Services,General Amenity For Clients/Residents,285,08/11/2021,2111-00701,0.00,18.50,R,REDACTED PERSONAL DATA,No
Http://opendatacommunities.org/id/metropolitan-district-council/leeds,Leeds City Council,30/11/2021,Children and Families,Social Care,Transport,Public Transport Expenses,310,08/11/2021,2111-00702,0.00,8.40,R,REDACTED PERSONAL DATA,No
Http://opendatacommunities.org/id/metropolitan-district-council/leeds,Leeds City Council,30/11/2021,Insurance,Insurance,Supplies and Services,Other Hired And Contracted Services,265,17/11/2021,2111-00703,0.00,-300.00,R,Alice Dobbie,No
Http://opendatacommunities.org/id/metropolitan-district-council/leeds,Leeds City Council,30/11/2021,Insurance,Insurance,Supplies and Services,Other Hired And Contracted Services,265,17/11/2021,2111-00704,0.00,250.00,R,Alice Dobbie,No
Http://opendatacommunities.org/id/metropolitan-district-council/leeds,Leeds City Council,30/11/2021,Insurance,Insurance,Supplies and Services,Other Hired And Contracted Services,265,17/11/2021,2111-00705,0.00,200.00,R,Alice Dobbie,No
Http://opendatacommunities.org/id/metropolitan-district-council/leeds,Leeds City Council,30/11/2021,Insurance,Insurance,Supplies and Services,Other Hired And Contracted Services,265,24/11/2021,2111-00706,0.00,3000.00,R,Alice Dobbie,No
Http://opendatacommunities.org/id/metropolitan-district-council/leeds,Leeds City Council,30/11/2021,Communities and Environment,Benefits Welfare and Poverty,Supplies and Services,Grant Related Expenditure,298,10/11/2021,2111-00707,0.00,500.00,R,REDACTED PERSONAL DATA,No
Http://opendatacommunities.org/id/metropolitan-district-council/leeds,Leeds City Council,30/11/2021,City Development,Recreation,Supplies and Services,Bought In Professional Services,277,04/11/2021,2111-00708,0.00,80.00,R,Alice M Richardson,No
Http://opendatacommunities.org/id/metropolitan-district-council/leeds,Leeds City Council,30/11/2021,City Development,Recreation,Supplies and Services,Bought In Professional Services,277,23/11/2021,2111-00709,0.00,60.00,R,Alice M Richardson,No
Http://opendatacommunities.org/id/metropolitan-district-council/leeds,Leeds City Council,30/11/2021,City Development,Recreation,Supplies and Services,Bought In Professional Services,277,23/11/2021,2111-00710,0.00,80.00,R,Alice M Richardson,No
Http://opendatacommunities.org/id/metropolitan-district-council/leeds,Leeds City Council,30/11/2021,City Development,Recreation,Supplies and Services,Bought In Professional Services,277,29/11/2021,2111-00711,0.00,80.00,R,Alice M Richardson,No
Http://opendatacommunities.org/id/metropolitan-district-council/leeds,Leeds City Council,30/11/2021,Adults and Health,Assessment And Care Management,Supplies and Services,Other Hired And Contracted Services,265,03/11/2021,2111-00712,0.00,30.14,R,REDACTED PERSONAL DATA,No
Http://opendatacommunities.org/id/metropolitan-district-council/leeds,Leeds City Council,30/11/2021,Adults and Health,Assessment And Care Management,Supplies and Services,Other Hired And Contracted Services,265,16/11/2021,2111-00713,0.00,10.00,R,REDACTED PERSONAL DATA,No
Http://opendatacommunities.org/id/metropolitan-district-council/leeds,Leeds City Council,30/11/2021,Adults and Health,Assessment And Care Management,Supplies and Services,Other Hired And Contracted Services,265,23/11/2021,2111-00714,0.00,41.45,R,REDACTED PERSONAL DATA,No
Http://opendatacommunities.org/id/metropolitan-district-council/leeds,Leeds City Council,30/11/2021,Children and Families,Social Care,Supplies and Services,Office Consumables,210,25/10/2021,2111-00715,0.00,39.13,R,Aliexpress,Yes
Http://opendatacommunities.org/id/metropolitan-district-council/leeds,Leeds City Council,30/11/2021,Adults and Health,Public Health,Supplies and Services,Non-Recurring Grants,227,19/11/2021,2111-00716,0.00,10687.50,R,Aligned Consultancy Ltd,No
Http://opendatacommunities.org/id/metropolitan-district-council/leeds,Leeds City Council,30/11/2021,Communities and Environment,Benefits Welfare and Poverty,Supplies and Services,Grant Related Expenditure,298,01/11/2021,2111-00717,0.00,500.00,R,REDACTED PERSONAL DATA,No
Http://opendatacommunities.org/id/metropolitan-district-council/leeds,Leeds City Council,30/11/2021,Children and Families,Social Care,Agency Payments,Contact,548,19/11/2021,2111-00718,0.00,9.40,R,REDACTED PERSONAL DATA,No
Http://opendatacommunities.org/id/metropolitan-district-council/leeds,Leeds City Council,30/11/2021,Children and Families,Social Care,Agency Payments,Contact,548,26/11/2021,2111-00719,0.00,9.40,R,REDACTED PERSONAL DATA,No
Http://opendatacommunities.org/id/metropolitan-district-council/leeds,Leeds City Council,30/11/2021,Children and Families,Social Care,Appropriations,Leaving Care Allowances,634,26/11/2021,2111-00720,0.00,69.00,R,REDACTED PERSONAL DATA,No
Http://opendatacommunities.org/id/metropolitan-district-council/leeds,Leeds City Council,30/11/2021,Children and Families,Social Care,Appropriations,Leaving Care Allowances,634,05/11/2021,2111-00721,0.00,40.00,R,REDACTED PERSONAL DATA,No
Http://opendatacommunities.org/id/metropolitan-district-council/leeds,Leeds City Council,30/11/2021,Children and Families,Social Care,Appropriations,Leaving Care Allowances,634,12/11/2021,2111-00722,0.00,40.00,R,REDACTED PERSONAL DATA,No
Http://opendatacommunities.org/id/metropolitan-district-council/leeds,Leeds City Council,30/11/2021,Children and Families,Social Care,Agency Payments,Allowances,546,18/11/2021,2111-00723,0.00,102.03,R,REDACTED PERSONAL DATA,No
Http://opendatacommunities.org/id/metropolitan-district-council/leeds,Leeds City Council,30/11/2021,Children and Families,Social Care,Appropriations,Leaving Care Allowances,634,18/11/2021,2111-00724,0.00,40.00,R,REDACTED PERSONAL DATA,No
Http://opendatacommunities.org/id/metropolitan-district-council/leeds,Leeds City Council,30/11/2021,Children and Families,Social Care,Agency Payments,Allowances,546,26/11/2021,2111-00725,0.00,50.00,R,REDACTED PERSONAL DATA,No
Http://opendatacommunities.org/id/metropolitan-district-council/leeds,Leeds City Council,30/11/2021,Children and Families,Social Care,Appropriations,Leaving Care Allowances,634,26/11/2021,2111-00726,0.00,40.00,R,REDACTED PERSONAL DATA,No
Http://opendatacommunities.org/id/metropolitan-district-council/leeds,Leeds City Council,30/11/2021,Children and Families,Social Care,Agency Payments,Services Rendered By Other Organisations,511,05/11/2021,2111-00727,0.00,652.28,R,REDACTED PERSONAL DATA,No
Http://opendatacommunities.org/id/metropolitan-district-council/leeds,Leeds City Council,30/11/2021,Resources and Housing,Strategic Housing Partnership & Support,Supplies and Services,Other Hired And Contracted Services,265,23/11/2021,2111-00728,0.00,604.10,R,Alison Cansdale,No
Http://opendatacommunities.org/id/metropolitan-district-council/leeds,Leeds City Council,30/11/2021,Strategic Landlord,Property and Contracts,Internal Recharges,Legal Disbursements,411,04/11/2021,2111-00729,0.00,4450.00,R,Alison Law Solicitors,No
Http://opendatacommunities.org/id/metropolitan-district-council/leeds,Leeds City Council,30/11/2021,Strategic Landlord,Property and Contracts,Internal Recharges,Legal Disbursements,411,15/11/2021,2111-00730,0.00,1150.00,R,Alison Law Solicitors,No
Http://opendatacommunities.org/id/metropolitan-district-council/leeds,Leeds City Council,30/11/2021,Communities and Environment,Benefits Welfare and Poverty,Supplies and Services,Grant Related Expenditure,290,15/11/2021,2111-00731,0.00,500.00,R,REDACTED PERSONAL DATA,No
Http://opendatacommunities.org/id/metropolitan-district-council/leeds,Leeds City Council,30/11/2021,City Development,Libraries Arts & Heritage,Employees,Agency Staff,8,08/10/2021,2111-00732,0.00,700.83,R,Alive Network Ltd Vt,Yes
Http://opendatacommunities.org/id/metropolitan-district-council/leeds,Leeds City Council,30/11/2021,City Development,Economic Development,Supplies and Services,Grant Related Expenditure,290,11/11/2021,2111-00733,0.00,9499.00,R,Alivini North Limited,No
Http://opendatacommunities.org/id/metropolitan-district-council/leeds,Leeds City Council,30/11/2021,Children and Families,Social Care,Agency Payments,Services Rendered By Other Organisations,511,03/11/2021,2111-00734,0.00,783.90,R,All Stars Childcare,No
Http://opendatacommunities.org/id/metropolitan-district-council/leeds,Leeds City Council,30/11/2021,Children and Families,Social Care,Agency Payments,Services Rendered By Other Organisations,511,05/11/2021,2111-00735,0.00,10871.25,R,All Stars Childcare,No
Http://opendatacommunities.org/id/metropolitan-district-council/leeds,Leeds City Council,30/11/2021,Resources and Housing,Commercial Services,Transport,Miscellaneous Transport Related Costs,324,28/10/2021,2111-00736,0.00,48.45,R,Allanda,Yes
Http://opendatacommunities.org/id/metropolitan-district-council/leeds,Leeds City Council as Accountable Body,30/11/2021,Social Services Pooled Budgets,Jcs For People With Learning Disabilitie,Agency Payments,Sheltered Accommodation,569,10/11/2021,2111-00737,0.00,28279.94,R,Allerton Avenue,No
Http://opendatacommunities.org/id/metropolitan-district-council/leeds,Leeds City Council,30/11/2021,Adults and Health,Public Health,Agency Payments,Public Health Commissioned Services,526,08/11/2021,2111-00738,0.00,1111.48,R,Allerton Medical Centre,No
Http://opendatacommunities.org/id/metropolitan-district-council/leeds,Leeds City Council,30/11/2021,Adults and Health,Services For Older People - 65 And Over,Agency Payments,Nursing Care Dementia,574,10/11/2021,2111-00739,0.00,2390.08,R,ALLERTON PARK N H,No
Http://opendatacommunities.org/id/metropolitan-district-council/leeds,Leeds City Council,30/11/2021,Communities and Environment,Benefits Welfare and Poverty,Supplies and Services,Grant Related Expenditure,298,19/11/2021,2111-00740,0.00,500.00,R,REDACTED PERSONAL DATA,No
Http://opendatacommunities.org/id/metropolitan-district-council/leeds,Leeds City Council,30/11/2021,Resources and Housing,Finance,Supplies and Services,Bank Charges,263,04/11/2021,2111-00741,0.00,100.38,R,ALLIANCE & LEICESTER COMMERCIAL BANK,No
Http://opendatacommunities.org/id/metropolitan-district-council/leeds,Leeds City Council,30/11/2021,Resources and Housing,Finance,Supplies and Services,Bank Charges,263,04/11/2021,2111-00742,0.00,205.42,R,ALLIANCE & LEICESTER COMMERCIAL BANK,No
Http://opendatacommunities.org/id/metropolitan-district-council/leeds,Leeds City Council,30/11/2021,Resources and Housing,Commercial Services,Supplies and Services,Operational Materials,205,04/11/2021,2111-00743,0.00,224.46,R,ALLIANCE DISPOSABLES LTD,No
Http://opendatacommunities.org/id/metropolitan-district-council/leeds,Leeds City Council,30/11/2021,Resources and Housing,Commercial Services,Supplies and Services,Operational Materials,205,04/11/2021,2111-00744,0.00,37.41,R,ALLIANCE DISPOSABLES LTD,No
Http://opendatacommunities.org/id/metropolitan-district-council/leeds,Leeds City Council,30/11/2021,Resources and Housing,Commercial Services,Supplies and Services,Operational Materials,205,05/11/2021,2111-00745,0.00,123.57,R,ALLIANCE DISPOSABLES LTD,No
Http://opendatacommunities.org/id/metropolitan-district-council/leeds,Leeds City Council,30/11/2021,Resources and Housing,Commercial Services,Supplies and Services,Operational Materials,205,05/11/2021,2111-00746,0.00,74.82,R,ALLIANCE DISPOSABLES LTD,No
Http://opendatacommunities.org/id/metropolitan-district-council/leeds,Leeds City Council,30/11/2021,Resources and Housing,Commercial Services,Supplies and Services,Operational Materials,205,05/11/2021,2111-00747,0.00,37.41,R,ALLIANCE DISPOSABLES LTD,No
Http://opendatacommunities.org/id/metropolitan-district-council/leeds,Leeds City Council,30/11/2021,Resources and Housing,Commercial Services,Supplies and Services,Operational Materials,205,08/11/2021,2111-00748,0.00,60.47,R,ALLIANCE DISPOSABLES LTD,No
Http://opendatacommunities.org/id/metropolitan-district-council/leeds,Leeds City Council,30/11/2021,Resources and Housing,Commercial Services,Supplies and Services,Operational Materials,205,09/11/2021,2111-00749,0.00,12.64,R,ALLIANCE DISPOSABLES LTD,No
Http://opendatacommunities.org/id/metropolitan-district-council/leeds,Leeds City Council,30/11/2021,Resources and Housing,Commercial Services,Supplies and Services,Operational Materials,205,09/11/2021,2111-00750,0.00,289.80,R,ALLIANCE DISPOSABLES LTD,No
Http://opendatacommunities.org/id/metropolitan-district-council/leeds,Leeds City Council,30/11/2021,Resources and Housing,Commercial Services,Supplies and Services,Operational Materials,205,09/11/2021,2111-00751,0.00,149.60,R,ALLIANCE DISPOSABLES LTD,No
Http://opendatacommunities.org/id/metropolitan-district-council/leeds,Leeds City Council,30/11/2021,Resources and Housing,Commercial Services,Supplies and Services,Operational Materials,205,10/11/2021,2111-00752,0.00,112.23,R,ALLIANCE DISPOSABLES LTD,No
Http://opendatacommunities.org/id/metropolitan-district-council/leeds,Leeds City Council,30/11/2021,Resources and Housing,Commercial Services,Supplies and Services,Operational Materials,205,10/11/2021,2111-00753,0.00,56.27,R,ALLIANCE DISPOSABLES LTD,No
Http://opendatacommunities.org/id/metropolitan-district-council/leeds,Leeds City Council,30/11/2021,Resources and Housing,Commercial Services,Supplies and Services,Operational Materials,205,10/11/2021,2111-00754,0.00,10.20,R,ALLIANCE DISPOSABLES LTD,No
Http://opendatacommunities.org/id/metropolitan-district-council/leeds,Leeds City Council,30/11/2021,Resources and Housing,Commercial Services,Supplies and Services,Operational Materials,205,12/11/2021,2111-00755,0.00,224.46,R,ALLIANCE DISPOSABLES LTD,No
Http://opendatacommunities.org/id/metropolitan-district-council/leeds,Leeds City Council,30/11/2021,Resources and Housing,Commercial Services,Supplies and Services,Operational Materials,205,17/11/2021,2111-00756,0.00,176.56,R,ALLIANCE DISPOSABLES LTD,No
Http://opendatacommunities.org/id/metropolitan-district-council/leeds,Leeds City Council,30/11/2021,Resources and Housing,Commercial Services,Supplies and Services,Operational Materials,205,17/11/2021,2111-00757,0.00,125.91,R,ALLIANCE DISPOSABLES LTD,No
Http://opendatacommunities.org/id/metropolitan-district-council/leeds,Leeds City Council,30/11/2021,Resources and Housing,Commercial Services,Supplies and Services,Operational Materials,205,17/11/2021,2111-00758,0.00,224.46,R,ALLIANCE DISPOSABLES LTD,No
Http://opendatacommunities.org/id/metropolitan-district-council/leeds,Leeds City Council,30/11/2021,Resources and Housing,Commercial Services,Supplies and Services,Operational Materials,205,17/11/2021,2111-00759,0.00,41.34,R,ALLIANCE DISPOSABLES LTD,No
Http://opendatacommunities.org/id/metropolitan-district-council/leeds,Leeds City Council,30/11/2021,Resources and Housing,Commercial Services,Supplies and Services,Operational Materials,205,19/11/2021,2111-00760,0.00,74.82,R,ALLIANCE DISPOSABLES LTD,No
Http://opendatacommunities.org/id/metropolitan-district-council/leeds,Leeds City Council,30/11/2021,Resources and Housing,Commercial Services,Supplies and Services,Operational Materials,205,19/11/2021,2111-00761,0.00,110.91,R,ALLIANCE DISPOSABLES LTD,No
Http://opendatacommunities.org/id/metropolitan-district-council/leeds,Leeds City Council,30/11/2021,City Development,Economic Development,Supplies and Services,Grant Related Expenditure,290,01/11/2021,2111-00762,0.00,2963.00,R,Allied Computer Solutions Limted,No
Http://opendatacommunities.org/id/metropolitan-district-council/leeds,Leeds City Council,30/11/2021,Adults and Health,Services For Adults Under 65 Mental/Dis,Agency Payments,Home Care,568,10/11/2021,2111-00763,0.00,2068.56,R,Allied Healthcare,No
Http://opendatacommunities.org/id/metropolitan-district-council/leeds,Leeds City Council,30/11/2021,Adults and Health,Services For Older People - 65 And Over,Agency Payments,Home Care,568,10/11/2021,2111-00764,0.00,47244.64,R,Allied Healthcare,No
Http://opendatacommunities.org/id/metropolitan-district-council/leeds,Leeds City Council,30/11/2021,Adults and Health,Services For Older People - 65 And Over,Agency Payments,HCAIT Community Support,575,10/11/2021,2111-00765,0.00,212.16,R,Allied Healthcare,No
Http://opendatacommunities.org/id/metropolitan-district-council/leeds,Leeds City Council,30/11/2021,Adults and Health,Services For Older People - 65 And Over,Agency Payments,HCAIT Other,577,10/11/2021,2111-00766,0.00,1947.84,R,Allied Healthcare,No
Http://opendatacommunities.org/id/metropolitan-district-council/leeds,Leeds City Council,30/11/2021,Adults and Health,Services For Older People Under 65 P/Dis,Agency Payments,Home Care,568,10/11/2021,2111-00767,0.00,10059.92,R,Allied Healthcare,No
Http://opendatacommunities.org/id/metropolitan-district-council/leeds,Leeds City Council,30/11/2021,Adults and Health,Services For Older People - 65 And Over,Agency Payments,Home Care,568,10/11/2021,2111-00768,0.00,1512.48,R,Allied Healthcare,No
Http://opendatacommunities.org/id/metropolitan-district-council/leeds,Leeds City Council,30/11/2021,Adults and Health,Services For Older People - 65 And Over,Agency Payments,HCAIT Other,577,10/11/2021,2111-00769,0.00,295.92,R,Allied Healthcare,No
Http://opendatacommunities.org/id/metropolitan-district-council/leeds,Leeds City Council,30/11/2021,Adults and Health,Services For Older People Under 65 P/Dis,Agency Payments,Home Care,568,10/11/2021,2111-00770,0.00,772.68,R,Allied Healthcare,No
Http://opendatacommunities.org/id/metropolitan-district-council/leeds,Leeds City Council as Accountable Body,30/11/2021,Social Services Pooled Budgets,Jcs For People With Learning Disabilitie,Agency Payments,Home Care,568,16/11/2021,2111-00771,0.00,8312.78,R,Allied Healthcare,No
Http://opendatacommunities.org/id/metropolitan-district-council/leeds,Leeds City Council,30/11/2021,Adults and Health,Services For Older People - 65 And Over,Agency Payments,Home Care,568,17/11/2021,2111-00772,0.00,1578.24,R,Allied Healthcare,No
Http://opendatacommunities.org/id/metropolitan-district-council/leeds,Leeds City Council,30/11/2021,Adults and Health,Services For Older People - 65 And Over,Agency Payments,HCAIT Other,577,17/11/2021,2111-00773,0.00,197.28,R,Allied Healthcare,No
Http://opendatacommunities.org/id/metropolitan-district-council/leeds,Leeds City Council,30/11/2021,Adults and Health,Services For Older People Under 65 P/Dis,Agency Payments,Home Care,568,17/11/2021,2111-00774,0.00,854.88,R,Allied Healthcare,No
Http://opendatacommunities.org/id/metropolitan-district-council/leeds,Leeds City Council,30/11/2021,Adults and Health,Services For Older People - 65 And Over,Agency Payments,Home Care,568,17/11/2021,2111-00775,0.00,1512.48,R,Allied Healthcare,No
Http://opendatacommunities.org/id/metropolitan-district-council/leeds,Leeds City Council,30/11/2021,Adults and Health,Services For Older People - 65 And Over,Agency Payments,HCAIT Other,577,17/11/2021,2111-00776,0.00,295.92,R,Allied Healthcare,No
Http://opendatacommunities.org/id/metropolitan-district-council/leeds,Leeds City Council,30/11/2021,Adults and Health,Services For Older People Under 65 P/Dis,Agency Payments,Home Care,568,17/11/2021,2111-00777,0.00,854.88,R,Allied Healthcare,No
Http://opendatacommunities.org/id/metropolitan-district-council/leeds,Leeds City Council as Accountable Body,30/11/2021,Social Services Pooled Budgets,Jcs For People With Learning Disabilitie,Agency Payments,Home Care,568,24/11/2021,2111-00778,0.00,1245.48,R,Allied Healthcare,No
Http://opendatacommunities.org/id/metropolitan-district-council/leeds,Leeds City Council as Accountable Body,30/11/2021,Social Services Pooled Budgets,Jcs For People With Learning Disabilitie,Agency Payments,Home Care,568,30/11/2021,2111-00779,0.00,8816.00,R,Allied Healthcare,No
Http://opendatacommunities.org/id/metropolitan-district-council/leeds,Leeds City Council,30/11/2021,Resources and Housing,Shared Services,Supplies and Services,Printing,215,25/11/2021,2111-00780,0.00,2702.39,R,Allied Publicity Services,No
Http://opendatacommunities.org/id/metropolitan-district-council/leeds,Leeds City Council,30/11/2021,Resources and Housing,Technology,Supplies and Services,Computer Software & Equipment,214,24/11/2021,2111-00781,0.00,967.21,R,Alliot Technologies Ltd,No
